Service Area,Service Division,Expense Type,Expense Code,Detailed Expense Type,Payment Date,Transaction Number,Amount Exc Vat,Supplier Name
Children and Adult Services,Childrens Services,Supplies and Services,384491,Miscellaneous Expenses,07-Aug-2014,2779709,922.25,WESTFIELD HOUSE NURSERY.
Children and Adult Services,Central Charges (CYPS),Creditors,952258,Creditor-West Durham Cluster,01-Aug-2014,233526,700.00,ANNA GLOVER/GINA VAN-LORE FINE ARTS.
Children and Adult Services,Education,Transfer Payments,510026,School Children,01-Aug-2014,233547-10084,"1,230.45",DURHAM SCHOOL.
Children and Adult Services,Education,Supplies and Services,348037,Subsistence,01-Aug-2014,233548-256,546.00,ESH WINNING PRIMARY SCHOOL FUND.
Children and Adult Services,Public Health,Third Party Payments,460803,Contract Payments,01-Aug-2014,233551-FEQ59/0414/NRT,807.17,G WHITFIELD LTD.
Children and Adult Services,Public Health,Third Party Payments,460803,Contract Payments,01-Aug-2014,233559-TUN04191,"1,178.57",HUNTERCOMBE CENTRE.
Children and Adult Services,Central Charges (CYPS),Creditors,952258,Creditor-West Durham Cluster,01-Aug-2014,233564-0151,"1,000.00",IRA LIGHTMAN.
Children and Adult Services,Education,Supplies and Services,338045,Services,01-Aug-2014,233578-213901,"3,500.00",MR ANTOINE TINNION.
Children and Adult Services,Education,Transport,230007,Contract Hire,01-Aug-2014,233584-16-16/7/14,"2,350.00",MR M MCNAMARA.
Children and Adult Services,Public Health,Premises,145009,Cleaning and Domestic Supplies,01-Aug-2014,233618-14392,540.00,QUALITY CLEANING SERVICES (NORTHERN) LTD.
Children and Adult Services,Public Health,Third Party Payments,460802,Contract Payments,01-Aug-2014,233629-A83016/Q3/2013,"1,240.50",TANFIELD VIEW SURGERY.
Children and Adult Services,Education,Transport,230008,Contract Hire,06-Aug-2014,233670-06/14137,"1,156.00",COLLINS TAXIS.
Children and Adult Services,Education,Transport,230008,Contract Hire,06-Aug-2014,233670-07/14137,816.00,COLLINS TAXIS.
Children and Adult Services,Education,Transport,230008,Contract Hire,13-Aug-2014,233793-06/14087,875.00,COLLINS TAXIS.
Children and Adult Services,Education,Transport,230007,Contract Hire,13-Aug-2014,233793-06/143219,861.00,COLLINS TAXIS.
Children and Adult Services,Education,Transport,230009,Contract Hire,13-Aug-2014,233793-06/147252,500.00,COLLINS TAXIS.
Children and Adult Services,Education,Transport,230008,Contract Hire,13-Aug-2014,233793-07/14087,"1,750.00",COLLINS TAXIS.
Children and Adult Services,Education,Transfer Payments,510028,School Children,13-Aug-2014,233803-CAS-08-2014-182,"1,409.40",DURHAM PRE SCHOOL.
Children and Adult Services,Education,Transport,230008,Contract Hire,13-Aug-2014,233806-14/007,"1,044.48",EDDIE BURROWS.
Children and Adult Services,Public Health,Supplies and Services,384540,Miscellaneous Expenses,13-Aug-2014,233826-9307,"4,000.00",LIFE CHANNEL GROUP LTD.
Children and Adult Services,Education,Transport,230006,Contract Hire,13-Aug-2014,233847,640.00,MR ROBERT FOWKES.
Children and Adult Services,Public Health,Third Party Payments,460802,Contract Payments,13-Aug-2014,233878-6247,780.00,STEADFAST SECURITY SYSTEMS LTD.
Children and Adult Services,Education,Premises,145009,Cleaning and Domestic Supplies,15-Aug-2014,233893-003465,570.00,A & B INDUSTRIAL CLEANING LTD.
Children and Adult Services,Education,Transport,230008,Contract Hire,15-Aug-2014,233900-MO47/10-JULY,960.00,C STEWART.
Children and Adult Services,Head of Adults,Third Party Payments,470101,Purchase of Care,15-Aug-2014,233901-2177580,"2,500.00",CARELINE LIFESTYLES LTD.
Children and Adult Services,Head of Adults,Third Party Payments,470101,Purchase of Care,15-Aug-2014,233901-2177581,"2,016.00",CARELINE LIFESTYLES LTD.
Children and Adult Services,Education,Transport,230008,Contract Hire,15-Aug-2014,233903-06/14090,"2,625.00",COLLINS TAXIS.
Children and Adult Services,Education,Transport,230008,Contract Hire,15-Aug-2014,233903-07/14090,"1,750.00",COLLINS TAXIS.
Children and Adult Services,Head of Adults,Third Party Payments,478101,Purchase of Care,15-Aug-2014,233934-2176184,"1,301.00",REDACTED - PAYMENT TO INDIVIDUAL
Children and Adult Services,Public Health,Premises,145009,Cleaning and Domestic Supplies,15-Aug-2014,233949-14542,540.00,QUALITY CLEANING SERVICES (NORTHERN) LTD.
Children and Adult Services,Education,Construction Work,908105,Construction work,20-Aug-2014,234016-4287,750.00,PAUL EVANS SURVEYING LTD.
Children and Adult Services,Childrens Services,Third Party Payments,440001,Other Third Party Payments,27-Aug-2014,234043-970493,574.49,REDACTED - PAYMENT TO INDIVIDUAL
Children and Adult Services,Head of Adults,Supplies and Services,338045,Services,27-Aug-2014,234067-CI/DEC9158,"3,197.85",D CM I.
Children and Adult Services,Childrens Services,Premises,108099,Service Repairs and Maintenance,27-Aug-2014,234075-12735,665.28,DURHAM ROOFING CENTRE.
Children and Adult Services,Childrens Services,Third Party Payments,425040,Rendered by Voluntary Organisations,27-Aug-2014,234080-630123729,"4,180.58",FOSTER CARE ASSOCIATES LTD.
Children and Adult Services,Childrens Services,Third Party Payments,425040,Rendered by Voluntary Organisations,27-Aug-2014,234080-630123893,"4,292.69",FOSTER CARE ASSOCIATES LTD.
Children and Adult Services,Childrens Services,Third Party Payments,425040,Rendered by Voluntary Organisations,27-Aug-2014,234080-630123914,"4,079.43",FOSTER CARE ASSOCIATES LTD.
Children and Adult Services,Childrens Services,Third Party Payments,425040,Rendered by Voluntary Organisations,27-Aug-2014,234080-630124062,"4,079.43",FOSTER CARE ASSOCIATES LTD.
Children and Adult Services,Childrens Services,Third Party Payments,425040,Rendered by Voluntary Organisations,27-Aug-2014,234080-630124099,"4,079.43",FOSTER CARE ASSOCIATES LTD.
Children and Adult Services,Childrens Services,Third Party Payments,425040,Rendered by Voluntary Organisations,27-Aug-2014,234080-630124203,"4,079.43",FOSTER CARE ASSOCIATES LTD.
Children and Adult Services,Childrens Services,Third Party Payments,425040,Rendered by Voluntary Organisations,27-Aug-2014,234080-630124446,"4,079.43",FOSTER CARE ASSOCIATES LTD.
Children and Adult Services,Childrens Services,Third Party Payments,425040,Rendered by Voluntary Organisations,27-Aug-2014,234080-630124500,"4,079.43",FOSTER CARE ASSOCIATES LTD.
Children and Adult Services,Childrens Services,Third Party Payments,425040,Rendered by Voluntary Organisations,27-Aug-2014,234080-630124562,"4,079.43",FOSTER CARE ASSOCIATES LTD.
Children and Adult Services,Childrens Services,Third Party Payments,425040,Rendered by Voluntary Organisations,27-Aug-2014,234080-630124677,"4,079.43",FOSTER CARE ASSOCIATES LTD.
Children and Adult Services,Childrens Services,Third Party Payments,425040,Rendered by Voluntary Organisations,27-Aug-2014,234080-630124714,"4,079.43",FOSTER CARE ASSOCIATES LTD.
Children and Adult Services,Childrens Services,Third Party Payments,425040,Rendered by Voluntary Organisations,27-Aug-2014,234080-630124734,"4,079.43",FOSTER CARE ASSOCIATES LTD.
Children and Adult Services,Childrens Services,Third Party Payments,425040,Rendered by Voluntary Organisations,27-Aug-2014,234080-630124790,"3,538.34",FOSTER CARE ASSOCIATES LTD.
Children and Adult Services,Childrens Services,Third Party Payments,425040,Rendered by Voluntary Organisations,27-Aug-2014,234080-630125114,"4,162.68",FOSTER CARE ASSOCIATES LTD.
Children and Adult Services,Childrens Services,Third Party Payments,425040,Rendered by Voluntary Organisations,27-Aug-2014,234080-630127530,"3,947.83",FOSTER CARE ASSOCIATES LTD.
Children and Adult Services,Public Health,Third Party Payments,460803,Contract Payments,27-Aug-2014,234084-TUN04221,"1,650.00",HUNTERCOMBE CENTRE.
Children and Adult Services,Redundant-LA,Supplies and Services,340001,Postages,27-Aug-2014,234131-21154817,656.58,PITNEY BOWES LTD.
Children and Adult Services,Education,Transport,230008,Contract Hire,27-Aug-2014,234158-4736,520.00,STATION TAXIS (SUNDERLAND).
Children and Adult Services,Childrens Services,Third Party Payments,425040,Rendered by Voluntary Organisations,28-Aug-2014,234178-630125104,"3,357.00",FOSTER CARE ASSOCIATES LTD.
Children and Adult Services,Education,Transport,230007,Contract Hire,01-Aug-2014,2777486-028,"1,050.00",ALANS TAXIS.
Children and Adult Services,Head of Adults,Supplies and Services,324117,Provisions,01-Aug-2014,2777491-9,"1,228.50",ASHBARTON CATERING.
Children and Adult Services,Education,Construction Work,908105,Construction work,01-Aug-2014,2777493-58863,747.00,BAILEYS BLINDS CO LTD.
Children and Adult Services,Head of Adults,Supplies and Services,304516,Equipment and Materials,01-Aug-2014,2777509-9679/06,843.65,CABLES TAXI CONTRACTS.
Children and Adult Services,Education,Transport,230008,Contract Hire,01-Aug-2014,2777522-1348,966.00,DA TAXIS.
Children and Adult Services,Education,Transport,230008,Contract Hire,01-Aug-2014,2777522-1349,"1,312.74",DA TAXIS.
Children and Adult Services,Education,Transport,230008,Contract Hire,01-Aug-2014,2777522-1350,966.00,DA TAXIS.
Children and Adult Services,Education,Transport,230008,Contract Hire,01-Aug-2014,2777522-1351,"1,145.40",DA TAXIS.
Children and Adult Services,Education,Transfer Payments,525065,Other,01-Aug-2014,2777547-CAS-07-2014-113,"35,478.97",HERMITAGE ACADEMY.
Children and Adult Services,Childrens Services,Supplies and Services,384199,Miscellaneous Expenses,01-Aug-2014,2777553-1169,600.00,HSF TRAINING LTD.
Children and Adult Services,Childrens Services,Supplies and Services,384199,Miscellaneous Expenses,01-Aug-2014,2777553-1170,600.00,HSF TRAINING LTD.
Children and Adult Services,Education,Construction Work,908105,Construction work,01-Aug-2014,2777558-DURH/0525,"340,973.43",INSPIREDSPACES DURHAM LTD.
Children and Adult Services,Public Health,Third Party Payments,460803,Contract Payments,01-Aug-2014,2777559,879.00,INTRAHEALTH LTD.
Children and Adult Services,Education,Transport,230007,Contract Hire,01-Aug-2014,2777565-2014/14,"1,055.60",JM HUMBLE COACH HIRE.
Children and Adult Services,Education,Transport,230008,Contract Hire,01-Aug-2014,2777571-S007-022,"1,333.00",KEITH HAMMOND T/A FERRYHILL VILLAGE TRAVEL.
Children and Adult Services,Education,Transport,230007,Contract Hire,01-Aug-2014,2777582-00676,"2,940.00",MICHAELS TRAVEL.
Children and Adult Services,Public Health,Third Party Payments,460802,Contract Payments,01-Aug-2014,2777590-R0223928A,"22,359.00",NEWCASTLE UPON TYNE HOSPITALS NHS FOUNDATION TRUST.
Children and Adult Services,Education,Transport,230008,Contract Hire,01-Aug-2014,2777594-3157,"1,036.00",NIGHTINGALE COACHES.
Children and Adult Services,Education,Transport,230007,Contract Hire,01-Aug-2014,2777594-3203,"2,086.00",NIGHTINGALE COACHES.
Children and Adult Services,Education,Transport,230007,Contract Hire,01-Aug-2014,2777594-3204,"2,086.00",NIGHTINGALE COACHES.
Children and Adult Services,Education,Transport,230007,Contract Hire,01-Aug-2014,2777594-3205,"1,890.00",NIGHTINGALE COACHES.
Children and Adult Services,Childrens Services,Transport,230007,Contract Hire,01-Aug-2014,2777594-3206,"1,820.00",NIGHTINGALE COACHES.
Children and Adult Services,Childrens Services,Transport,230007,Contract Hire,01-Aug-2014,2777594-3207,"1,456.00",NIGHTINGALE COACHES.
Children and Adult Services,Childrens Services,Supplies and Services,384638,Miscellaneous Expenses,01-Aug-2014,2777597-0000016738,"2,903.20",NORTH EAST AUTISM SOCIETY.
Children and Adult Services,Education,Transport,230008,Contract Hire,01-Aug-2014,2777610-1002,896.00,PODA LTD.
Children and Adult Services,Education,Transport,230007,Contract Hire,01-Aug-2014,2777618-22B,"1,404.00",RAYNERS COACHES.
Children and Adult Services,Education,Transport,230007,Contract Hire,01-Aug-2014,2777623-130153,"4,015.70",ROBERTS TOURS.
Children and Adult Services,Childrens Services,Premises,108099,Service Repairs and Maintenance,01-Aug-2014,2777627-95749835,927.18,SCHNEIDER ELECTRIC LTD.
Children and Adult Services,Childrens Services,Premises,120009,Energy Costs,01-Aug-2014,2777628-32709,"2,528.32",SEAHAM HARBOUR DOCK CO.
Children and Adult Services,Education,Transport,230007,Contract Hire,01-Aug-2014,2777640-249,"1,397.20",STEPHEN MAUDE LTD T/A MAUDES COACHES.
Children and Adult Services,Education,Transport,230007,Contract Hire,01-Aug-2014,2777640-250,"1,537.20",STEPHEN MAUDE LTD T/A MAUDES COACHES.
Children and Adult Services,Education,Transport,230007,Contract Hire,01-Aug-2014,2777643-0807D,578.20,T MOORE & SON.
Children and Adult Services,Head of Adults,Employees,080025,Agency Staff,01-Aug-2014,2777645-4810002557,"7,752.83",TEES ESK & WEAR VALLEYS NHS FOUNDATION TRUST.
Children and Adult Services,Head of Adults,Employees,080025,Agency Staff,01-Aug-2014,2777645-4810002694,"3,876.42",TEES ESK & WEAR VALLEYS NHS FOUNDATION TRUST.
Children and Adult Services,Head of Adults,Employees,080025,Agency Staff,01-Aug-2014,2777645-4810002931,"3,583.09",TEES ESK & WEAR VALLEYS NHS FOUNDATION TRUST.
Children and Adult Services,Head of Adults,Employees,080025,Agency Staff,01-Aug-2014,2777645-4810002964,"3,876.42",TEES ESK & WEAR VALLEYS NHS FOUNDATION TRUST.
Children and Adult Services,Education,Transport,230007,Contract Hire,04-Aug-2014,2777697-44497,"3,472.00",CJ GRIERSON.
Children and Adult Services,Education,Transport,230007,Contract Hire,04-Aug-2014,2777697-44498,"1,470.00",CJ GRIERSON.
Children and Adult Services,Education,Transport,230007,Contract Hire,04-Aug-2014,2777697-44500,"1,157.00",CJ GRIERSON.
Children and Adult Services,Education,Transport,230007,Contract Hire,04-Aug-2014,2777697-44501,"1,287.00",CJ GRIERSON.
Children and Adult Services,Childrens Services,Third Party Payments,479101,Purchase of Care,04-Aug-2014,2777699-3980004677,"16,279.35",CO DURHAM & DARLINGTON NHS FOUNDATION TRUST.
Children and Adult Services,Education,Transport,230007,Contract Hire,04-Aug-2014,2777700-DCC/4029/07/14,"1,386.00",COUNTY COACHES.
Children and Adult Services,Education,Transport,230007,Contract Hire,04-Aug-2014,2777768-3202,"1,750.00",NIGHTINGALE COACHES.
Children and Adult Services,Public Health,Third Party Payments,460803,Contract Payments,04-Aug-2014,2777778-12395/15,"34,669.67",PIONEERING CARE PARTNERSHIP.
Children and Adult Services,Head of Adults,Premises,125009,Rents,05-Aug-2014,2777885-355096,782.50,KNIGHT FRANK LLP.
Children and Adult Services,Planning & Service Strategy,Employees,040149,Recruitment Instruction and Training,05-Aug-2014,2777905-DPSW6,"1,410.25",M AG.
Children and Adult Services,Childrens Services,Vehicles Equipment Furniture and Fittings,912529,Purchase-equipment,05-Aug-2014,2777925-22462,"2,390.00",SAFETY SYSTEMS DISTRIBUTION LTD.
Children and Adult Services,Childrens Services,Premises,125009,Rents,05-Aug-2014,2777941-298623,612.00,WHITTLE JONES (GROUP) LTD.
Children and Adult Services,Education,Transport,230008,Contract Hire,05-Aug-2014,2778109-0714/002,897.00,DCM TAXIS.
Children and Adult Services,Education,Transport,230007,Contract Hire,05-Aug-2014,2778168-20,770.00,FONACAB.
Children and Adult Services,Education,Transport,230008,Contract Hire,05-Aug-2014,2778171-022,"1,625.00",FRANK ATKINSON T/A FJ MINIBUS TRAVEL.
Children and Adult Services,Education,Transport,230008,Contract Hire,05-Aug-2014,2778171-FJ016,"1,040.00",FRANK ATKINSON T/A FJ MINIBUS TRAVEL.
Children and Adult Services,Education,Transport,230007,Contract Hire,05-Aug-2014,2778172-5/14,800.00,FREEDOM PRIVATE HIRE.
Children and Adult Services,Education,Transport,230007,Contract Hire,05-Aug-2014,2778172-6/14,"1,050.00",FREEDOM PRIVATE HIRE.
Children and Adult Services,Education,Transport,230007,Contract Hire,05-Aug-2014,2778172-7/14,650.00,FREEDOM PRIVATE HIRE.
Children and Adult Services,Education,Transport,230007,Contract Hire,05-Aug-2014,2778181-16566,"1,946.00",GARNETTS LTD (COACHES).
Children and Adult Services,Education,Transport,230007,Contract Hire,05-Aug-2014,2778181-16567,"3,052.00",GARNETTS LTD (COACHES).
Children and Adult Services,Education,Transport,230007,Contract Hire,05-Aug-2014,2778181-16570,"12,446.00",GARNETTS LTD (COACHES).
Children and Adult Services,Education,Transport,230007,Contract Hire,05-Aug-2014,2778181-16571,"1,806.00",GARNETTS LTD (COACHES).
Children and Adult Services,Education,Transport,230007,Contract Hire,05-Aug-2014,2778181-16598,"6,545.00",GARNETTS LTD (COACHES).
Children and Adult Services,Education,Transport,230008,Contract Hire,05-Aug-2014,2778196-011A,512.00,GS PEARSON.
Children and Adult Services,Education,Transport,230007,Contract Hire,05-Aug-2014,2778216-011219,"1,155.00",HODGSONS COACH OPERATORS LTD.
Children and Adult Services,Education,Transport,230007,Contract Hire,05-Aug-2014,2778216-011220,880.00,HODGSONS COACH OPERATORS LTD.
Children and Adult Services,Education,Transport,230007,Contract Hire,05-Aug-2014,2778216-011222,"2,268.00",HODGSONS COACH OPERATORS LTD.
Children and Adult Services,Education,Transport,230007,Contract Hire,05-Aug-2014,2778216-011223,890.00,HODGSONS COACH OPERATORS LTD.
Children and Adult Services,Education,Transport,230007,Contract Hire,05-Aug-2014,2778216-011224,700.00,HODGSONS COACH OPERATORS LTD.
Children and Adult Services,Education,Transport,230007,Contract Hire,05-Aug-2014,2778216-011250,840.00,HODGSONS COACH OPERATORS LTD.
Children and Adult Services,Education,Transport,230007,Contract Hire,05-Aug-2014,2778216-011252,"1,372.00",HODGSONS COACH OPERATORS LTD.
Children and Adult Services,Education,Transport,230007,Contract Hire,05-Aug-2014,2778216-011254,"1,190.00",HODGSONS COACH OPERATORS LTD.
Children and Adult Services,Education,Transport,230007,Contract Hire,05-Aug-2014,2778216-011256,756.00,HODGSONS COACH OPERATORS LTD.
Children and Adult Services,Education,Transport,230007,Contract Hire,05-Aug-2014,2778216-011258,540.00,HODGSONS COACH OPERATORS LTD.
Children and Adult Services,Education,Transport,230007,Contract Hire,05-Aug-2014,2778216-011259,"7,665.00",HODGSONS COACH OPERATORS LTD.
Children and Adult Services,Education,Transport,230007,Contract Hire,05-Aug-2014,2778216-011260,"5,110.00",HODGSONS COACH OPERATORS LTD.
Children and Adult Services,Education,Transport,230007,Contract Hire,05-Aug-2014,2778216-011262,"1,190.00",HODGSONS COACH OPERATORS LTD.
Children and Adult Services,Education,Transport,230007,Contract Hire,05-Aug-2014,2778216-011263,"1,030.00",HODGSONS COACH OPERATORS LTD.
Children and Adult Services,Education,Transport,230008,Contract Hire,05-Aug-2014,2778239-754,728.00,J YOUNG T/A VIP TAXIS.
Children and Adult Services,Education,Transport,230007,Contract Hire,05-Aug-2014,2778239-756,924.00,J YOUNG T/A VIP TAXIS.
Children and Adult Services,Education,Transport,230008,Contract Hire,05-Aug-2014,2778239-758,"1,484.00",J YOUNG T/A VIP TAXIS.
Children and Adult Services,Education,Transport,230007,Contract Hire,05-Aug-2014,2778239-760,560.00,J YOUNG T/A VIP TAXIS.
Children and Adult Services,Education,Transport,230008,Contract Hire,05-Aug-2014,2778239-761,"1,092.00",J YOUNG T/A VIP TAXIS.
Children and Adult Services,Education,Transport,230008,Contract Hire,05-Aug-2014,2778239-762,"1,600.00",J YOUNG T/A VIP TAXIS.
Children and Adult Services,Education,Transport,230008,Contract Hire,05-Aug-2014,2778258-29,896.00,K & B TAXIS.
Children and Adult Services,Education,Transport,230008,Contract Hire,05-Aug-2014,2778259-A033-18/7/14,770.00,K & R TAXIS.
Children and Adult Services,Education,Transport,230008,Contract Hire,05-Aug-2014,2778263-010714,768.00,KEVIN EDMUNDSON.
Children and Adult Services,Education,Transport,230008,Contract Hire,05-Aug-2014,2778272-10-18/7/14,"1,260.00",L & R PRIVATE HIRE.
Children and Adult Services,Education,Transport,230008,Contract Hire,05-Aug-2014,2778286-084,"1,062.60",LEE`S TAXIS.
Children and Adult Services,Education,Transport,230008,Contract Hire,05-Aug-2014,2778291-1881,707.00,LOCAL TRANSPORT LTD.
Children and Adult Services,Education,Transport,230008,Contract Hire,05-Aug-2014,2778297-61,"1,518.00",M BUTCHER.
Children and Adult Services,Education,Transport,230008,Contract Hire,05-Aug-2014,2778311-00682,"1,050.00",MICHAELS TRAVEL.
Children and Adult Services,Education,Transport,230008,Contract Hire,05-Aug-2014,2778311-00683,"2,058.00",MICHAELS TRAVEL.
Children and Adult Services,Education,Transport,230008,Contract Hire,05-Aug-2014,2778346-3199,"1,050.00",NIGHTINGALE COACHES.
Children and Adult Services,Education,Transport,230007,Contract Hire,05-Aug-2014,2778346-3200,"5,135.00",NIGHTINGALE COACHES.
Children and Adult Services,Education,Transport,230007,Contract Hire,05-Aug-2014,2778346-3201,"1,820.00",NIGHTINGALE COACHES.
Children and Adult Services,Education,Transport,230008,Contract Hire,05-Aug-2014,2778383-443,921.60,PETERLEE EXECUTIVE CARS.
Children and Adult Services,Education,Transport,230006,Contract Hire,05-Aug-2014,2778383-447,947.20,PETERLEE EXECUTIVE CARS.
Children and Adult Services,Education,Transport,230008,Contract Hire,05-Aug-2014,2778399-1004,"1,166.10",PODA LTD.
Children and Adult Services,Education,Transport,230007,Contract Hire,05-Aug-2014,2778424-22A,896.00,RAYNERS COACHES.
Children and Adult Services,Education,Transport,230008,Contract Hire,05-Aug-2014,2778447-1590,"1,424.50",RONS TAXIS.
Children and Adult Services,Education,Transport,230007,Contract Hire,05-Aug-2014,2778453-3080/03,"1,120.00",S & S TRAVEL LTD.
Children and Adult Services,Education,Transport,230008,Contract Hire,05-Aug-2014,2778453-4079/03,897.00,S & S TRAVEL LTD.
Children and Adult Services,Education,Transport,230008,Contract Hire,05-Aug-2014,2778453-S011/22,"1,242.00",S & S TRAVEL LTD.
Children and Adult Services,Education,Transport,230008,Contract Hire,05-Aug-2014,2778453-W052/11,"2,047.00",S & S TRAVEL LTD.
Children and Adult Services,Education,Transport,230008,Contract Hire,05-Aug-2014,2778453-W075/22,"1,159.20",S & S TRAVEL LTD.
Children and Adult Services,Education,Transport,230008,Contract Hire,05-Aug-2014,2778518-9977,"1,067.64",STANLEY TRAVEL (NORTH EAST) LTD.
Children and Adult Services,Education,Transport,230007,Contract Hire,05-Aug-2014,2778532-1707G,"2,925.24",T MOORE & SON.
Children and Adult Services,Childrens Services,Third Party Payments,440015,Other Third Party Payments,05-Aug-2014,2778718-967098,554.05,REDACTED - PAYMENT TO INDIVIDUAL
Children and Adult Services,Childrens Services,Third Party Payments,440028,Other Third Party Payments,05-Aug-2014,2778745-967354,571.71,REDACTED - PAYMENT TO INDIVIDUAL
Children and Adult Services,Childrens Services,Third Party Payments,440016,Other Third Party Payments,05-Aug-2014,2778856-967018,801.13,REDACTED - PAYMENT TO INDIVIDUAL
Children and Adult Services,Childrens Services,Third Party Payments,440035,Other Third Party Payments,05-Aug-2014,2778884-CAS-07-2014-129,518.22,REDACTED - PAYMENT TO INDIVIDUAL
Children and Adult Services,Childrens Services,Third Party Payments,440016,Other Third Party Payments,05-Aug-2014,2778905-967237,570.57,REDACTED - PAYMENT TO INDIVIDUAL
Children and Adult Services,Childrens Services,Third Party Payments,440027,Other Third Party Payments,05-Aug-2014,2778963-966375,"2,198.30",REDACTED - PAYMENT TO INDIVIDUAL
Children and Adult Services,Childrens Services,Third Party Payments,440001,Other Third Party Payments,05-Aug-2014,2779021-967369,"1,432.48",REDACTED - PAYMENT TO INDIVIDUAL
Children and Adult Services,Childrens Services,Third Party Payments,440001,Other Third Party Payments,05-Aug-2014,2779029-966643,814.00,REDACTED - PAYMENT TO INDIVIDUAL
Children and Adult Services,Childrens Services,Third Party Payments,440001,Other Third Party Payments,05-Aug-2014,2779029-966644,644.91,REDACTED - PAYMENT TO INDIVIDUAL
Children and Adult Services,Childrens Services,Third Party Payments,440001,Other Third Party Payments,05-Aug-2014,2779029-966645,708.55,REDACTED - PAYMENT TO INDIVIDUAL
Children and Adult Services,Childrens Services,Third Party Payments,440016,Other Third Party Payments,05-Aug-2014,2779096-967147,677.53,REDACTED - PAYMENT TO INDIVIDUAL
Children and Adult Services,Childrens Services,Third Party Payments,440001,Other Third Party Payments,05-Aug-2014,2779122-967370,644.91,REDACTED - PAYMENT TO INDIVIDUAL
Children and Adult Services,Childrens Services,Third Party Payments,440001,Other Third Party Payments,05-Aug-2014,2779196-966773,505.61,REDACTED - PAYMENT TO INDIVIDUAL
Children and Adult Services,Education,Construction Work,908105,Construction work,06-Aug-2014,2779236-60268123-27,"2,492.00",AECOM LTD.
Children and Adult Services,Education,Construction Work,908105,Construction work,06-Aug-2014,2779236-60268123-28,"2,849.50",AECOM LTD.
Children and Adult Services,Commissioning inc Supporting People,Third Party Payments,442002,Supporting People,06-Aug-2014,2779258-1958340,"17,375.04",BID SERVICES WITH DEAF PEOPLE.
Children and Adult Services,Education,Transport,230008,Contract Hire,06-Aug-2014,2779260-06567,"1,620.00",BIRDS TAXIS.
Children and Adult Services,Education,Transport,230008,Contract Hire,06-Aug-2014,2779260-06569,"2,121.00",BIRDS TAXIS.
Children and Adult Services,Education,Transport,230008,Contract Hire,06-Aug-2014,2779260-06570,"1,680.00",BIRDS TAXIS.
Children and Adult Services,Education,Transport,230008,Contract Hire,06-Aug-2014,2779260-06572,"1,722.00",BIRDS TAXIS.
Children and Adult Services,Education,Transport,230008,Contract Hire,06-Aug-2014,2779260-06581,"1,117.80",BIRDS TAXIS.
Children and Adult Services,Education,Transport,230008,Contract Hire,06-Aug-2014,2779260-06583,"1,393.80",BIRDS TAXIS.
Children and Adult Services,Education,Transport,230008,Contract Hire,06-Aug-2014,2779260-06584,"1,104.00",BIRDS TAXIS.
Children and Adult Services,Education,Transport,230008,Contract Hire,06-Aug-2014,2779260-06585,"1,062.60",BIRDS TAXIS.
Children and Adult Services,Education,Transport,230008,Contract Hire,06-Aug-2014,2779260-06586,"1,131.60",BIRDS TAXIS.
Children and Adult Services,Education,Transport,230008,Contract Hire,06-Aug-2014,2779260-106571,"1,617.00",BIRDS TAXIS.
Children and Adult Services,Childrens Services,Third Party Payments,479101,Purchase of Care,06-Aug-2014,2779286-3910004473,"9,783.91",CO DURHAM & DARLINGTON NHS FOUNDATION TRUST.
Children and Adult Services,Commissioning inc Supporting People,Third Party Payments,442002,Supporting People,06-Aug-2014,2779297-1958008,"19,868.48",CREATIVE SUPPORT LTD.
Children and Adult Services,Education,Transport,230008,Contract Hire,06-Aug-2014,2779298-4925,"1,835.50",CROFT BUSINESS SERVICES (UK) LTD T/A CROFT TAXIS.
Children and Adult Services,Education,Transport,230008,Contract Hire,06-Aug-2014,2779298-4926,652.96,CROFT BUSINESS SERVICES (UK) LTD T/A CROFT TAXIS.
Children and Adult Services,Education,Transport,230008,Contract Hire,06-Aug-2014,2779298-4928,"1,254.96",CROFT BUSINESS SERVICES (UK) LTD T/A CROFT TAXIS.
Children and Adult Services,Education,Transport,230008,Contract Hire,06-Aug-2014,2779298-4932,686.00,CROFT BUSINESS SERVICES (UK) LTD T/A CROFT TAXIS.
Children and Adult Services,Education,Transport,230007,Contract Hire,06-Aug-2014,2779298-4933,765.24,CROFT BUSINESS SERVICES (UK) LTD T/A CROFT TAXIS.
Children and Adult Services,Education,Transport,230006,Contract Hire,06-Aug-2014,2779298-4935,"1,043.00",CROFT BUSINESS SERVICES (UK) LTD T/A CROFT TAXIS.
Children and Adult Services,Education,Transport,230008,Contract Hire,06-Aug-2014,2779298-4936,"1,112.72",CROFT BUSINESS SERVICES (UK) LTD T/A CROFT TAXIS.
Children and Adult Services,Public Health,Third Party Payments,460803,Contract Payments,06-Aug-2014,2779299-SINV1987,"4,166.66",CSV COMMUNITY SERVICE VOLUNTEERS.
Children and Adult Services,Education,Transport,230008,Contract Hire,06-Aug-2014,2779305-49,828.00,D CROOK.
Children and Adult Services,Education,Transport,230008,Contract Hire,06-Aug-2014,2779308-DI201407,607.20,D&I TAXIS.
Children and Adult Services,Education,Transport,230008,Contract Hire,06-Aug-2014,2779309-074,"1,262.50",DA TRAVEL.
Children and Adult Services,Education,Transport,230008,Contract Hire,06-Aug-2014,2779309-076,759.00,DA TRAVEL.
Children and Adult Services,Education,Transport,230008,Contract Hire,06-Aug-2014,2779310-2249,963.76,DAVES MINIBUSES.
Children and Adult Services,Commissioning inc Supporting People,Third Party Payments,442002,Supporting People,06-Aug-2014,2779315-1958253,"5,668.48",DISC LTD.
Children and Adult Services,Commissioning inc Supporting People,Third Party Payments,442002,Supporting People,06-Aug-2014,2779315-1958290,"27,885.68",DISC LTD.
Children and Adult Services,Commissioning inc Supporting People,Third Party Payments,441001,Supporting People,06-Aug-2014,2779321-1958255,"20,819.76",DURHAM ACTION ON SINGLE HOUSING.
Children and Adult Services,Commissioning inc Supporting People,Third Party Payments,443001,Supporting People,06-Aug-2014,2779321-1958265,"3,689.80",DURHAM ACTION ON SINGLE HOUSING.
Children and Adult Services,Commissioning inc Supporting People,Third Party Payments,443001,Supporting People,06-Aug-2014,2779321-1958270,737.96,DURHAM ACTION ON SINGLE HOUSING.
Children and Adult Services,Commissioning inc Supporting People,Third Party Payments,441001,Supporting People,06-Aug-2014,2779327-1958293,"5,483.40",EAST DURHAM COMMUNITY INITIATIVES LTD.
Children and Adult Services,Education,Transport,230007,Contract Hire,06-Aug-2014,2779336-039,702.00,EXTREAM TAXI`S.
Children and Adult Services,Commissioning inc Supporting People,Third Party Payments,442002,Supporting People,06-Aug-2014,2779337-1958086,"9,851.44",FABRICK HOUSING GROUP LTD.
Children and Adult Services,Commissioning inc Supporting People,Third Party Payments,441001,Supporting People,06-Aug-2014,2779337-1958295,"26,571.84",FABRICK HOUSING GROUP LTD.
Children and Adult Services,Education,Transport,230007,Contract Hire,06-Aug-2014,2779344-0301,593.04,FMR SILVA PITA.
Children and Adult Services,Education,Transport,230007,Contract Hire,06-Aug-2014,2779344-0304,504.00,FMR SILVA PITA.
Children and Adult Services,Commissioning inc Supporting People,Third Party Payments,442002,Supporting People,06-Aug-2014,2779345-1958254,"30,071.20",FOUNDATION HOUSING.
Children and Adult Services,Childrens Services,Third Party Payments,486023,Service Level Agreements,06-Aug-2014,2779351-JULY1,"1,000.00",FUTURE LEISURE IN COXHOE (FLIC).
Children and Adult Services,Education,Transport,230008,Contract Hire,06-Aug-2014,2779358-W084/022,"1,560.00",GMC TAXIS NORTH EAST.
Children and Adult Services,Commissioning inc Supporting People,Third Party Payments,442002,Supporting People,06-Aug-2014,2779365-1958294,"5,995.44",HANOVER HOUSING ASSOCIATION.
Children and Adult Services,Commissioning inc Supporting People,Third Party Payments,441001,Supporting People,06-Aug-2014,2779366-1958257,"8,938.68",HARBOUR SUPPORT SERVICES.
Children and Adult Services,Education,Transport,230008,Contract Hire,06-Aug-2014,2779369-HT140,"2,300.80",HARRY`S TAXI`S.
Children and Adult Services,Education,Transport,230008,Contract Hire,06-Aug-2014,2779370-22,896.00,HENRYS TAXIS.
Children and Adult Services,Education,Transfer Payments,510026,School Children,06-Aug-2014,2779374-11/7/14,567.90,HIPPITOTS LTD.
Children and Adult Services,Education,Transfer Payments,510026,School Children,06-Aug-2014,2779374-APRIL-JULY2014,567.90,HIPPITOTS LTD.
Children and Adult Services,Education,Transport,230007,Contract Hire,06-Aug-2014,2779375-011221,"3,402.00",HODGSONS COACH OPERATORS LTD.
Children and Adult Services,Commissioning inc Supporting People,Third Party Payments,443001,Supporting People,06-Aug-2014,2779376-1958225,970.96,HOME HOUSING ASSOCIATION LTD.
Children and Adult Services,Education,Transport,230008,Contract Hire,06-Aug-2014,2779377-INV27,784.00,HORNDALE AJ`S TAXIS.
Children and Adult Services,Education,Transport,230008,Contract Hire,06-Aug-2014,2779392-61,812.00,JACK`S TAXIS.
Children and Adult Services,Education,Transport,230008,Contract Hire,06-Aug-2014,2779394-563,"1,750.00",JDS PRIVATE HIRE DURHAM.
Children and Adult Services,Education,Transport,230008,Contract Hire,06-Aug-2014,2779394-567,"1,120.00",JDS PRIVATE HIRE DURHAM.
Children and Adult Services,Education,Transport,230008,Contract Hire,06-Aug-2014,2779394-571,896.00,JDS PRIVATE HIRE DURHAM.
Children and Adult Services,Education,Transport,230008,Contract Hire,06-Aug-2014,2779394-572,999.60,JDS PRIVATE HIRE DURHAM.
Children and Adult Services,Education,Transport,230008,Contract Hire,06-Aug-2014,2779400-JK55-17/7/14,708.00,JK TAXIS.
Children and Adult Services,Education,Transport,230008,Contract Hire,06-Aug-2014,2779405-69,"1,642.20",JOHNS TAXIS (CHESTER LE STREET).
Children and Adult Services,Education,Transport,230009,Contract Hire,06-Aug-2014,2779409-723111,"1,148.00",JOVIAL PRIVATE HIRE.
Children and Adult Services,Education,Transport,230007,Contract Hire,06-Aug-2014,2779409-SJPS6,744.00,JOVIAL PRIVATE HIRE.
Children and Adult Services,Education,Transport,230008,Contract Hire,06-Aug-2014,2779421-1025,910.00,LD TAXIS.
Children and Adult Services,Education,Transport,230008,Contract Hire,06-Aug-2014,2779423-086,"1,349.20",LEE`S TAXIS.
Children and Adult Services,Education,Transport,230007,Contract Hire,06-Aug-2014,2779426-3026,756.00,LINCAB TAXIS.
Children and Adult Services,Education,Transport,230007,Contract Hire,06-Aug-2014,2779426-3027,924.00,LINCAB TAXIS.
Children and Adult Services,Education,Transport,230007,Contract Hire,06-Aug-2014,2779426-3028,"1,162.00",LINCAB TAXIS.
Children and Adult Services,Education,Transport,230008,Contract Hire,06-Aug-2014,2779426-3029,"1,006.50",LINCAB TAXIS.
Children and Adult Services,Education,Transport,230008,Contract Hire,06-Aug-2014,2779426-3031,"1,221.00",LINCAB TAXIS.
Children and Adult Services,Education,Transport,230008,Contract Hire,06-Aug-2014,2779435-73,"1,079.00",LORRAINES TAXIS.
Children and Adult Services,Education,Transport,230008,Contract Hire,06-Aug-2014,2779435-74-18/7/14,"1,144.00",LORRAINES TAXIS.
Children and Adult Services,Education,Transport,230008,Contract Hire,06-Aug-2014,2779443-20-16/7/14,780.00,MA BODDY.
Children and Adult Services,Education,Transport,230008,Contract Hire,06-Aug-2014,2779444-06/14087,875.00,MARK & JOHN CHISHOLM T/A (CHEVRON).
Children and Adult Services,Education,Transport,230007,Contract Hire,06-Aug-2014,2779444-06/143219,861.00,MARK & JOHN CHISHOLM T/A (CHEVRON).
Children and Adult Services,Education,Transport,230009,Contract Hire,06-Aug-2014,2779444-06/147252,500.00,MARK & JOHN CHISHOLM T/A (CHEVRON).
Children and Adult Services,Education,Transport,230008,Contract Hire,06-Aug-2014,2779444-07/14087,"1,750.00",MARK & JOHN CHISHOLM T/A (CHEVRON).
Children and Adult Services,Education,Transport,230008,Contract Hire,06-Aug-2014,2779444-071401,"1,430.00",MARK & JOHN CHISHOLM T/A (CHEVRON).
Children and Adult Services,Education,Transport,230008,Contract Hire,06-Aug-2014,2779444-071405,717.60,MARK & JOHN CHISHOLM T/A (CHEVRON).
Children and Adult Services,Education,Transport,230008,Contract Hire,06-Aug-2014,2779444-071406,655.50,MARK & JOHN CHISHOLM T/A (CHEVRON).
Children and Adult Services,Education,Transport,230008,Contract Hire,06-Aug-2014,2779444-071411,966.00,MARK & JOHN CHISHOLM T/A (CHEVRON).
Children and Adult Services,Childrens Services,Premises,108099,Service Repairs and Maintenance,06-Aug-2014,2779446-13240,638.04,MARKETING RESULTS LTD T/A BIRCHWOOD TRAINING.
Children and Adult Services,Education,Transport,230008,Contract Hire,06-Aug-2014,2779447-480714,634.80,MARKS TAXIS.
Children and Adult Services,Education,Transport,230008,Contract Hire,06-Aug-2014,2779450-04,"1,105.00",MAURICE & SONS.
Children and Adult Services,Childrens Services,Transport,230008,Contract Hire,06-Aug-2014,2779452-MCD1708,"1,240.00",MCDONALD TRAVEL.
Children and Adult Services,Education,Transport,230008,Contract Hire,06-Aug-2014,2779452-MCD1711,"1,526.00",MCDONALD TRAVEL.
Children and Adult Services,Education,Transport,230008,Contract Hire,06-Aug-2014,2779452-MCD1712,819.00,MCDONALD TRAVEL.
Children and Adult Services,Childrens Services,Transport,230008,Contract Hire,06-Aug-2014,2779452-MCD1713,868.00,MCDONALD TRAVEL.
Children and Adult Services,Commissioning inc Supporting People,Third Party Payments,442002,Supporting People,06-Aug-2014,2779455-1958259,"5,469.72",MENTAL HEALTH MATTERS.
Children and Adult Services,Education,Transport,230008,Contract Hire,06-Aug-2014,2779466-N071-011,"1,312.50",MISS KA SUTHERLAND T/A FERRYHILL TRAVEL TAXI & MINIBUS HIRE.
Children and Adult Services,Commissioning inc Supporting People,Third Party Payments,442002,Supporting People,06-Aug-2014,2779470-1958260,"5,240.36",MOVING ON.
Children and Adult Services,Education,Transport,230008,Contract Hire,06-Aug-2014,2779473-BRECK07-14,"2,360.00",MR CT WALKER T/A COLIN`S TAXIS.
Children and Adult Services,Education,Transport,230008,Contract Hire,06-Aug-2014,2779479-INVOICEQ,896.00,MR PHILIP YOUNG.
Children and Adult Services,Education,Supplies and Services,304259,Equipment and Materials,06-Aug-2014,2779487-201451267,620.25,NEOPOST FINANCE LTD.
Children and Adult Services,Redundant-LA,Cap Exp on Grants & Other Financial Assistance (REFCUS),918401,Capital grants,06-Aug-2014,2779489-CAS-07-2014-120,"28,800.00",NEW BEGINNINGS (MOORSIDE) CO LTD.
Children and Adult Services,Commissioning inc Supporting People,Third Party Payments,441001,Supporting People,06-Aug-2014,2779492-1958264,"7,791.04",NORCARE LTD.
Children and Adult Services,Commissioning inc Supporting People,Third Party Payments,441001,Supporting People,06-Aug-2014,2779492-1958271,"10,205.64",NORCARE LTD.
Children and Adult Services,Commissioning inc Supporting People,Third Party Payments,442002,Supporting People,06-Aug-2014,2779492-1958272,"1,800.52",NORCARE LTD.
Children and Adult Services,Education,Supplies and Services,352001,Conference Expenses,06-Aug-2014,2779493-10049,600.00,NORMA APPLEBY EARLY YEARS CONSULTANCY LTD.
Children and Adult Services,Childrens Services,Supplies and Services,384638,Miscellaneous Expenses,06-Aug-2014,2779494-0000018343,"2,081.91",NORTH EAST AUTISM SOCIETY.
Children and Adult Services,Childrens Services,Supplies and Services,384638,Miscellaneous Expenses,06-Aug-2014,2779495-0000018257,"1,800.00",NORTH EAST AUTISM SOCIETY.
Children and Adult Services,Education,Transport,230008,Contract Hire,06-Aug-2014,2779512-140635-30/6/14,"1,176.00",PRATTS TAXIS.
Children and Adult Services,Commissioning inc Supporting People,Third Party Payments,442002,Supporting People,06-Aug-2014,2779521-1958275,"7,356.72",RICHMOND FELLOWSHIP.
Children and Adult Services,Commissioning inc Supporting People,Third Party Payments,444002,Supporting People,06-Aug-2014,2779521-1958276,"4,438.08",RICHMOND FELLOWSHIP.
Children and Adult Services,Commissioning inc Supporting People,Third Party Payments,441001,Supporting People,06-Aug-2014,2779521-1958288,"9,423.88",RICHMOND FELLOWSHIP.
Children and Adult Services,Education,Construction Work,908105,Construction work,06-Aug-2014,2779528-INV-3407,"1,199.50",ROGERS GEOTECHNICAL SERVICES LTD.
Children and Adult Services,Education,Transport,230008,Contract Hire,06-Aug-2014,2779529-1592,"1,628.40",RONS TAXIS.
Children and Adult Services,Head of Adults,Supplies and Services,338365,Services,06-Aug-2014,2779534-21366,507.50,SAFETY SYSTEMS DISTRIBUTION LTD.
Children and Adult Services,Commissioning inc Supporting People,Third Party Payments,442002,Supporting People,06-Aug-2014,2779541-1958261,"9,044.36",SHAID.
Children and Adult Services,Education,Transport,230008,Contract Hire,06-Aug-2014,2779545-71457,"1,242.00",SHOTTON PRIVATE HIRE.
Children and Adult Services,Education,Transport,230008,Contract Hire,06-Aug-2014,2779547-INV07410614,976.32,SMILERS TAXIS.
Children and Adult Services,Education,Transport,230008,Contract Hire,06-Aug-2014,2779558-9979,"1,693.72",STANLEY TRAVEL (NORTH EAST) LTD.
Children and Adult Services,Education,Transport,230008,Contract Hire,06-Aug-2014,2779558-9980,896.00,STANLEY TRAVEL (NORTH EAST) LTD.
Children and Adult Services,Childrens Services,Transport,230008,Contract Hire,06-Aug-2014,2779558-9981,753.20,STANLEY TRAVEL (NORTH EAST) LTD.
Children and Adult Services,Education,Transport,230008,Contract Hire,06-Aug-2014,2779558-9985,"1,027.60",STANLEY TRAVEL (NORTH EAST) LTD.
Children and Adult Services,Education,Transport,230008,Contract Hire,06-Aug-2014,2779558-9987,"1,176.00",STANLEY TRAVEL (NORTH EAST) LTD.
Children and Adult Services,Commissioning inc Supporting People,Third Party Payments,441001,Supporting People,06-Aug-2014,2779562-1958015,"71,243.52",STONHAM HOUSING ASSOCIATION LTD.
Children and Adult Services,Commissioning inc Supporting People,Third Party Payments,442002,Supporting People,06-Aug-2014,2779562-1958245,"32,872.00",STONHAM HOUSING ASSOCIATION LTD.
Children and Adult Services,Commissioning inc Supporting People,Third Party Payments,442002,Supporting People,06-Aug-2014,2779562-1958247,"145,778.32",STONHAM HOUSING ASSOCIATION LTD.
Children and Adult Services,Commissioning inc Supporting People,Third Party Payments,442002,Supporting People,06-Aug-2014,2779562-1958274,"29,343.52",STONHAM HOUSING ASSOCIATION LTD.
Children and Adult Services,Commissioning inc Supporting People,Third Party Payments,443001,Supporting People,06-Aug-2014,2779562-1958305,"24,229.28",STONHAM HOUSING ASSOCIATION LTD.
Children and Adult Services,Commissioning inc Supporting People,Third Party Payments,443001,Supporting People,06-Aug-2014,2779562-1958335,"5,857.94",STONHAM HOUSING ASSOCIATION LTD.
Children and Adult Services,Education,Transport,230008,Contract Hire,06-Aug-2014,2779569-1169-19/7/14,"1,265.00",TAILORMADE TRAVEL.
Children and Adult Services,Education,Transport,230008,Contract Hire,06-Aug-2014,2779570-1888,940.00,TALBOTS TAXIS.
Children and Adult Services,Education,Transport,230008,Contract Hire,06-Aug-2014,2779571-B679,812.00,TALBOTS TRAVEL LTD.
Children and Adult Services,Education,Transport,230008,Contract Hire,06-Aug-2014,2779572-07/2014/059,"1,680.00",TARNS TAXIS LTD.
Children and Adult Services,Commissioning inc Supporting People,Third Party Payments,441001,Supporting People,06-Aug-2014,2779579-1958158,"19,231.20",THE CYRENIANS LTD.
Children and Adult Services,Education,Transport,230008,Contract Hire,06-Aug-2014,2779583-131,607.20,THE TAXI COMPANY (MURTON) LTD.
Children and Adult Services,Commissioning inc Supporting People,Third Party Payments,441001,Supporting People,06-Aug-2014,2779585-1958248,"9,402.72",THREE RIVERS HOUSING ASSOCIATION LTD.
Children and Adult Services,Commissioning inc Supporting People,Third Party Payments,442002,Supporting People,06-Aug-2014,2779585-1958289,"36,446.00",THREE RIVERS HOUSING ASSOCIATION LTD.
Children and Adult Services,Commissioning inc Supporting People,Third Party Payments,442002,Supporting People,06-Aug-2014,2779585-1958302,"3,449.96",THREE RIVERS HOUSING ASSOCIATION LTD.
Children and Adult Services,Education,Transport,230007,Contract Hire,06-Aug-2014,2779587-2351,"1,652.00",TM TRAVEL.
Children and Adult Services,Education,Transport,230007,Contract Hire,06-Aug-2014,2779587-2352,"1,820.00",TM TRAVEL.
Children and Adult Services,Education,Transport,230007,Contract Hire,06-Aug-2014,2779587-2353,"1,652.00",TM TRAVEL.
Children and Adult Services,Education,Transport,230007,Contract Hire,06-Aug-2014,2779587-2354,"5,852.00",TM TRAVEL.
Children and Adult Services,Education,Transport,230007,Contract Hire,06-Aug-2014,2779587-2355,966.00,TM TRAVEL.
Children and Adult Services,Education,Transport,230007,Contract Hire,06-Aug-2014,2779587-2356,"1,330.00",TM TRAVEL.
Children and Adult Services,Education,Transport,230008,Contract Hire,06-Aug-2014,2779589-ED222,"1,708.00",TONYS TAXIS (A BIRCH).
Children and Adult Services,Education,Transport,230008,Contract Hire,06-Aug-2014,2779589-ED223,690.00,TONYS TAXIS (A BIRCH).
Children and Adult Services,Education,Transport,230008,Contract Hire,06-Aug-2014,2779589-ED225,806.00,TONYS TAXIS (A BIRCH).
Children and Adult Services,Education,Transport,230008,Contract Hire,06-Aug-2014,2779591-TS20-22,"1,400.00",TOP STAR TRAVEL.
Children and Adult Services,Education,Supplies and Services,352001,Conference Expenses,06-Aug-2014,2779593-802,650.00,TRAINING LADDER LTD.
Children and Adult Services,Education,Transport,230008,Contract Hire,06-Aug-2014,2779595-012,588.00,TRIDENT TAXIS.
Children and Adult Services,Commissioning inc Supporting People,Third Party Payments,441001,Supporting People,06-Aug-2014,2779604-1958273,"1,183.60",WADDINGTON STREET CENTRE LTD.
Children and Adult Services,Education,Transport,230008,Contract Hire,06-Aug-2014,2779607-898,"1,380.00",WAYNE`S TAXIS.
Children and Adult Services,Education,Transport,230008,Contract Hire,06-Aug-2014,2779607-899,"1,242.00",WAYNE`S TAXIS.
Children and Adult Services,Education,Transport,230008,Contract Hire,06-Aug-2014,2779607-900,"1,478.40",WAYNE`S TAXIS.
Children and Adult Services,Commissioning inc Supporting People,Third Party Payments,441001,Supporting People,06-Aug-2014,2779608-1958256,"7,157.00",WEAR VALLEY WOMENS AID.
Children and Adult Services,Education,Supplies and Services,342225,Computers and Communications,06-Aug-2014,2779616-V870499,570.24,XMA LTD.
Children and Adult Services,Head of Adults,Transport,230005,Contract Hire,07-Aug-2014,2779619-EA220755,"1,932.00",A MURRAY TRAVEL.
Children and Adult Services,Childrens Services,Third Party Payments,425040,Rendered by Voluntary Organisations,07-Aug-2014,2779626-146501856,"3,325.58",BARNARDOS.
Children and Adult Services,Childrens Services,Third Party Payments,425040,Rendered by Voluntary Organisations,07-Aug-2014,2779626-146501858,"3,594.14",BARNARDOS.
Children and Adult Services,Head of Adults,Transport,230005,Contract Hire,07-Aug-2014,2779628-06561,"3,154.00",BIRDS TAXIS.
Children and Adult Services,Head of Adults,Transport,230005,Contract Hire,07-Aug-2014,2779628-06573,"3,283.12",BIRDS TAXIS.
Children and Adult Services,Childrens Services,Employees,080025,Agency Staff,07-Aug-2014,2779636-540133,"133,361.32",COMENSURA LTD.
Children and Adult Services,Education,Transport,230006,Contract Hire,07-Aug-2014,2779642-4937,594.44,CROFT BUSINESS SERVICES (UK) LTD T/A CROFT TAXIS.
Children and Adult Services,Childrens Services,Third Party Payments,486023,Service Level Agreements,07-Aug-2014,2779648-ONEPOINT,500.00,DJ EVANS YOUTH CLUB.
Children and Adult Services,Education,Transport,230007,Contract Hire,07-Aug-2014,2779649-0617,630.00,EN ROUTE TRAVEL.
Children and Adult Services,Education,Transport,230008,Contract Hire,07-Aug-2014,2779649-0618,"1,034.87",EN ROUTE TRAVEL.
Children and Adult Services,Education,Transport,230007,Contract Hire,07-Aug-2014,2779655-1387,"1,795.92",GEM TRAVEL.
Children and Adult Services,Head of Adults,Transport,230005,Contract Hire,07-Aug-2014,2779664-2014/16,795.80,JM HUMBLE COACH HIRE.
Children and Adult Services,Public Health,Third Party Payments,460803,Contract Payments,07-Aug-2014,2779665,"1,538.32",JOHN LOW LTD T/A MOORSIDE PHARMACY.
Children and Adult Services,Head of Adults,Transport,230005,Contract Hire,07-Aug-2014,2779672-00688,"1,357.00",MICHAELS TRAVEL.
Children and Adult Services,Head of Adults,Transport,230005,Contract Hire,07-Aug-2014,2779676-460,"1,470.00",MOLLYS TAXIS.
Children and Adult Services,Head of Adults,Transport,230005,Contract Hire,07-Aug-2014,2779676-461,540.00,MOLLYS TAXIS.
Children and Adult Services,Head of Adults,Transport,230005,Contract Hire,07-Aug-2014,2779676-465,"1,404.00",MOLLYS TAXIS.
Children and Adult Services,Head of Adults,Transport,230005,Contract Hire,07-Aug-2014,2779676-467,"1,092.00",MOLLYS TAXIS.
Children and Adult Services,Childrens Services,Third Party Payments,425040,Rendered by Voluntary Organisations,07-Aug-2014,2779681-18000007053361,"2,803.80",NEWCASTLE UPON TYNE CITY COUNCIL.
Children and Adult Services,Head of Adults,Premises,108099,Service Repairs and Maintenance,07-Aug-2014,2779682-9672074,713.70,NISBETS PLC.
Children and Adult Services,Childrens Services,Supplies and Services,384638,Miscellaneous Expenses,07-Aug-2014,2779684-0000014845,513.00,NORTH EAST AUTISM SOCIETY.
Children and Adult Services,Childrens Services,Supplies and Services,384638,Miscellaneous Expenses,07-Aug-2014,2779684-0000015769,677.25,NORTH EAST AUTISM SOCIETY.
Children and Adult Services,Childrens Services,Supplies and Services,384638,Miscellaneous Expenses,07-Aug-2014,2779684-0000015778,"1,260.00",NORTH EAST AUTISM SOCIETY.
Children and Adult Services,Childrens Services,Supplies and Services,384638,Miscellaneous Expenses,07-Aug-2014,2779684-0000016754,"1,039.50",NORTH EAST AUTISM SOCIETY.
Children and Adult Services,Childrens Services,Supplies and Services,384638,Miscellaneous Expenses,07-Aug-2014,2779684-0000018255,"1,008.00",NORTH EAST AUTISM SOCIETY.
Children and Adult Services,Childrens Services,Supplies and Services,384638,Miscellaneous Expenses,07-Aug-2014,2779684-0000018270,"1,674.00",NORTH EAST AUTISM SOCIETY.
Children and Adult Services,Childrens Services,Supplies and Services,384638,Miscellaneous Expenses,07-Aug-2014,2779684-0000018272,895.50,NORTH EAST AUTISM SOCIETY.
Children and Adult Services,Childrens Services,Supplies and Services,384638,Miscellaneous Expenses,07-Aug-2014,2779684-0000018274,"1,143.00",NORTH EAST AUTISM SOCIETY.
Children and Adult Services,Childrens Services,Supplies and Services,384638,Miscellaneous Expenses,07-Aug-2014,2779684-0000018275,"1,107.00",NORTH EAST AUTISM SOCIETY.
Children and Adult Services,Childrens Services,Supplies and Services,384638,Miscellaneous Expenses,07-Aug-2014,2779684-0000018276,"4,158.00",NORTH EAST AUTISM SOCIETY.
Children and Adult Services,Childrens Services,Supplies and Services,384638,Miscellaneous Expenses,07-Aug-2014,2779684-0000018278,652.50,NORTH EAST AUTISM SOCIETY.
Children and Adult Services,Childrens Services,Supplies and Services,384638,Miscellaneous Expenses,07-Aug-2014,2779684-0000018284,630.00,NORTH EAST AUTISM SOCIETY.
Children and Adult Services,Childrens Services,Supplies and Services,384638,Miscellaneous Expenses,07-Aug-2014,2779684-0000018335,607.79,NORTH EAST AUTISM SOCIETY.
Children and Adult Services,Childrens Services,Supplies and Services,384638,Miscellaneous Expenses,07-Aug-2014,2779684-0000018340,"3,347.52",NORTH EAST AUTISM SOCIETY.
Children and Adult Services,Childrens Services,Supplies and Services,384638,Miscellaneous Expenses,07-Aug-2014,2779684-0000018342,531.82,NORTH EAST AUTISM SOCIETY.
Children and Adult Services,Head of Adults,Transport,230005,Contract Hire,07-Aug-2014,2779692-140705,779.20,PRATTS TAXIS.
Children and Adult Services,Education,Transport,230008,Contract Hire,07-Aug-2014,2779700-1861,"1,344.00",STAR CABS.
Children and Adult Services,Education,Transport,230008,Contract Hire,08-Aug-2014,2779721-V30/ST,"1,239.00",AABAT TAXIS.
Children and Adult Services,Education,Transport,230007,Contract Hire,08-Aug-2014,2779721-W14/SB,"1,540.00",AABAT TAXIS.
Children and Adult Services,Education,Transport,230008,Contract Hire,08-Aug-2014,2779721-W15/SE,"1,750.00",AABAT TAXIS.
Children and Adult Services,Education,Transport,230008,Contract Hire,08-Aug-2014,2779721-W16/SC,"1,311.00",AABAT TAXIS.
Children and Adult Services,Education,Transport,230008,Contract Hire,08-Aug-2014,2779721-W22/SF,883.20,AABAT TAXIS.
Children and Adult Services,Education,Transport,230008,Contract Hire,08-Aug-2014,2779721-W23/SH,"1,090.20",AABAT TAXIS.
Children and Adult Services,Education,Transport,230008,Contract Hire,08-Aug-2014,2779721-W24/SJ,798.70,AABAT TAXIS.
Children and Adult Services,Education,Transport,230008,Contract Hire,08-Aug-2014,2779721-W26/SV,"1,021.20",AABAT TAXIS.
Children and Adult Services,Head of Adults,Transport,230005,Contract Hire,08-Aug-2014,2779721-W27/SX,810.00,AABAT TAXIS.
Children and Adult Services,Education,Transport,230008,Contract Hire,08-Aug-2014,2779721-W29/SY,"1,032.40",AABAT TAXIS.
Children and Adult Services,Education,Transport,230007,Contract Hire,08-Aug-2014,2779721-W30/SBB,579.60,AABAT TAXIS.
Children and Adult Services,Education,Transport,230008,Contract Hire,08-Aug-2014,2779721-W31/SCC,858.00,AABAT TAXIS.
Children and Adult Services,Education,Transport,230007,Contract Hire,08-Aug-2014,2779721-W32/SDD,947.00,AABAT TAXIS.
Children and Adult Services,Education,Transport,230006,Contract Hire,08-Aug-2014,2779721-W33/SK,786.50,AABAT TAXIS.
Children and Adult Services,Education,Transport,230007,Contract Hire,08-Aug-2014,2779721-W36/SJJ,814.20,AABAT TAXIS.
Children and Adult Services,Head of Adults,Transport,230005,Contract Hire,08-Aug-2014,2779721-W40/SN,760.20,AABAT TAXIS.
Children and Adult Services,Education,Transport,230008,Contract Hire,08-Aug-2014,2779721-W41/SZ,"1,190.00",AABAT TAXIS.
Children and Adult Services,Education,Transport,230008,Contract Hire,08-Aug-2014,2779722-0201,"1,269.60",ABC & OUSTON CABS.
Children and Adult Services,Education,Transport,230008,Contract Hire,08-Aug-2014,2779722-0202,546.00,ABC & OUSTON CABS.
Children and Adult Services,Education,Transport,230008,Contract Hire,08-Aug-2014,2779722-0203,"1,356.80",ABC & OUSTON CABS.
Children and Adult Services,Childrens Services,Transport,230008,Contract Hire,08-Aug-2014,2779722-0204,784.00,ABC & OUSTON CABS.
Children and Adult Services,Education,Transport,230007,Contract Hire,08-Aug-2014,2779725-559,"1,088.00",AC TAXIS.
Children and Adult Services,Childrens Services,Premises,108099,Service Repairs and Maintenance,08-Aug-2014,2779728-23563,595.00,ACCORDIAL MANUFACTURING LTD.
Children and Adult Services,Education,Transport,230008,Contract Hire,08-Aug-2014,2779764-417,980.00,AT TAXIS LTD.
Children and Adult Services,Education,Transport,230008,Contract Hire,08-Aug-2014,2779764-418,990.00,AT TAXIS LTD.
Children and Adult Services,Education,Transport,230008,Contract Hire,08-Aug-2014,2779764-419,744.80,AT TAXIS LTD.
Children and Adult Services,Education,Transport,230006,Contract Hire,08-Aug-2014,2779770-F538/2-18/7/14,560.00,B&C YELLOWCAB TAXI`S.
Children and Adult Services,Education,Transport,230008,Contract Hire,08-Aug-2014,2779781-10JULY14,"1,104.00",BEELINE PRIVATE HIRE.
Children and Adult Services,Education,Transport,230008,Contract Hire,08-Aug-2014,2779781-1JULY14,"1,275.26",BEELINE PRIVATE HIRE.
Children and Adult Services,Education,Transport,230008,Contract Hire,08-Aug-2014,2779781-9JULY14,759.00,BEELINE PRIVATE HIRE.
Children and Adult Services,Education,Transport,230008,Contract Hire,08-Aug-2014,2779782-34,"1,240.00",BEELINE TAXIS.
Children and Adult Services,Childrens Services,Supplies and Services,384491,Miscellaneous Expenses,08-Aug-2014,2779792-L1417,"1,050.00",BISHOP AUCKLAND METHODIST CHURCH.
Children and Adult Services,Education,Transport,230008,Contract Hire,08-Aug-2014,2779805-0714,"1,790.88",BRIAN WAKE T/A BRIAN`S TAXIS.
Children and Adult Services,Education,Transport,230008,Contract Hire,08-Aug-2014,2779814-107,"1,632.40",BURNDALE PRIVATE HIRE.
Children and Adult Services,Education,Transport,230008,Contract Hire,08-Aug-2014,2779817-BIL0046,966.00,CA MUSGROVE.
Children and Adult Services,Public Health,Third Party Payments,460803,Contract Payments,08-Aug-2014,2779873-TVDA00125,"10,000.00",CRUSE BEREAVEMENT CARE.
Children and Adult Services,Public Health,Third Party Payments,460803,Contract Payments,08-Aug-2014,2779873-TVDA00126,"10,000.00",CRUSE BEREAVEMENT CARE.
Children and Adult Services,Education,Transport,230008,Contract Hire,08-Aug-2014,2779879-OAK029,913.56,D IRVING T/A BJ TAXIS.
Children and Adult Services,Public Health,Third Party Payments,460802,Contract Payments,08-Aug-2014,2779902-113/15/1207,"12,000.00",DISC LTD.
Children and Adult Services,Childrens Services,Third Party Payments,486023,Service Level Agreements,08-Aug-2014,2779903,500.00,DJ EVANS YOUTH CLUB.
Children and Adult Services,Planning & Service Strategy,Supplies and Services,338089,Services,08-Aug-2014,2780004-0000024429,"1,000.00",HEADWAY - THE BRAIN INJURY ASSOCIATION.
Children and Adult Services,Education,Transport,230008,Contract Hire,08-Aug-2014,2780024-02/2014-18/7/14,980.00,I CLYDESDALE T/A BURNOPFIELD TAXIS.
Children and Adult Services,Education,Transport,230008,Contract Hire,08-Aug-2014,2780025-11,650.00,IAN SHEPLEY T/A SHEPPA`S TAXIS.
Children and Adult Services,Childrens Services,Supplies and Services,384302,Miscellaneous Expenses,08-Aug-2014,2780066-JAN-DEC2013,"1,600.00",LAUREL AVENUE COMMUNITY ASSOCIATION.
Children and Adult Services,Education,Transport,230007,Contract Hire,08-Aug-2014,2780086-206,650.00,MA BODDY.
Children and Adult Services,Education,Transport,230008,Contract Hire,08-Aug-2014,2780086-EV-15,"1,239.70",MA BODDY.
Children and Adult Services,Education,Transport,230008,Contract Hire,08-Aug-2014,2780092-380714,952.00,MARKS TAXIS.
Children and Adult Services,Education,Transport,230008,Contract Hire,08-Aug-2014,2780100-MCD1709,"1,333.00",MCDONALD TRAVEL.
Children and Adult Services,Education,Supplies and Services,384199,Miscellaneous Expenses,08-Aug-2014,2780102-INVOICE,937.00,MENCAP.
Children and Adult Services,Education,Transport,230008,Contract Hire,08-Aug-2014,2780111-KDC010714,"1,629.00",MJ TIMNEY T/A KDC & C&M TAXIS.
Children and Adult Services,Education,Transport,230008,Contract Hire,08-Aug-2014,2780121-22B,682.64,MR RAYMOND RENWICK.
Children and Adult Services,Education,Transport,230007,Contract Hire,08-Aug-2014,2780152-776,"2,015.00",NORTH STAR TRAVEL.
Children and Adult Services,Education,Transport,230008,Contract Hire,08-Aug-2014,2780168-5732,"1,097.10",OVERLANDER LTD.
Children and Adult Services,Education,Transport,230008,Contract Hire,08-Aug-2014,2780168-5734,"1,138.50",OVERLANDER LTD.
Children and Adult Services,Education,Transport,230008,Contract Hire,08-Aug-2014,2780182-0327,532.00,PETER`S PRIVATE HIRE/PETER BEST.
Children and Adult Services,Education,Transport,230008,Contract Hire,08-Aug-2014,2780183-679,"1,232.00",PG TRIPS.
Children and Adult Services,Education,Transport,230008,Contract Hire,08-Aug-2014,2780185-00975,910.00,PHILLIPS TAXI GROUP LTD.
Children and Adult Services,Public Health,Third Party Payments,460802,Contract Payments,08-Aug-2014,2780190-12437/15,"1,555.00",PIONEERING CARE PARTNERSHIP.
Children and Adult Services,Education,Transport,230007,Contract Hire,08-Aug-2014,2780211-1369,"6,440.00",PYGALL COACH HIRE.
Children and Adult Services,Education,Transport,230007,Contract Hire,08-Aug-2014,2780211-1370,"2,100.00",PYGALL COACH HIRE.
Children and Adult Services,Education,Transport,230007,Contract Hire,08-Aug-2014,2780211-1371,"1,750.00",PYGALL COACH HIRE.
Children and Adult Services,Education,Transport,230007,Contract Hire,08-Aug-2014,2780211-1372,"1,372.00",PYGALL COACH HIRE.
Children and Adult Services,Childrens Services,Supplies and Services,338078,Services,08-Aug-2014,2780212-4336,"15,135.21",QW SECURITY LTD.
Children and Adult Services,Education,Transport,230008,Contract Hire,08-Aug-2014,2780226-2153,844.80,RICHIES TAXIS.
Children and Adult Services,Education,Transport,230008,Contract Hire,08-Aug-2014,2780233-106,"1,228.20",ROBBIE`S PRIVATE HIRE.
Children and Adult Services,Education,Transport,230008,Contract Hire,08-Aug-2014,2780237-NO33-JULY,"1,190.00",RONS TAXI.
Children and Adult Services,Childrens Services,Third Party Payments,486023,Service Level Agreements,08-Aug-2014,2780241-DCCONEPOINT,"1,000.00",SACRISTON COMMUNITY ASSOCIATION.
Children and Adult Services,Education,Transport,230008,Contract Hire,08-Aug-2014,2780250-67,"1,240.00",SAZ CABS.
Children and Adult Services,Education,Transport,230008,Contract Hire,08-Aug-2014,2780285-39,942.50,SIMONS TAXIS.
Children and Adult Services,Education,Transport,230008,Contract Hire,08-Aug-2014,2780294-0740114,840.28,SMILERS TAXIS.
Children and Adult Services,Education,Transport,230008,Contract Hire,08-Aug-2014,2780294-INV071479,"1,050.00",SMILERS TAXIS.
Children and Adult Services,Education,Transport,230008,Contract Hire,08-Aug-2014,2780297-125,598.00,SODA TAXIS.
Children and Adult Services,Education,Transport,230008,Contract Hire,08-Aug-2014,2780297-304-18/7/14,980.00,SODA TAXIS.
Children and Adult Services,Education,Supplies and Services,338094,Services,08-Aug-2014,2780302,775.50,SOUTH CAUSEY LTD T/A SOUTH CAUSEY INN.
Children and Adult Services,Education,Transport,230008,Contract Hire,08-Aug-2014,2780333-1007A,"1,138.50",T MOORE & SON.
Children and Adult Services,Education,Supplies and Services,304259,Equipment and Materials,08-Aug-2014,2780339-243036,691.20,TEACHER BOARDS.
Children and Adult Services,Head of Adults,Transport,230005,Contract Hire,08-Aug-2014,2780393-902,"1,610.00",WAYNE`S TAXIS.
Children and Adult Services,Head of Adults,Transport,230005,Contract Hire,08-Aug-2014,2780393-904,"1,390.00",WAYNE`S TAXIS.
Children and Adult Services,Commissioning inc Supporting People,Third Party Payments,473111,Purchase of Care,11-Aug-2014,2780425-2QTR-1/7-30/9/14,"4,194.50",ASSOCIATION OF TEESDALE DAY CLUBS.
Children and Adult Services,Public Health,Third Party Payments,460803,Contract Payments,11-Aug-2014,2780457-166,"26,577.00",LIVING MINDFULLY CIC.
Children and Adult Services,Education,Transport,230008,Contract Hire,11-Aug-2014,2780459-1880,"1,364.00",LOCAL TRANSPORT LTD.
Children and Adult Services,Education,Construction Work,908105,Construction work,11-Aug-2014,2780465-IP/JEK/4753/264,"4,481.23",MGL DEMOLITION LTD.
Children and Adult Services,Education,Transport,230008,Contract Hire,11-Aug-2014,2780468-464,"1,176.00",MOLLYS TAXIS.
Children and Adult Services,Education,Transport,230008,Contract Hire,11-Aug-2014,2780468-466,"1,760.00",MOLLYS TAXIS.
Children and Adult Services,Education,Transport,230008,Contract Hire,11-Aug-2014,2780468-468,"1,344.00",MOLLYS TAXIS.
Children and Adult Services,Education,Supplies and Services,304259,Equipment and Materials,11-Aug-2014,2780476-201436475,"1,188.21",NEOPOST FINANCE LTD.
Children and Adult Services,Central Charges,Long Term Debtors,924003,Independent sector care providers,11-Aug-2014,2780480-CAS-07-2014-148,"17,000.00",OAKLEA TRUST.
Children and Adult Services,Childrens Services,Third Party Payments,440016,Other Third Party Payments,12-Aug-2014,2780710-968217,525.56,REDACTED - PAYMENT TO INDIVIDUAL
Children and Adult Services,Education,Transport,230008,Contract Hire,12-Aug-2014,2781120-AA949JULY2014,"1,050.00",AA MINIBUS HIRE.
Children and Adult Services,Childrens Services,Transport,230005,Contract Hire,12-Aug-2014,2781121-W17/SW,"1,106.00",AABAT TAXIS.
Children and Adult Services,Education,Transport,230008,Contract Hire,12-Aug-2014,2781167-1326,"1,780.20",BOBBY DOVE.
Children and Adult Services,Education,Transport,230008,Contract Hire,12-Aug-2014,2781202-35/2014,"1,092.00",CHRIS`S TAXI.
Children and Adult Services,Education,Transport,230007,Contract Hire,12-Aug-2014,2781209-0001296,560.00,COLORS TAXIS LTD.
Children and Adult Services,Education,Transport,230008,Contract Hire,12-Aug-2014,2781209-0001308,805.00,COLORS TAXIS LTD.
Children and Adult Services,Education,Transport,230008,Contract Hire,12-Aug-2014,2781224-4927,"1,189.72",CROFT BUSINESS SERVICES (UK) LTD T/A CROFT TAXIS.
Children and Adult Services,Education,Transport,230008,Contract Hire,12-Aug-2014,2781231-2248,915.12,DAVES MINIBUSES.
Children and Adult Services,Education,Supplies and Services,384199,Miscellaneous Expenses,12-Aug-2014,2781243-191/14,"10,282.00",DISC LTD.
Children and Adult Services,Education,Supplies and Services,384199,Miscellaneous Expenses,12-Aug-2014,2781243-192/14,"10,720.00",DISC LTD.
Children and Adult Services,Education,Supplies and Services,384199,Miscellaneous Expenses,12-Aug-2014,2781243-326/13/1254,"10,938.00",DISC LTD.
Children and Adult Services,Education,Transport,230007,Contract Hire,12-Aug-2014,2781287-16569,"5,418.00",GARNETTS LTD (COACHES).
Children and Adult Services,Education,Transport,230007,Contract Hire,12-Aug-2014,2781287-16602,"25,480.54",GARNETTS LTD (COACHES).
Children and Adult Services,Education,Transport,230007,Contract Hire,12-Aug-2014,2781307-011264,700.00,HODGSONS COACH OPERATORS LTD.
Children and Adult Services,Childrens Services,Supplies and Services,338045,Services,12-Aug-2014,2781307-011324,"4,747.85",HODGSONS COACH OPERATORS LTD.
Children and Adult Services,Education,Transport,230008,Contract Hire,12-Aug-2014,2781322-759,700.00,J YOUNG T/A VIP TAXIS.
Children and Adult Services,Education,Transport,230008,Contract Hire,12-Aug-2014,2781345-11-18/7/14,"1,339.00",KD TAXIS.
Children and Adult Services,Education,Transport,230008,Contract Hire,12-Aug-2014,2781353-KW282,700.00,KWIK CABS.
Children and Adult Services,Education,Transport,230007,Contract Hire,12-Aug-2014,2781360-19898,"1,369.50",LEE`S COACHES LTD.
Children and Adult Services,Education,Transport,230007,Contract Hire,12-Aug-2014,2781360-20531,"3,345.86",LEE`S COACHES LTD.
Children and Adult Services,Education,Transport,230007,Contract Hire,12-Aug-2014,2781360-20532,"1,618.50",LEE`S COACHES LTD.
Children and Adult Services,Education,Transport,230007,Contract Hire,12-Aug-2014,2781360-20533,"1,666.00",LEE`S COACHES LTD.
Children and Adult Services,Head of Adults,Transport,230005,Contract Hire,12-Aug-2014,2781386-00686,"1,106.00",MICHAELS TRAVEL.
Children and Adult Services,Head of Adults,Transport,230005,Contract Hire,12-Aug-2014,2781393-630,"3,105.00",MR AD HOWARD.
Children and Adult Services,Education,Transport,230008,Contract Hire,12-Aug-2014,2781394-011A,"1,438.65",MR GN ROBBINS T/A GNR MINIBUS HIRE.
Children and Adult Services,Education,Transport,230008,Contract Hire,12-Aug-2014,2781394-012A,"1,073.64",MR GN ROBBINS T/A GNR MINIBUS HIRE.
Children and Adult Services,Childrens Services,Supplies and Services,384638,Miscellaneous Expenses,12-Aug-2014,2781410-0000018279,630.00,NORTH EAST AUTISM SOCIETY.
Children and Adult Services,Education,Transport,230008,Contract Hire,12-Aug-2014,2781439-1005,918.00,PODA LTD.
Children and Adult Services,Education,Transport,230007,Contract Hire,12-Aug-2014,2781474-JULY14-07,585.00,SCOTT LEE BURTON.
Children and Adult Services,Education,Transport,230007,Contract Hire,12-Aug-2014,2781489-2378,"2,517.00",SNOWDON COACHES.
Children and Adult Services,Childrens Services,Third Party Payments,425040,Rendered by Voluntary Organisations,12-Aug-2014,2781498-1150553,"3,100.00",ST CUTHBERTS CARE.
Children and Adult Services,Childrens Services,Transport,230008,Contract Hire,12-Aug-2014,2781502-9982,799.40,STANLEY TRAVEL (NORTH EAST) LTD.
Children and Adult Services,Childrens Services,Transport,230008,Contract Hire,12-Aug-2014,2781502-9983,948.92,STANLEY TRAVEL (NORTH EAST) LTD.
Children and Adult Services,Education,Transport,230008,Contract Hire,12-Aug-2014,2781502-9984,742.00,STANLEY TRAVEL (NORTH EAST) LTD.
Children and Adult Services,Education,Transport,230008,Contract Hire,12-Aug-2014,2781502-9986,"1,314.40",STANLEY TRAVEL (NORTH EAST) LTD.
Children and Adult Services,Education,Transport,230008,Contract Hire,12-Aug-2014,2781513-DCC/2014/32,"1,107.54",TAYLOR`S TAXIS.
Children and Adult Services,Education,Transport,230008,Contract Hire,12-Aug-2014,2781513-DCC/2014/33,"1,498.00",TAYLOR`S TAXIS.
Children and Adult Services,Education,Transport,230007,Contract Hire,12-Aug-2014,2781513-DCC/2014/34,938.00,TAYLOR`S TAXIS.
Children and Adult Services,Education,Transport,230008,Contract Hire,12-Aug-2014,2781513-DCC/2014/36,"1,232.00",TAYLOR`S TAXIS.
Children and Adult Services,Education,Transport,230007,Contract Hire,12-Aug-2014,2781518-7011,"1,470.00",TED WILFORD COACHES.
Children and Adult Services,Head of Adults,Employees,080025,Agency Staff,12-Aug-2014,2781519-0002663,"1,627.42",TEES ESK & WEAR VALLEYS NHS FOUNDATION TRUST.
Children and Adult Services,Education,Transport,230008,Contract Hire,12-Aug-2014,2781541-22,"1,134.00",TT TAXIS.
Children and Adult Services,Public Health,Third Party Payments,460803,Contract Payments,12-Aug-2014,2781571-FEQ59/0414/NRT,807.17,WHITWORTH CHEMISTS LTD.
Children and Adult Services,Education,Transport,230007,Contract Hire,13-Aug-2014,2781581-W18/SGG,"1,728.00",AABAT TAXIS.
Children and Adult Services,Education,Transport,230008,Contract Hire,13-Aug-2014,2781581-W25/ST,826.00,AABAT TAXIS.
Children and Adult Services,Education,Transport,230008,Contract Hire,13-Aug-2014,2781582-83-18/7/14,"1,400.00",ABLE NOVAK TAXIS.
Children and Adult Services,Education,Transport,230007,Contract Hire,13-Aug-2014,2781584-114,630.00,ACE TAXIS (WINSTON).
Children and Adult Services,Education,Transport,230007,Contract Hire,13-Aug-2014,2781584-115,630.00,ACE TAXIS (WINSTON).
Children and Adult Services,Education,Transport,230007,Contract Hire,13-Aug-2014,2781584-116,"1,470.00",ACE TAXIS (WINSTON).
Children and Adult Services,Education,Transport,230008,Contract Hire,13-Aug-2014,2781601-1327,952.20,BOBBY DOVE.
Children and Adult Services,Head of Adults,Transport,230005,Contract Hire,13-Aug-2014,2781601-1331,920.00,BOBBY DOVE.
Children and Adult Services,Education,Supplies and Services,338027,Services,13-Aug-2014,2781604-4179221,"1,606.00",BOND DICKINSON LLP.
Children and Adult Services,Education,Transport,230008,Contract Hire,13-Aug-2014,2781606-BZ00112,759.00,BREZ`S TAXIS.
Children and Adult Services,Head of Adults,Supplies and Services,338366,Services,13-Aug-2014,2781613-18040,972.20,CARE ABILITY.
Children and Adult Services,Education,Transport,230008,Contract Hire,13-Aug-2014,2781616-82,"1,050.00",CASTLE CARS.
Children and Adult Services,Education,Transport,230008,Contract Hire,13-Aug-2014,2781626-301,"1,118.40",CONNORS MINI BUSES.
Children and Adult Services,Education,Transport,230008,Contract Hire,13-Aug-2014,2781626-303,"1,031.24",CONNORS MINI BUSES.
Children and Adult Services,Education,Transport,230008,Contract Hire,13-Aug-2014,2781626-304,"1,357.58",CONNORS MINI BUSES.
Children and Adult Services,Education,Transport,230008,Contract Hire,13-Aug-2014,2781631-075,"1,027.00",DA TRAVEL.
Children and Adult Services,Education,Transport,230008,Contract Hire,13-Aug-2014,2781633-W027-18/7/14,"1,300.00",DALELINK PRIVATE HIRE.
Children and Adult Services,Education,Transport,230008,Contract Hire,13-Aug-2014,2781634-W086-18/7/14,"1,625.00",DAVES TAXIS.
Children and Adult Services,Education,Transport,230008,Contract Hire,13-Aug-2014,2781641-A1202/55,"2,147.32",DMG PRIVATE HIRE.
Children and Adult Services,Education,Transport,230008,Contract Hire,13-Aug-2014,2781641-A1202/56,"2,129.96",DMG PRIVATE HIRE.
Children and Adult Services,Education,Transport,230007,Contract Hire,13-Aug-2014,2781645-19425,"1,683.50",DURHAM CITY COACHES.
Children and Adult Services,Education,Transfer Payments,510028,School Children,13-Aug-2014,2781646-CAS-07-2014-147,"3,240.00",EARLY LEARNERS PRIVATE DAY NURSERY.
Children and Adult Services,Education,Supplies and Services,372009,Subscriptions,13-Aug-2014,2781652-H7655,"2,490.12",FRETWELL DOWNING HOSPITALITY.
Children and Adult Services,Education,Transport,230007,Contract Hire,13-Aug-2014,2781654-16572,"2,067.00",GARNETTS LTD (COACHES).
Children and Adult Services,Education,Transport,230007,Contract Hire,13-Aug-2014,2781660-180V,"1,456.00",GRAHAMS MOTOR SERVICES.
Children and Adult Services,Education,Transport,230008,Contract Hire,13-Aug-2014,2781663-HT138,"2,244.00",HARRY`S TAXI`S.
Children and Adult Services,Education,Transport,230007,Contract Hire,13-Aug-2014,2781669-011244,"1,393.00",HODGSONS COACH OPERATORS LTD.
Children and Adult Services,Education,Transport,230007,Contract Hire,13-Aug-2014,2781669-011248,"1,372.00",HODGSONS COACH OPERATORS LTD.
Children and Adult Services,Head of Adults,Third Party Payments,470101,Purchase of Care,13-Aug-2014,2781679-INV-0132,"4,735.84",INTERACT CARE LTD.
Children and Adult Services,Head of Adults,Third Party Payments,470101,Purchase of Care,13-Aug-2014,2781679-INV-0150,"1,756.72",INTERACT CARE LTD.
Children and Adult Services,Education,Transport,230008,Contract Hire,13-Aug-2014,2781686-A028-18/7/14,650.00,JL EBDON.
Children and Adult Services,Education,Transport,230008,Contract Hire,13-Aug-2014,2781686-M025-18/7/14,"1,400.00",JL EBDON.
Children and Adult Services,Education,Transport,230008,Contract Hire,13-Aug-2014,2781686-W047-18/7/14,910.00,JL EBDON.
Children and Adult Services,Education,Transport,230008,Contract Hire,13-Aug-2014,2781686-W063-18/7/14,780.00,JL EBDON.
Children and Adult Services,Education,Transport,230008,Contract Hire,13-Aug-2014,2781686-W064-18/7/14,840.00,JL EBDON.
Children and Adult Services,Education,Transport,230008,Contract Hire,13-Aug-2014,2781686-W142-18/7/14,"1,170.00",JL EBDON.
Children and Adult Services,Head of Adults,Supplies and Services,304221,Equipment and Materials,13-Aug-2014,2781690-41034194,504.48,JOSEPH THOMPSON & CO LTD.
Children and Adult Services,Education,Transport,230008,Contract Hire,13-Aug-2014,2781694-1478,"1,040.00",KEN CHAMBERS T/A SHILDON TAXIS.
Children and Adult Services,Education,Transport,230008,Contract Hire,13-Aug-2014,2781704-ALI8,"1,350.00",MA BODDY.
Children and Adult Services,Education,Transport,230008,Contract Hire,13-Aug-2014,2781709-29A,"1,280.00",MR G FREELAND T/A HUNWICK CARS.
Children and Adult Services,Education,Transport,230008,Contract Hire,13-Aug-2014,2781709-29B,"1,275.00",MR G FREELAND T/A HUNWICK CARS.
Children and Adult Services,Head of Adults,Transport,230005,Contract Hire,13-Aug-2014,2781710-015-31/7/14,"1,363.44",MR GN ROBBINS T/A GNR MINIBUS HIRE.
Children and Adult Services,Education,Transport,230008,Contract Hire,13-Aug-2014,2781711-72-R-19-45,871.00,MR GS ANDERSON.
Children and Adult Services,Education,Transport,230008,Contract Hire,13-Aug-2014,2781716-316,"1,545.00",MR S BALL T/A ABBIE`S TAXIS..
Children and Adult Services,Education,Transport,230008,Contract Hire,13-Aug-2014,2781716-317,940.00,MR S BALL T/A ABBIE`S TAXIS..
Children and Adult Services,Education,Transport,230009,Contract Hire,13-Aug-2014,2781716-319,840.00,MR S BALL T/A ABBIE`S TAXIS..
Children and Adult Services,Commissioning inc Supporting People,Transport,240045,Car Allowances,13-Aug-2014,2781760-3761,"14,503.69",SOCIAL RESOURCE CENTRE LTD.
Children and Adult Services,Head of Adults,Transport,230005,Contract Hire,13-Aug-2014,2781763-DCC063/SLD005,"1,923.72",STEPHEN COXON.
Children and Adult Services,Head of Adults,Transport,230005,Contract Hire,13-Aug-2014,2781783-3114,"1,536.00",TRANSPORT.ADVENTURE.XI.
Children and Adult Services,Head of Adults,Transport,230005,Contract Hire,13-Aug-2014,2781783-3214,981.00,TRANSPORT.ADVENTURE.XI.
Children and Adult Services,Head of Adults,Transport,230005,Contract Hire,13-Aug-2014,2781787-992,541.32,WE CONNOR.
Children and Adult Services,Head of Adults,Third Party Payments,470101,Purchase of Care,14-Aug-2014,2781794-2177459,"6,031.16",3 RED ADMIRAL COURT.
Children and Adult Services,Head of Adults,Third Party Payments,472101,Purchase of Care,14-Aug-2014,2781795-1443237H,774.75,CHOICE HEALTHCARE LTD.
Children and Adult Services,Head of Adults,Third Party Payments,472101,Purchase of Care,14-Aug-2014,2781795-1443862H,904.80,CHOICE HEALTHCARE LTD.
Children and Adult Services,Head of Adults,Third Party Payments,472101,Purchase of Care,14-Aug-2014,2781795-1443994H,"1,340.23",CHOICE HEALTHCARE LTD.
Children and Adult Services,Head of Adults,Third Party Payments,472101,Purchase of Care,14-Aug-2014,2781795-1444344H,"1,229.04",CHOICE HEALTHCARE LTD.
Children and Adult Services,Head of Adults,Third Party Payments,472101,Purchase of Care,14-Aug-2014,2781795-1444824H,"1,337.41",CHOICE HEALTHCARE LTD.
Children and Adult Services,Head of Adults,Third Party Payments,472101,Purchase of Care,14-Aug-2014,2781795-1446914H,503.30,CHOICE HEALTHCARE LTD.
Children and Adult Services,Head of Adults,Third Party Payments,472101,Purchase of Care,14-Aug-2014,2781795-1446918H,"1,477.84",CHOICE HEALTHCARE LTD.
Children and Adult Services,Head of Adults,Third Party Payments,472101,Purchase of Care,14-Aug-2014,2781795-1447216H,637.12,CHOICE HEALTHCARE LTD.
Children and Adult Services,Head of Adults,Third Party Payments,472101,Purchase of Care,14-Aug-2014,2781795-1447595H,627.71,CHOICE HEALTHCARE LTD.
Children and Adult Services,Head of Adults,Third Party Payments,472101,Purchase of Care,14-Aug-2014,2781795-1448020H,"1,083.36",CHOICE HEALTHCARE LTD.
Children and Adult Services,Head of Adults,Third Party Payments,472101,Purchase of Care,14-Aug-2014,2781795-1448426H,602.26,CHOICE HEALTHCARE LTD.
Children and Adult Services,Head of Adults,Third Party Payments,472101,Purchase of Care,14-Aug-2014,2781795-1448694H,511.79,CHOICE HEALTHCARE LTD.
Children and Adult Services,Head of Adults,Third Party Payments,472101,Purchase of Care,14-Aug-2014,2781795-1448865H,522.15,CHOICE HEALTHCARE LTD.
Children and Adult Services,Head of Adults,Third Party Payments,472101,Purchase of Care,14-Aug-2014,2781795-1448984H,567.38,CHOICE HEALTHCARE LTD.
Children and Adult Services,Head of Adults,Third Party Payments,472101,Purchase of Care,14-Aug-2014,2781795-1449081H,"1,040.52",CHOICE HEALTHCARE LTD.
Children and Adult Services,Head of Adults,Third Party Payments,472101,Purchase of Care,14-Aug-2014,2781795-1449259H,950.04,CHOICE HEALTHCARE LTD.
Children and Adult Services,Head of Adults,Third Party Payments,472101,Purchase of Care,14-Aug-2014,2781795-1449324H,633.36,CHOICE HEALTHCARE LTD.
Children and Adult Services,Head of Adults,Third Party Payments,472101,Purchase of Care,14-Aug-2014,2781795-1449346H,582.47,CHOICE HEALTHCARE LTD.
Children and Adult Services,Head of Adults,Third Party Payments,472101,Purchase of Care,14-Aug-2014,2781795-1449351H,"1,410.93",CHOICE HEALTHCARE LTD.
Children and Adult Services,Head of Adults,Third Party Payments,472101,Purchase of Care,14-Aug-2014,2781795-1449419H,633.36,CHOICE HEALTHCARE LTD.
Children and Adult Services,Head of Adults,Third Party Payments,470101,Purchase of Care,14-Aug-2014,2781796-2177897,"6,397.60",368 THE RIDGE.
Children and Adult Services,Head of Adults,Third Party Payments,474101,Purchase of Care,14-Aug-2014,2781800-2175195,"1,920.08",A CHARLES THOMAS (CARE) LTD.
Children and Adult Services,Head of Adults,Third Party Payments,474101,Purchase of Care,14-Aug-2014,2781800-2175197,"1,920.08",A CHARLES THOMAS (CARE) LTD.
Children and Adult Services,Head of Adults,Third Party Payments,470101,Purchase of Care,14-Aug-2014,2781800-2175199,"1,828.76",A CHARLES THOMAS (CARE) LTD.
Children and Adult Services,Head of Adults,Third Party Payments,474101,Purchase of Care,14-Aug-2014,2781800-2175200,"1,920.08",A CHARLES THOMAS (CARE) LTD.
Children and Adult Services,Head of Adults,Third Party Payments,474101,Purchase of Care,14-Aug-2014,2781800-2175203,"1,920.08",A CHARLES THOMAS (CARE) LTD.
Children and Adult Services,Head of Adults,Third Party Payments,474101,Purchase of Care,14-Aug-2014,2781800-2175206,"1,920.08",A CHARLES THOMAS (CARE) LTD.
Children and Adult Services,Head of Adults,Third Party Payments,470101,Purchase of Care,14-Aug-2014,2781800-2175208,"1,828.76",A CHARLES THOMAS (CARE) LTD.
Children and Adult Services,Head of Adults,Third Party Payments,470101,Purchase of Care,14-Aug-2014,2781800-2175209,653.12,A CHARLES THOMAS (CARE) LTD.
Children and Adult Services,Head of Adults,Third Party Payments,470101,Purchase of Care,14-Aug-2014,2781800-2175210,"1,828.76",A CHARLES THOMAS (CARE) LTD.
Children and Adult Services,Head of Adults,Third Party Payments,474101,Purchase of Care,14-Aug-2014,2781800-2175212,"1,920.08",A CHARLES THOMAS (CARE) LTD.
Children and Adult Services,Head of Adults,Third Party Payments,470101,Purchase of Care,14-Aug-2014,2781800-2175215,"1,828.76",A CHARLES THOMAS (CARE) LTD.
Children and Adult Services,Head of Adults,Third Party Payments,470101,Purchase of Care,14-Aug-2014,2781800-2175216,"1,828.76",A CHARLES THOMAS (CARE) LTD.
Children and Adult Services,Head of Adults,Third Party Payments,470101,Purchase of Care,14-Aug-2014,2781800-2175217,"1,828.76",A CHARLES THOMAS (CARE) LTD.
Children and Adult Services,Head of Adults,Third Party Payments,470101,Purchase of Care,14-Aug-2014,2781800-2175218,"1,828.76",A CHARLES THOMAS (CARE) LTD.
Children and Adult Services,Head of Adults,Third Party Payments,474101,Purchase of Care,14-Aug-2014,2781800-2175219,"1,920.08",A CHARLES THOMAS (CARE) LTD.
Children and Adult Services,Head of Adults,Third Party Payments,474101,Purchase of Care,14-Aug-2014,2781800-2175221,"1,920.08",A CHARLES THOMAS (CARE) LTD.
Children and Adult Services,Head of Adults,Third Party Payments,470101,Purchase of Care,14-Aug-2014,2781800-2175223,"1,828.76",A CHARLES THOMAS (CARE) LTD.
Children and Adult Services,Head of Adults,Third Party Payments,470101,Purchase of Care,14-Aug-2014,2781800-2175224,"1,828.76",A CHARLES THOMAS (CARE) LTD.
Children and Adult Services,Head of Adults,Third Party Payments,470101,Purchase of Care,14-Aug-2014,2781800-2175225,"1,828.76",A CHARLES THOMAS (CARE) LTD.
Children and Adult Services,Head of Adults,Third Party Payments,470101,Purchase of Care,14-Aug-2014,2781800-2175226,"1,828.76",A CHARLES THOMAS (CARE) LTD.
Children and Adult Services,Head of Adults,Third Party Payments,470101,Purchase of Care,14-Aug-2014,2781800-2175229,"1,828.76",A CHARLES THOMAS (CARE) LTD.
Children and Adult Services,Head of Adults,Third Party Payments,470101,Purchase of Care,14-Aug-2014,2781800-2175230,"1,828.76",A CHARLES THOMAS (CARE) LTD.
Children and Adult Services,Head of Adults,Third Party Payments,474101,Purchase of Care,14-Aug-2014,2781800-2175231,"1,920.08",A CHARLES THOMAS (CARE) LTD.
Children and Adult Services,Head of Adults,Third Party Payments,470101,Purchase of Care,14-Aug-2014,2781800-2175234,"1,828.76",A CHARLES THOMAS (CARE) LTD.
Children and Adult Services,Head of Adults,Third Party Payments,474101,Purchase of Care,14-Aug-2014,2781800-2175237,"1,920.08",A CHARLES THOMAS (CARE) LTD.
Children and Adult Services,Head of Adults,Third Party Payments,474101,Purchase of Care,14-Aug-2014,2781800-2175239,"1,920.08",A CHARLES THOMAS (CARE) LTD.
Children and Adult Services,Head of Adults,Third Party Payments,470101,Purchase of Care,14-Aug-2014,2781800-2175242,"1,828.76",A CHARLES THOMAS (CARE) LTD.
Children and Adult Services,Head of Adults,Third Party Payments,470101,Purchase of Care,14-Aug-2014,2781800-2178933,653.12,A CHARLES THOMAS (CARE) LTD.
Children and Adult Services,Head of Adults,Third Party Payments,474101,Purchase of Care,14-Aug-2014,2781800-2178942,"1,920.08",A CHARLES THOMAS (CARE) LTD.
Children and Adult Services,Central Charges,Debtors,930024,Debtor-free nursing care,14-Aug-2014,2781800-2178943,506.92,A CHARLES THOMAS (CARE) LTD.
Children and Adult Services,Head of Adults,Third Party Payments,474101,Purchase of Care,14-Aug-2014,2781800-2179078,"1,985.30",A CHARLES THOMAS (CARE) LTD.
Children and Adult Services,Central Charges,Debtors,930024,Debtor-free nursing care,14-Aug-2014,2781800-2179079,760.38,A CHARLES THOMAS (CARE) LTD.
Children and Adult Services,Head of Adults,Third Party Payments,474101,Purchase of Care,14-Aug-2014,2781800-2179082,"1,097.18",A CHARLES THOMAS (CARE) LTD.
Children and Adult Services,Head of Adults,Transfer Payments,515201,Social Services Clients,14-Aug-2014,2781801-1447125H,833.00,REDACTED - PAYMENT TO INDIVIDUAL
Children and Adult Services,Childrens Services,Transfer Payments,515201,Social Services Clients,14-Aug-2014,2781803-1447534H,"1,232.00",REDACTED - PAYMENT TO INDIVIDUAL
Children and Adult Services,Head of Adults,Third Party Payments,474101,Purchase of Care,14-Aug-2014,2781804-2176802,"3,010.00",ABBEYMOOR CLINIC.
Children and Adult Services,Head of Adults,Third Party Payments,474101,Purchase of Care,14-Aug-2014,2781804-2176804,"2,303.28",ABBEYMOOR CLINIC.
Children and Adult Services,Head of Adults,Third Party Payments,471101,Purchase of Care,14-Aug-2014,2781805-2177967,"2,003.56",ABBEYVALE.
Children and Adult Services,Head of Adults,Third Party Payments,470101,Purchase of Care,14-Aug-2014,2781805-2177968,"1,932.28",ABBEYVALE.
Children and Adult Services,Head of Adults,Third Party Payments,471101,Purchase of Care,14-Aug-2014,2781805-2177970,"2,003.56",ABBEYVALE.
Children and Adult Services,Head of Adults,Third Party Payments,470101,Purchase of Care,14-Aug-2014,2781805-2177971,"1,932.28",ABBEYVALE.
Children and Adult Services,Head of Adults,Third Party Payments,470101,Purchase of Care,14-Aug-2014,2781805-2177972,"1,035.15",ABBEYVALE.
Children and Adult Services,Head of Adults,Third Party Payments,470101,Purchase of Care,14-Aug-2014,2781805-2177973,"1,932.28",ABBEYVALE.
Children and Adult Services,Head of Adults,Third Party Payments,471101,Purchase of Care,14-Aug-2014,2781805-2177974,"2,003.56",ABBEYVALE.
Children and Adult Services,Head of Adults,Third Party Payments,471101,Purchase of Care,14-Aug-2014,2781805-2177975,"2,003.56",ABBEYVALE.
Children and Adult Services,Head of Adults,Third Party Payments,470101,Purchase of Care,14-Aug-2014,2781805-2177976,"1,932.28",ABBEYVALE.
Children and Adult Services,Head of Adults,Third Party Payments,471101,Purchase of Care,14-Aug-2014,2781805-2177977,"2,003.56",ABBEYVALE.
Children and Adult Services,Head of Adults,Third Party Payments,470101,Purchase of Care,14-Aug-2014,2781805-2177978,"1,932.28",ABBEYVALE.
Children and Adult Services,Head of Adults,Third Party Payments,470101,Purchase of Care,14-Aug-2014,2781805-2177980,"1,390.00",ABBEYVALE.
Children and Adult Services,Head of Adults,Third Party Payments,470101,Purchase of Care,14-Aug-2014,2781805-2177981,"1,932.28",ABBEYVALE.
Children and Adult Services,Head of Adults,Third Party Payments,470101,Purchase of Care,14-Aug-2014,2781805-2177982,"2,500.00",ABBEYVALE.
Children and Adult Services,Head of Adults,Third Party Payments,470101,Purchase of Care,14-Aug-2014,2781805-2177983,"1,932.28",ABBEYVALE.
Children and Adult Services,Head of Adults,Third Party Payments,470101,Purchase of Care,14-Aug-2014,2781805-2177984,"1,932.28",ABBEYVALE.
Children and Adult Services,Head of Adults,Third Party Payments,471101,Purchase of Care,14-Aug-2014,2781805-2177985,"2,003.56",ABBEYVALE.
Children and Adult Services,Head of Adults,Third Party Payments,470101,Purchase of Care,14-Aug-2014,2781805-2177986,"2,500.00",ABBEYVALE.
Children and Adult Services,Head of Adults,Third Party Payments,471101,Purchase of Care,14-Aug-2014,2781805-2177987,"2,003.56",ABBEYVALE.
Children and Adult Services,Head of Adults,Third Party Payments,470101,Purchase of Care,14-Aug-2014,2781805-2177988,"1,932.28",ABBEYVALE.
Children and Adult Services,Head of Adults,Third Party Payments,471101,Purchase of Care,14-Aug-2014,2781805-2177989,"2,003.56",ABBEYVALE.
Children and Adult Services,Head of Adults,Third Party Payments,470101,Purchase of Care,14-Aug-2014,2781805-2177990,"2,500.00",ABBEYVALE.
Children and Adult Services,Head of Adults,Third Party Payments,470101,Purchase of Care,14-Aug-2014,2781805-2177991,"1,932.28",ABBEYVALE.
Children and Adult Services,Head of Adults,Third Party Payments,470101,Purchase of Care,14-Aug-2014,2781805-2177992,"1,932.28",ABBEYVALE.
Children and Adult Services,Head of Adults,Third Party Payments,471101,Purchase of Care,14-Aug-2014,2781805-2177993,"2,003.56",ABBEYVALE.
Children and Adult Services,Head of Adults,Third Party Payments,470101,Purchase of Care,14-Aug-2014,2781805-2177994,"2,500.00",ABBEYVALE.
Children and Adult Services,Head of Adults,Third Party Payments,470101,Purchase of Care,14-Aug-2014,2781805-2177995,"1,992.28",ABBEYVALE.
Children and Adult Services,Head of Adults,Third Party Payments,471101,Purchase of Care,14-Aug-2014,2781805-2177996,"2,003.56",ABBEYVALE.
Children and Adult Services,Head of Adults,Third Party Payments,471101,Purchase of Care,14-Aug-2014,2781805-2177997,"2,539.28",ABBEYVALE.
Children and Adult Services,Head of Adults,Third Party Payments,471101,Purchase of Care,14-Aug-2014,2781805-2177998,"2,003.56",ABBEYVALE.
Children and Adult Services,Head of Adults,Third Party Payments,470101,Purchase of Care,14-Aug-2014,2781805-2177999,"1,932.28",ABBEYVALE.
Children and Adult Services,Head of Adults,Third Party Payments,471101,Purchase of Care,14-Aug-2014,2781805-2178000,"2,003.56",ABBEYVALE.
Children and Adult Services,Head of Adults,Third Party Payments,470101,Purchase of Care,14-Aug-2014,2781805-2178001,"1,932.28",ABBEYVALE.
Children and Adult Services,Head of Adults,Third Party Payments,471101,Purchase of Care,14-Aug-2014,2781805-2178002,"2,003.56",ABBEYVALE.
Children and Adult Services,Head of Adults,Third Party Payments,470101,Purchase of Care,14-Aug-2014,2781805-2178003,"1,932.28",ABBEYVALE.
Children and Adult Services,Head of Adults,Third Party Payments,470101,Purchase of Care,14-Aug-2014,2781805-2178004,"2,500.00",ABBEYVALE.
Children and Adult Services,Head of Adults,Third Party Payments,470101,Purchase of Care,14-Aug-2014,2781805-2178005,"1,932.28",ABBEYVALE.
Children and Adult Services,Head of Adults,Third Party Payments,470101,Purchase of Care,14-Aug-2014,2781805-2179034,621.09,ABBEYVALE.
Children and Adult Services,Head of Adults,Third Party Payments,470101,Purchase of Care,14-Aug-2014,2781806-2175517,"1,932.28",ABBOTTS COURT CARE HOME.
Children and Adult Services,Head of Adults,Third Party Payments,470101,Purchase of Care,14-Aug-2014,2781806-2175518,"1,932.28",ABBOTTS COURT CARE HOME.
Children and Adult Services,Head of Adults,Third Party Payments,470101,Purchase of Care,14-Aug-2014,2781806-2175519,"1,932.28",ABBOTTS COURT CARE HOME.
Children and Adult Services,Head of Adults,Third Party Payments,470101,Purchase of Care,14-Aug-2014,2781806-2175520,"1,932.28",ABBOTTS COURT CARE HOME.
Children and Adult Services,Head of Adults,Third Party Payments,470101,Purchase of Care,14-Aug-2014,2781806-2175521,"1,932.28",ABBOTTS COURT CARE HOME.
Children and Adult Services,Head of Adults,Third Party Payments,470101,Purchase of Care,14-Aug-2014,2781806-2175522,"1,932.28",ABBOTTS COURT CARE HOME.
Children and Adult Services,Head of Adults,Third Party Payments,471101,Purchase of Care,14-Aug-2014,2781806-2175523,"2,003.56",ABBOTTS COURT CARE HOME.
Children and Adult Services,Head of Adults,Third Party Payments,470101,Purchase of Care,14-Aug-2014,2781806-2175524,"1,932.28",ABBOTTS COURT CARE HOME.
Children and Adult Services,Head of Adults,Third Party Payments,471101,Purchase of Care,14-Aug-2014,2781806-2175525,"2,003.56",ABBOTTS COURT CARE HOME.
Children and Adult Services,Head of Adults,Third Party Payments,471101,Purchase of Care,14-Aug-2014,2781806-2175526,"2,003.56",ABBOTTS COURT CARE HOME.
Children and Adult Services,Head of Adults,Third Party Payments,470101,Purchase of Care,14-Aug-2014,2781806-2175527,"1,932.28",ABBOTTS COURT CARE HOME.
Children and Adult Services,Head of Adults,Third Party Payments,471101,Purchase of Care,14-Aug-2014,2781806-2175528,"2,003.56",ABBOTTS COURT CARE HOME.
Children and Adult Services,Head of Adults,Third Party Payments,470101,Purchase of Care,14-Aug-2014,2781806-2175529,"1,932.28",ABBOTTS COURT CARE HOME.
Children and Adult Services,Head of Adults,Third Party Payments,470101,Purchase of Care,14-Aug-2014,2781806-2175530,"1,932.28",ABBOTTS COURT CARE HOME.
Children and Adult Services,Head of Adults,Third Party Payments,471101,Purchase of Care,14-Aug-2014,2781806-2175531,"2,003.56",ABBOTTS COURT CARE HOME.
Children and Adult Services,Head of Adults,Third Party Payments,471101,Purchase of Care,14-Aug-2014,2781806-2175532,"2,003.56",ABBOTTS COURT CARE HOME.
Children and Adult Services,Head of Adults,Third Party Payments,470101,Purchase of Care,14-Aug-2014,2781806-2175533,"1,932.28",ABBOTTS COURT CARE HOME.
Children and Adult Services,Head of Adults,Third Party Payments,471101,Purchase of Care,14-Aug-2014,2781806-2175534,"2,003.56",ABBOTTS COURT CARE HOME.
Children and Adult Services,Head of Adults,Third Party Payments,471101,Purchase of Care,14-Aug-2014,2781806-2175535,"2,003.56",ABBOTTS COURT CARE HOME.
Children and Adult Services,Head of Adults,Third Party Payments,471101,Purchase of Care,14-Aug-2014,2781806-2175536,"2,003.56",ABBOTTS COURT CARE HOME.
Children and Adult Services,Head of Adults,Third Party Payments,471101,Purchase of Care,14-Aug-2014,2781806-2175537,"2,003.56",ABBOTTS COURT CARE HOME.
Children and Adult Services,Head of Adults,Third Party Payments,470101,Purchase of Care,14-Aug-2014,2781806-2175538,"1,932.28",ABBOTTS COURT CARE HOME.
Children and Adult Services,Head of Adults,Third Party Payments,471101,Purchase of Care,14-Aug-2014,2781806-2175539,"2,003.56",ABBOTTS COURT CARE HOME.
Children and Adult Services,Head of Adults,Third Party Payments,470101,Purchase of Care,14-Aug-2014,2781806-2175540,"1,932.28",ABBOTTS COURT CARE HOME.
Children and Adult Services,Head of Adults,Third Party Payments,471101,Purchase of Care,14-Aug-2014,2781806-2178925,715.55,ABBOTTS COURT CARE HOME.
Children and Adult Services,Head of Adults,Third Party Payments,470101,Purchase of Care,14-Aug-2014,2781808-1443183H,"2,976.44",ACCEPT CARE LTD.
Children and Adult Services,Head of Adults,Third Party Payments,478101,Purchase of Care,14-Aug-2014,2781808-1443288H,"3,365.40",ACCEPT CARE LTD.
Children and Adult Services,Head of Adults,Third Party Payments,478101,Purchase of Care,14-Aug-2014,2781808-1443356H,"4,741.24",ACCEPT CARE LTD.
Children and Adult Services,Head of Adults,Third Party Payments,478101,Purchase of Care,14-Aug-2014,2781808-1443503H,"2,636.00",ACCEPT CARE LTD.
Children and Adult Services,Head of Adults,Third Party Payments,478101,Purchase of Care,14-Aug-2014,2781808-1443561H,"1,463.00",ACCEPT CARE LTD.
Children and Adult Services,Head of Adults,Third Party Payments,478101,Purchase of Care,14-Aug-2014,2781808-1443827H,"4,662.20",ACCEPT CARE LTD.
Children and Adult Services,Head of Adults,Third Party Payments,478101,Purchase of Care,14-Aug-2014,2781808-1443864H,"1,034.00",ACCEPT CARE LTD.
Children and Adult Services,Head of Adults,Third Party Payments,478101,Purchase of Care,14-Aug-2014,2781808-1443870H,"1,056.00",ACCEPT CARE LTD.
Children and Adult Services,Head of Adults,Third Party Payments,478101,Purchase of Care,14-Aug-2014,2781808-1443946H,"1,342.00",ACCEPT CARE LTD.
Children and Adult Services,Head of Adults,Third Party Payments,478101,Purchase of Care,14-Aug-2014,2781808-1443981H,"5,439.20",ACCEPT CARE LTD.
Children and Adult Services,Head of Adults,Third Party Payments,478101,Purchase of Care,14-Aug-2014,2781808-1443992H,"3,687.64",ACCEPT CARE LTD.
Children and Adult Services,Head of Adults,Third Party Payments,478101,Purchase of Care,14-Aug-2014,2781808-1444103H,616.00,ACCEPT CARE LTD.
Children and Adult Services,Head of Adults,Third Party Payments,478101,Purchase of Care,14-Aug-2014,2781808-1444283H,"1,281.28",ACCEPT CARE LTD.
Children and Adult Services,Head of Adults,Third Party Payments,478101,Purchase of Care,14-Aug-2014,2781808-1444296H,"5,952.84",ACCEPT CARE LTD.
Children and Adult Services,Head of Adults,Third Party Payments,478101,Purchase of Care,14-Aug-2014,2781808-1444522H,770.00,ACCEPT CARE LTD.
Children and Adult Services,Head of Adults,Third Party Payments,478101,Purchase of Care,14-Aug-2014,2781808-1444528H,"8,007.36",ACCEPT CARE LTD.
Children and Adult Services,Head of Adults,Third Party Payments,478101,Purchase of Care,14-Aug-2014,2781808-1444536H,"1,760.00",ACCEPT CARE LTD.
Children and Adult Services,Head of Adults,Third Party Payments,478101,Purchase of Care,14-Aug-2014,2781808-1444554H,"2,713.04",ACCEPT CARE LTD.
Children and Adult Services,Head of Adults,Third Party Payments,472101,Purchase of Care,14-Aug-2014,2781808-1444622H,"3,964.00",ACCEPT CARE LTD.
Children and Adult Services,Head of Adults,Third Party Payments,478101,Purchase of Care,14-Aug-2014,2781808-1444636H,"4,846.56",ACCEPT CARE LTD.
Children and Adult Services,Head of Adults,Third Party Payments,478101,Purchase of Care,14-Aug-2014,2781808-1444720H,"3,484.80",ACCEPT CARE LTD.
Children and Adult Services,Head of Adults,Third Party Payments,478101,Purchase of Care,14-Aug-2014,2781808-1444745H,"5,452.40",ACCEPT CARE LTD.
Children and Adult Services,Head of Adults,Third Party Payments,478101,Purchase of Care,14-Aug-2014,2781808-1444781H,"3,634.92",ACCEPT CARE LTD.
Children and Adult Services,Head of Adults,Third Party Payments,478101,Purchase of Care,14-Aug-2014,2781808-1444837H,"4,056.40",ACCEPT CARE LTD.
Children and Adult Services,Head of Adults,Third Party Payments,478101,Purchase of Care,14-Aug-2014,2781808-1444953H,"7,875.68",ACCEPT CARE LTD.
Children and Adult Services,Head of Adults,Third Party Payments,478101,Purchase of Care,14-Aug-2014,2781808-1444955H,"12,063.72",ACCEPT CARE LTD.
Children and Adult Services,Head of Adults,Third Party Payments,478101,Purchase of Care,14-Aug-2014,2781808-1444966H,"1,144.00",ACCEPT CARE LTD.
Children and Adult Services,Head of Adults,Third Party Payments,478101,Purchase of Care,14-Aug-2014,2781808-1445058H,"4,636.00",ACCEPT CARE LTD.
Children and Adult Services,Head of Adults,Third Party Payments,478101,Purchase of Care,14-Aug-2014,2781808-1445064H,"6,637.72",ACCEPT CARE LTD.
Children and Adult Services,Head of Adults,Third Party Payments,478101,Purchase of Care,14-Aug-2014,2781808-1445158H,"3,830.40",ACCEPT CARE LTD.
Children and Adult Services,Head of Adults,Third Party Payments,478101,Purchase of Care,14-Aug-2014,2781808-1445683H,"5,928.00",ACCEPT CARE LTD.
Children and Adult Services,Head of Adults,Third Party Payments,478101,Purchase of Care,14-Aug-2014,2781808-1445936H,756.00,ACCEPT CARE LTD.
Children and Adult Services,Head of Adults,Third Party Payments,478101,Purchase of Care,14-Aug-2014,2781808-1445939H,"1,012.00",ACCEPT CARE LTD.
Children and Adult Services,Head of Adults,Third Party Payments,478101,Purchase of Care,14-Aug-2014,2781808-1446259H,"7,006.44",ACCEPT CARE LTD.
Children and Adult Services,Head of Adults,Third Party Payments,478101,Purchase of Care,14-Aug-2014,2781808-1446454H,"4,767.56",ACCEPT CARE LTD.
Children and Adult Services,Head of Adults,Third Party Payments,478101,Purchase of Care,14-Aug-2014,2781808-1446527H,990.00,ACCEPT CARE LTD.
Children and Adult Services,Head of Adults,Third Party Payments,478101,Purchase of Care,14-Aug-2014,2781808-1446557H,"4,600.00",ACCEPT CARE LTD.
Children and Adult Services,Head of Adults,Third Party Payments,478101,Purchase of Care,14-Aug-2014,2781808-1446985H,"3,029.12",ACCEPT CARE LTD.
Children and Adult Services,Head of Adults,Third Party Payments,478101,Purchase of Care,14-Aug-2014,2781808-1446989H,"2,028.20",ACCEPT CARE LTD.
Children and Adult Services,Head of Adults,Third Party Payments,478101,Purchase of Care,14-Aug-2014,2781808-1447721H,660.00,ACCEPT CARE LTD.
Children and Adult Services,Head of Adults,Third Party Payments,478101,Purchase of Care,14-Aug-2014,2781808-1448419H,"1,034.00",ACCEPT CARE LTD.
Children and Adult Services,Head of Adults,Third Party Payments,478101,Purchase of Care,14-Aug-2014,2781808-1448866H,738.08,ACCEPT CARE LTD.
Children and Adult Services,Head of Adults,Third Party Payments,478101,Purchase of Care,14-Aug-2014,2781808-1449619H,526.80,ACCEPT CARE LTD.
Children and Adult Services,Head of Adults,Transfer Payments,515201,Social Services Clients,14-Aug-2014,2781812-1448485H,817.20,REDACTED - PAYMENT TO INDIVIDUAL
Children and Adult Services,Head of Adults,Transfer Payments,515201,Social Services Clients,14-Aug-2014,2781814-1447823H,513.84,REDACTED - PAYMENT TO INDIVIDUAL
Children and Adult Services,Head of Adults,Transfer Payments,515209,Social Services Clients,14-Aug-2014,2781815-1443455D,540.00,REDACTED - PAYMENT TO INDIVIDUAL
Children and Adult Services,Head of Adults,Transfer Payments,515201,Social Services Clients,14-Aug-2014,2781817-1450064H,678.60,REDACTED - PAYMENT TO INDIVIDUAL
Children and Adult Services,Childrens Services,Transfer Payments,515201,Social Services Clients,14-Aug-2014,2781820-1446792H,"1,485.00",REDACTED - PAYMENT TO INDIVIDUAL
Children and Adult Services,Head of Adults,Transfer Payments,515201,Social Services Clients,14-Aug-2014,2781822-1446571H,904.80,REDACTED - PAYMENT TO INDIVIDUAL
Children and Adult Services,Head of Adults,Transfer Payments,515201,Social Services Clients,14-Aug-2014,2781824-1446877H,611.92,REDACTED - PAYMENT TO INDIVIDUAL
Children and Adult Services,Childrens Services,Transfer Payments,515201,Social Services Clients,14-Aug-2014,2781825-1448247H,"2,048.00",REDACTED - PAYMENT TO INDIVIDUAL
Children and Adult Services,Head of Adults,Transfer Payments,515209,Social Services Clients,14-Aug-2014,2781827-1450069D,567.00,REDACTED - PAYMENT TO INDIVIDUAL
Children and Adult Services,Head of Adults,Transfer Payments,515201,Social Services Clients,14-Aug-2014,2781827-1450069H,630.00,REDACTED - PAYMENT TO INDIVIDUAL
Children and Adult Services,Childrens Services,Transfer Payments,515201,Social Services Clients,14-Aug-2014,2781829-1446946H,978.00,REDACTED - PAYMENT TO INDIVIDUAL
Children and Adult Services,Head of Adults,Transfer Payments,515201,Social Services Clients,14-Aug-2014,2781830-1447017H,"1,266.00",REDACTED - PAYMENT TO INDIVIDUAL
Children and Adult Services,Head of Adults,Transfer Payments,515201,Social Services Clients,14-Aug-2014,2781833-1445155H,817.20,REDACTED - PAYMENT TO INDIVIDUAL
Children and Adult Services,Head of Adults,Transfer Payments,515201,Social Services Clients,14-Aug-2014,2781837-1446434H,506.40,REDACTED - PAYMENT TO INDIVIDUAL
Children and Adult Services,Head of Adults,Transfer Payments,515201,Social Services Clients,14-Aug-2014,2781838-1443690H,672.80,REDACTED - PAYMENT TO INDIVIDUAL
Children and Adult Services,Head of Adults,Transfer Payments,515201,Social Services Clients,14-Aug-2014,2781840-1446379H,839.92,REDACTED - PAYMENT TO INDIVIDUAL
Children and Adult Services,Head of Adults,Transfer Payments,515201,Social Services Clients,14-Aug-2014,2781842-1446469H,"1,223.80",REDACTED - PAYMENT TO INDIVIDUAL
Children and Adult Services,Head of Adults,Transfer Payments,515201,Social Services Clients,14-Aug-2014,2781843-1446210H,721.32,REDACTED - PAYMENT TO INDIVIDUAL
Children and Adult Services,Childrens Services,Transfer Payments,515201,Social Services Clients,14-Aug-2014,2781846-1448544H,630.00,REDACTED - PAYMENT TO INDIVIDUAL
Children and Adult Services,Head of Adults,Transfer Payments,515201,Social Services Clients,14-Aug-2014,2781848-1443798H,754.12,REDACTED - PAYMENT TO INDIVIDUAL
Children and Adult Services,Head of Adults,Transfer Payments,515201,Social Services Clients,14-Aug-2014,2781849-1445369H,516.96,REDACTED - PAYMENT TO INDIVIDUAL
Children and Adult Services,Head of Adults,Transfer Payments,515201,Social Services Clients,14-Aug-2014,2781850-1443686H,998.80,REDACTED - PAYMENT TO INDIVIDUAL
Children and Adult Services,Head of Adults,Transfer Payments,515201,Social Services Clients,14-Aug-2014,2781851-1446287H,780.72,REDACTED - PAYMENT TO INDIVIDUAL
Children and Adult Services,Childrens Services,Transfer Payments,515201,Social Services Clients,14-Aug-2014,2781852-1449096H,900.00,REDACTED - PAYMENT TO INDIVIDUAL
Children and Adult Services,Childrens Services,Transfer Payments,515201,Social Services Clients,14-Aug-2014,2781853-1449229H,900.00,REDACTED - PAYMENT TO INDIVIDUAL
Children and Adult Services,Head of Adults,Transfer Payments,515201,Social Services Clients,14-Aug-2014,2781855-1444257H,"1,076.12",REDACTED - PAYMENT TO INDIVIDUAL
Children and Adult Services,Head of Adults,Transfer Payments,515201,Social Services Clients,14-Aug-2014,2781857-1446355H,590.80,REDACTED - PAYMENT TO INDIVIDUAL
Children and Adult Services,Head of Adults,Transfer Payments,515201,Social Services Clients,14-Aug-2014,2781858-1444458H,"1,929.64",REDACTED - PAYMENT TO INDIVIDUAL
Children and Adult Services,Head of Adults,Transfer Payments,515201,Social Services Clients,14-Aug-2014,2781859-1448498H,"2,363.20",REDACTED - PAYMENT TO INDIVIDUAL
Children and Adult Services,Head of Adults,Transfer Payments,515201,Social Services Clients,14-Aug-2014,2781860-1444797H,"1,508.24",REDACTED - PAYMENT TO INDIVIDUAL
Children and Adult Services,Commissioning inc Supporting People,Transfer Payments,515210,Social Services Clients,14-Aug-2014,2781861-1450144H,"1,181.60",REDACTED - PAYMENT TO INDIVIDUAL
Children and Adult Services,Head of Adults,Transfer Payments,515201,Social Services Clients,14-Aug-2014,2781863-1445658H,544.80,REDACTED - PAYMENT TO INDIVIDUAL
Children and Adult Services,Head of Adults,Transfer Payments,515201,Social Services Clients,14-Aug-2014,2781864-1446185H,"1,561.41",REDACTED - PAYMENT TO INDIVIDUAL
Children and Adult Services,Head of Adults,Transfer Payments,515201,Social Services Clients,14-Aug-2014,2781867-1449719H,554.20,REDACTED - PAYMENT TO INDIVIDUAL
Children and Adult Services,Head of Adults,Transfer Payments,515201,Social Services Clients,14-Aug-2014,2781869-1447321H,637.55,REDACTED - PAYMENT TO INDIVIDUAL
Children and Adult Services,Head of Adults,Transfer Payments,515201,Social Services Clients,14-Aug-2014,2781870-1447036H,696.32,REDACTED - PAYMENT TO INDIVIDUAL
Children and Adult Services,Head of Adults,Transfer Payments,515201,Social Services Clients,14-Aug-2014,2781871-1449040H,675.20,REDACTED - PAYMENT TO INDIVIDUAL
Children and Adult Services,Head of Adults,Transfer Payments,515201,Social Services Clients,14-Aug-2014,2781875-1445347H,621.04,REDACTED - PAYMENT TO INDIVIDUAL
Children and Adult Services,Head of Adults,Transfer Payments,515201,Social Services Clients,14-Aug-2014,2781876-1443949H,"1,360.96",REDACTED - PAYMENT TO INDIVIDUAL
Children and Adult Services,Head of Adults,Transfer Payments,515209,Social Services Clients,14-Aug-2014,2781878-1447584D,"2,520.00",REDACTED - PAYMENT TO INDIVIDUAL
Children and Adult Services,Head of Adults,Transfer Payments,515201,Social Services Clients,14-Aug-2014,2781878-1447584H,500.00,REDACTED - PAYMENT TO INDIVIDUAL
Children and Adult Services,Head of Adults,Transfer Payments,515201,Social Services Clients,14-Aug-2014,2781879-1445862H,"1,814.60",REDACTED - PAYMENT TO INDIVIDUAL
Children and Adult Services,Head of Adults,Transfer Payments,515201,Social Services Clients,14-Aug-2014,2781881-1443905H,664.64,REDACTED - PAYMENT TO INDIVIDUAL
Children and Adult Services,Head of Adults,Transfer Payments,515201,Social Services Clients,14-Aug-2014,2781882-1444725H,"1,160.40",REDACTED - PAYMENT TO INDIVIDUAL
Children and Adult Services,Head of Adults,Transfer Payments,515201,Social Services Clients,14-Aug-2014,2781883-1444850H,"1,287.12",REDACTED - PAYMENT TO INDIVIDUAL
Children and Adult Services,Head of Adults,Transfer Payments,515209,Social Services Clients,14-Aug-2014,2781889-1445623D,748.64,REDACTED - PAYMENT TO INDIVIDUAL
Children and Adult Services,Head of Adults,Transfer Payments,515201,Social Services Clients,14-Aug-2014,2781892-1445598H,908.00,REDACTED - PAYMENT TO INDIVIDUAL
Children and Adult Services,Head of Adults,Transfer Payments,515201,Social Services Clients,14-Aug-2014,2781893-1448506H,865.04,REDACTED - PAYMENT TO INDIVIDUAL
Children and Adult Services,Head of Adults,Transfer Payments,515201,Social Services Clients,14-Aug-2014,2781894-1449012H,510.16,REDACTED - PAYMENT TO INDIVIDUAL
Children and Adult Services,Childrens Services,Transfer Payments,515201,Social Services Clients,14-Aug-2014,2781895-1448074H,572.00,REDACTED - PAYMENT TO INDIVIDUAL
Children and Adult Services,Head of Adults,Transfer Payments,515201,Social Services Clients,14-Aug-2014,2781896-1444799H,621.04,REDACTED - PAYMENT TO INDIVIDUAL
Children and Adult Services,Childrens Services,Transfer Payments,515201,Social Services Clients,14-Aug-2014,2781897-1447551H,572.00,REDACTED - PAYMENT TO INDIVIDUAL
Children and Adult Services,Head of Adults,Transfer Payments,515201,Social Services Clients,14-Aug-2014,2781898-1444412H,"1,362.00",REDACTED - PAYMENT TO INDIVIDUAL
Children and Adult Services,Head of Adults,Transfer Payments,515201,Social Services Clients,14-Aug-2014,2781901-1447170H,522.40,REDACTED - PAYMENT TO INDIVIDUAL
Children and Adult Services,Head of Adults,Transfer Payments,515201,Social Services Clients,14-Aug-2014,2781902-1445393H,990.88,REDACTED - PAYMENT TO INDIVIDUAL
Children and Adult Services,Head of Adults,Transfer Payments,515201,Social Services Clients,14-Aug-2014,2781903-1445239H,"1,770.60",REDACTED - PAYMENT TO INDIVIDUAL
Children and Adult Services,Head of Adults,Transfer Payments,515201,Social Services Clients,14-Aug-2014,2781904-1443685H,"1,645.80",REDACTED - PAYMENT TO INDIVIDUAL
Children and Adult Services,Head of Adults,Transfer Payments,515201,Social Services Clients,14-Aug-2014,2781906-1443298H,509.88,REDACTED - PAYMENT TO INDIVIDUAL
Children and Adult Services,Head of Adults,Transfer Payments,515201,Social Services Clients,14-Aug-2014,2781909-1445048H,588.12,REDACTED - PAYMENT TO INDIVIDUAL
Children and Adult Services,Head of Adults,Transfer Payments,515201,Social Services Clients,14-Aug-2014,2781911-1446602H,728.72,REDACTED - PAYMENT TO INDIVIDUAL
Children and Adult Services,Head of Adults,Transfer Payments,515201,Social Services Clients,14-Aug-2014,2781913-1446211H,678.72,REDACTED - PAYMENT TO INDIVIDUAL
Children and Adult Services,Head of Adults,Transfer Payments,515201,Social Services Clients,14-Aug-2014,2781916-1444429H,817.20,REDACTED - PAYMENT TO INDIVIDUAL
Children and Adult Services,Head of Adults,Transfer Payments,515201,Social Services Clients,14-Aug-2014,2781917-1446623H,637.60,REDACTED - PAYMENT TO INDIVIDUAL
Children and Adult Services,Head of Adults,Transfer Payments,515201,Social Services Clients,14-Aug-2014,2781918-1446798H,583.76,REDACTED - PAYMENT TO INDIVIDUAL
Children and Adult Services,Head of Adults,Transfer Payments,515201,Social Services Clients,14-Aug-2014,2781919-1445191H,618.92,REDACTED - PAYMENT TO INDIVIDUAL
Children and Adult Services,Head of Adults,Transfer Payments,515201,Social Services Clients,14-Aug-2014,2781923-1448501H,949.52,REDACTED - PAYMENT TO INDIVIDUAL
Children and Adult Services,Head of Adults,Transfer Payments,515201,Social Services Clients,14-Aug-2014,2781924-1444309H,"1,131.20",REDACTED - PAYMENT TO INDIVIDUAL
Children and Adult Services,Head of Adults,Transfer Payments,515201,Social Services Clients,14-Aug-2014,2781925-1445827H,794.52,REDACTED - PAYMENT TO INDIVIDUAL
Children and Adult Services,Head of Adults,Transfer Payments,515201,Social Services Clients,14-Aug-2014,2781927-1448727H,"1,186.64",REDACTED - PAYMENT TO INDIVIDUAL
Children and Adult Services,Head of Adults,Transfer Payments,515201,Social Services Clients,14-Aug-2014,2781928-1446626H,678.60,REDACTED - PAYMENT TO INDIVIDUAL
Children and Adult Services,Head of Adults,Transfer Payments,515201,Social Services Clients,14-Aug-2014,2781929-1448432H,594.00,REDACTED - PAYMENT TO INDIVIDUAL
Children and Adult Services,Head of Adults,Transfer Payments,515201,Social Services Clients,14-Aug-2014,2781930-1449147H,"3,627.04",REDACTED - PAYMENT TO INDIVIDUAL
Children and Adult Services,Head of Adults,Transfer Payments,515201,Social Services Clients,14-Aug-2014,2781932-1447079H,717.40,REDACTED - PAYMENT TO INDIVIDUAL
Children and Adult Services,Head of Adults,Transfer Payments,515201,Social Services Clients,14-Aug-2014,2781934-1444679H,953.76,REDACTED - PAYMENT TO INDIVIDUAL
Children and Adult Services,Head of Adults,Transfer Payments,515201,Social Services Clients,14-Aug-2014,2781936-1444555H,675.20,REDACTED - PAYMENT TO INDIVIDUAL
Children and Adult Services,Head of Adults,Transfer Payments,515201,Social Services Clients,14-Aug-2014,2781937-1446464H,569.70,REDACTED - PAYMENT TO INDIVIDUAL
Children and Adult Services,Head of Adults,Transfer Payments,515201,Social Services Clients,14-Aug-2014,2781938-1446515H,"1,747.92",REDACTED - PAYMENT TO INDIVIDUAL
Children and Adult Services,Head of Adults,Transfer Payments,515201,Social Services Clients,14-Aug-2014,2781939-1448530H,"2,940.60",REDACTED - PAYMENT TO INDIVIDUAL
Children and Adult Services,Head of Adults,Transfer Payments,515201,Social Services Clients,14-Aug-2014,2781941-1445602H,"1,055.00",REDACTED - PAYMENT TO INDIVIDUAL
Children and Adult Services,Head of Adults,Transfer Payments,515201,Social Services Clients,14-Aug-2014,2781942-1449607H,820.68,REDACTED - PAYMENT TO INDIVIDUAL
Children and Adult Services,Head of Adults,Transfer Payments,515201,Social Services Clients,14-Aug-2014,2781944-1445009H,833.44,REDACTED - PAYMENT TO INDIVIDUAL
Children and Adult Services,Head of Adults,Transfer Payments,515201,Social Services Clients,14-Aug-2014,2781946-1443525H,613.64,REDACTED - PAYMENT TO INDIVIDUAL
Children and Adult Services,Head of Adults,Transfer Payments,515201,Social Services Clients,14-Aug-2014,2781947-1447227H,766.64,REDACTED - PAYMENT TO INDIVIDUAL
Children and Adult Services,Head of Adults,Transfer Payments,515201,Social Services Clients,14-Aug-2014,2781949-1445381H,561.72,REDACTED - PAYMENT TO INDIVIDUAL
Children and Adult Services,Head of Adults,Transfer Payments,515201,Social Services Clients,14-Aug-2014,2781951-1447422H,812.36,REDACTED - PAYMENT TO INDIVIDUAL
Children and Adult Services,Head of Adults,Transfer Payments,515201,Social Services Clients,14-Aug-2014,2781953-1447774H,"1,080.56",REDACTED - PAYMENT TO INDIVIDUAL
Children and Adult Services,Head of Adults,Transfer Payments,515201,Social Services Clients,14-Aug-2014,2781954-1449256H,510.16,REDACTED - PAYMENT TO INDIVIDUAL
Children and Adult Services,Head of Adults,Transfer Payments,515201,Social Services Clients,14-Aug-2014,2781955-1446854H,"1,120.00",REDACTED - PAYMENT TO INDIVIDUAL
Children and Adult Services,Childrens Services,Transfer Payments,515201,Social Services Clients,14-Aug-2014,2781956-1449548H,630.00,REDACTED - PAYMENT TO INDIVIDUAL
Children and Adult Services,Head of Adults,Transfer Payments,515201,Social Services Clients,14-Aug-2014,2781957-1448431H,"2,118.20",REDACTED - PAYMENT TO INDIVIDUAL
Children and Adult Services,Head of Adults,Transfer Payments,515201,Social Services Clients,14-Aug-2014,2781960-1446699H,928.40,REDACTED - PAYMENT TO INDIVIDUAL
Children and Adult Services,Head of Adults,Transfer Payments,515201,Social Services Clients,14-Aug-2014,2781961-1444420H,838.20,REDACTED - PAYMENT TO INDIVIDUAL
Children and Adult Services,Head of Adults,Transfer Payments,515209,Social Services Clients,14-Aug-2014,2781962-1444525D,650.20,REDACTED - PAYMENT TO INDIVIDUAL
Children and Adult Services,Head of Adults,Transfer Payments,515201,Social Services Clients,14-Aug-2014,2781964-1448630H,839.92,REDACTED - PAYMENT TO INDIVIDUAL
Children and Adult Services,Head of Adults,Transfer Payments,515201,Social Services Clients,14-Aug-2014,2781969-1446182H,816.00,REDACTED - PAYMENT TO INDIVIDUAL
Children and Adult Services,Head of Adults,Transfer Payments,515201,Social Services Clients,14-Aug-2014,2781970-1445001H,869.60,REDACTED - PAYMENT TO INDIVIDUAL
Children and Adult Services,Head of Adults,Transfer Payments,515201,Social Services Clients,14-Aug-2014,2781971-1446707H,"1,944.00",REDACTED - PAYMENT TO INDIVIDUAL
Children and Adult Services,Head of Adults,Transfer Payments,515201,Social Services Clients,14-Aug-2014,2781972-1444117H,675.20,REDACTED - PAYMENT TO INDIVIDUAL
Children and Adult Services,Head of Adults,Transfer Payments,515201,Social Services Clients,14-Aug-2014,2781973-1443400H,516.96,REDACTED - PAYMENT TO INDIVIDUAL
Children and Adult Services,Head of Adults,Transfer Payments,515201,Social Services Clients,14-Aug-2014,2781974-1443353H,828.56,REDACTED - PAYMENT TO INDIVIDUAL
Children and Adult Services,Head of Adults,Transfer Payments,515201,Social Services Clients,14-Aug-2014,2781975-1444945H,830.84,REDACTED - PAYMENT TO INDIVIDUAL
Children and Adult Services,Childrens Services,Transfer Payments,515201,Social Services Clients,14-Aug-2014,2781976-1446991H,720.00,REDACTED - PAYMENT TO INDIVIDUAL
Children and Adult Services,Head of Adults,Transfer Payments,515201,Social Services Clients,14-Aug-2014,2781979-1444366H,"1,582.52",REDACTED - PAYMENT TO INDIVIDUAL
Children and Adult Services,Head of Adults,Transfer Payments,515201,Social Services Clients,14-Aug-2014,2781980-1448278H,569.28,REDACTED - PAYMENT TO INDIVIDUAL
Children and Adult Services,Head of Adults,Transfer Payments,515201,Social Services Clients,14-Aug-2014,2781981-1443742H,669.64,REDACTED - PAYMENT TO INDIVIDUAL
Children and Adult Services,Head of Adults,Transfer Payments,515201,Social Services Clients,14-Aug-2014,2781982-1448177H,"1,434.80",REDACTED - PAYMENT TO INDIVIDUAL
Children and Adult Services,Head of Adults,Transfer Payments,515201,Social Services Clients,14-Aug-2014,2781983-1449233H,745.52,REDACTED - PAYMENT TO INDIVIDUAL
Children and Adult Services,Head of Adults,Transfer Payments,515201,Social Services Clients,14-Aug-2014,2781984-1444736H,692.28,REDACTED - PAYMENT TO INDIVIDUAL
Children and Adult Services,Head of Adults,Transfer Payments,515201,Social Services Clients,14-Aug-2014,2781986-1444673H,681.00,REDACTED - PAYMENT TO INDIVIDUAL
Children and Adult Services,Head of Adults,Transfer Payments,515201,Social Services Clients,14-Aug-2014,2781988-1447502H,754.12,REDACTED - PAYMENT TO INDIVIDUAL
Children and Adult Services,Head of Adults,Transfer Payments,515201,Social Services Clients,14-Aug-2014,2781989-1446461H,"2,115.32",REDACTED - PAYMENT TO INDIVIDUAL
Children and Adult Services,Head of Adults,Transfer Payments,515201,Social Services Clients,14-Aug-2014,2781991-1450068H,"2,704.64",REDACTED - PAYMENT TO INDIVIDUAL
Children and Adult Services,Head of Adults,Transfer Payments,515201,Social Services Clients,14-Aug-2014,2781992-1449263H,532.32,REDACTED - PAYMENT TO INDIVIDUAL
Children and Adult Services,Head of Adults,Transfer Payments,515201,Social Services Clients,14-Aug-2014,2781995-1447706H,621.04,REDACTED - PAYMENT TO INDIVIDUAL
Children and Adult Services,Head of Adults,Transfer Payments,515201,Social Services Clients,14-Aug-2014,2781996-1446499H,548.60,REDACTED - PAYMENT TO INDIVIDUAL
Children and Adult Services,Head of Adults,Transfer Payments,515201,Social Services Clients,14-Aug-2014,2781998-1445636H,"1,872.76",REDACTED - PAYMENT TO INDIVIDUAL
Children and Adult Services,Head of Adults,Transfer Payments,515201,Social Services Clients,14-Aug-2014,2782002-1448065H,"1,475.52",REDACTED - PAYMENT TO INDIVIDUAL
Children and Adult Services,Head of Adults,Transfer Payments,515201,Social Services Clients,14-Aug-2014,2782004-1446403H,"1,669.00",REDACTED - PAYMENT TO INDIVIDUAL
Children and Adult Services,Head of Adults,Transfer Payments,515201,Social Services Clients,14-Aug-2014,2782006-1443569H,506.40,REDACTED - PAYMENT TO INDIVIDUAL
Children and Adult Services,Head of Adults,Transfer Payments,515201,Social Services Clients,14-Aug-2014,2782007-1446728H,590.80,REDACTED - PAYMENT TO INDIVIDUAL
Children and Adult Services,Head of Adults,Transfer Payments,515201,Social Services Clients,14-Aug-2014,2782010-1448018H,780.72,REDACTED - PAYMENT TO INDIVIDUAL
Children and Adult Services,Head of Adults,Transfer Payments,515201,Social Services Clients,14-Aug-2014,2782012-1443625H,543.40,REDACTED - PAYMENT TO INDIVIDUAL
Children and Adult Services,Head of Adults,Transfer Payments,515201,Social Services Clients,14-Aug-2014,2782014-1448087H,889.72,REDACTED - PAYMENT TO INDIVIDUAL
Children and Adult Services,Head of Adults,Transfer Payments,515201,Social Services Clients,14-Aug-2014,2782015-1446325H,"1,679.80",REDACTED - PAYMENT TO INDIVIDUAL
Children and Adult Services,Head of Adults,Transfer Payments,515209,Social Services Clients,14-Aug-2014,2782017-1444755D,775.20,REDACTED - PAYMENT TO INDIVIDUAL
Children and Adult Services,Head of Adults,Transfer Payments,515201,Social Services Clients,14-Aug-2014,2782018-1445821H,533.28,REDACTED - PAYMENT TO INDIVIDUAL
Children and Adult Services,Head of Adults,Transfer Payments,515201,Social Services Clients,14-Aug-2014,2782019-1450071H,"4,472.44",REDACTED - PAYMENT TO INDIVIDUAL
Children and Adult Services,Head of Adults,Transfer Payments,515201,Social Services Clients,14-Aug-2014,2782020-1443191H,817.20,REDACTED - PAYMENT TO INDIVIDUAL
Children and Adult Services,Head of Adults,Transfer Payments,515201,Social Services Clients,14-Aug-2014,2782021-1444477H,780.72,REDACTED - PAYMENT TO INDIVIDUAL
Children and Adult Services,Head of Adults,Transfer Payments,515201,Social Services Clients,14-Aug-2014,2782023-1448398H,"1,362.00",REDACTED - PAYMENT TO INDIVIDUAL
Children and Adult Services,Head of Adults,Transfer Payments,515201,Social Services Clients,14-Aug-2014,2782025-1447901H,"2,451.60",REDACTED - PAYMENT TO INDIVIDUAL
Children and Adult Services,Head of Adults,Transfer Payments,515201,Social Services Clients,14-Aug-2014,2782026-1445114H,654.32,REDACTED - PAYMENT TO INDIVIDUAL
Children and Adult Services,Head of Adults,Transfer Payments,515201,Social Services Clients,14-Aug-2014,2782028-1448273H,885.32,REDACTED - PAYMENT TO INDIVIDUAL
Children and Adult Services,Head of Adults,Transfer Payments,515201,Social Services Clients,14-Aug-2014,2782030-1449811H,950.04,REDACTED - PAYMENT TO INDIVIDUAL
Children and Adult Services,Childrens Services,Transfer Payments,515201,Social Services Clients,14-Aug-2014,2782031-1447042H,"1,260.00",REDACTED - PAYMENT TO INDIVIDUAL
Children and Adult Services,Head of Adults,Transfer Payments,515201,Social Services Clients,14-Aug-2014,2782032-1449000H,506.40,REDACTED - PAYMENT TO INDIVIDUAL
Children and Adult Services,Head of Adults,Transfer Payments,515201,Social Services Clients,14-Aug-2014,2782036-1449466H,"1,962.00",REDACTED - PAYMENT TO INDIVIDUAL
Children and Adult Services,Head of Adults,Transfer Payments,515201,Social Services Clients,14-Aug-2014,2782038-1447724H,840.48,REDACTED - PAYMENT TO INDIVIDUAL
Children and Adult Services,Head of Adults,Transfer Payments,515201,Social Services Clients,14-Aug-2014,2782040-1444539H,"1,223.80",REDACTED - PAYMENT TO INDIVIDUAL
Children and Adult Services,Head of Adults,Transfer Payments,515201,Social Services Clients,14-Aug-2014,2782042-1449131H,"1,266.72",REDACTED - PAYMENT TO INDIVIDUAL
Children and Adult Services,Head of Adults,Transfer Payments,515201,Social Services Clients,14-Aug-2014,2782044-1447845H,696.32,REDACTED - PAYMENT TO INDIVIDUAL
Children and Adult Services,Childrens Services,Transfer Payments,515201,Social Services Clients,14-Aug-2014,2782046-1448140H,664.00,REDACTED - PAYMENT TO INDIVIDUAL
Children and Adult Services,Head of Adults,Transfer Payments,515201,Social Services Clients,14-Aug-2014,2782047-1445779H,624.24,REDACTED - PAYMENT TO INDIVIDUAL
Children and Adult Services,Head of Adults,Transfer Payments,515201,Social Services Clients,14-Aug-2014,2782048-1448276H,644.68,REDACTED - PAYMENT TO INDIVIDUAL
Children and Adult Services,Head of Adults,Transfer Payments,515201,Social Services Clients,14-Aug-2014,2782049-1447205H,798.48,REDACTED - PAYMENT TO INDIVIDUAL
Children and Adult Services,Head of Adults,Transfer Payments,515201,Social Services Clients,14-Aug-2014,2782049-1447206H,"1,353.00",REDACTED - PAYMENT TO INDIVIDUAL
Children and Adult Services,Head of Adults,Transfer Payments,515209,Social Services Clients,14-Aug-2014,2782050-1446483D,"2,400.00",REDACTED - PAYMENT TO INDIVIDUAL
Children and Adult Services,Head of Adults,Transfer Payments,515201,Social Services Clients,14-Aug-2014,2782050-1446483H,"2,088.40",REDACTED - PAYMENT TO INDIVIDUAL
Children and Adult Services,Head of Adults,Transfer Payments,515201,Social Services Clients,14-Aug-2014,2782052-1446647H,675.20,REDACTED - PAYMENT TO INDIVIDUAL
Children and Adult Services,Head of Adults,Transfer Payments,515201,Social Services Clients,14-Aug-2014,2782053-1448900H,798.28,REDACTED - PAYMENT TO INDIVIDUAL
Children and Adult Services,Head of Adults,Third Party Payments,470101,Purchase of Care,14-Aug-2014,2782054-1443694D,923.04,REDACTED - PAYMENT TO INDIVIDUAL
Children and Adult Services,Head of Adults,Transfer Payments,515201,Social Services Clients,14-Aug-2014,2782057-1447686H,"1,362.00",REDACTED - PAYMENT TO INDIVIDUAL
Children and Adult Services,Head of Adults,Transfer Payments,515201,Social Services Clients,14-Aug-2014,2782059-1445889H,817.20,REDACTED - PAYMENT TO INDIVIDUAL
Children and Adult Services,Head of Adults,Transfer Payments,515201,Social Services Clients,14-Aug-2014,2782060-1449223H,694.96,REDACTED - PAYMENT TO INDIVIDUAL
Children and Adult Services,Head of Adults,Transfer Payments,515201,Social Services Clients,14-Aug-2014,2782063-1446503H,601.36,REDACTED - PAYMENT TO INDIVIDUAL
Children and Adult Services,Head of Adults,Transfer Payments,515201,Social Services Clients,14-Aug-2014,2782064-1445697H,576.68,REDACTED - PAYMENT TO INDIVIDUAL
Children and Adult Services,Head of Adults,Transfer Payments,515201,Social Services Clients,14-Aug-2014,2782066-1446952H,554.52,REDACTED - PAYMENT TO INDIVIDUAL
Children and Adult Services,Commissioning inc Supporting People,Transfer Payments,515210,Social Services Clients,14-Aug-2014,2782068-1450090H,"6,855.40",REDACTED - PAYMENT TO INDIVIDUAL
Children and Adult Services,Head of Adults,Transfer Payments,515209,Social Services Clients,14-Aug-2014,2782070-1446163D,706.32,REDACTED - PAYMENT TO INDIVIDUAL
Children and Adult Services,Head of Adults,Transfer Payments,515201,Social Services Clients,14-Aug-2014,2782071-1448673H,"1,122.20",REDACTED - PAYMENT TO INDIVIDUAL
Children and Adult Services,Head of Adults,Transfer Payments,515201,Social Services Clients,14-Aug-2014,2782072-1448554H,731.48,REDACTED - PAYMENT TO INDIVIDUAL
Children and Adult Services,Head of Adults,Transfer Payments,515201,Social Services Clients,14-Aug-2014,2782073-1446547H,731.48,REDACTED - PAYMENT TO INDIVIDUAL
Children and Adult Services,Head of Adults,Transfer Payments,515201,Social Services Clients,14-Aug-2014,2782075-1446470H,"2,383.52",REDACTED - PAYMENT TO INDIVIDUAL
Children and Adult Services,Childrens Services,Transfer Payments,515201,Social Services Clients,14-Aug-2014,2782077-1446884H,960.00,REDACTED - PAYMENT TO INDIVIDUAL
Children and Adult Services,Head of Adults,Transfer Payments,515201,Social Services Clients,14-Aug-2014,2782079-1443265H,908.00,REDACTED - PAYMENT TO INDIVIDUAL
Children and Adult Services,Head of Adults,Transfer Payments,515209,Social Services Clients,14-Aug-2014,2782083-1445391D,"1,500.00",REDACTED - PAYMENT TO INDIVIDUAL
Children and Adult Services,Head of Adults,Transfer Payments,515201,Social Services Clients,14-Aug-2014,2782086-1444881H,919.36,REDACTED - PAYMENT TO INDIVIDUAL
Children and Adult Services,Head of Adults,Transfer Payments,515201,Social Services Clients,14-Aug-2014,2782088-1443234H,"1,739.20",REDACTED - PAYMENT TO INDIVIDUAL
Children and Adult Services,Head of Adults,Transfer Payments,515201,Social Services Clients,14-Aug-2014,2782091-1449813H,521.50,REDACTED - PAYMENT TO INDIVIDUAL
Children and Adult Services,Head of Adults,Transfer Payments,515201,Social Services Clients,14-Aug-2014,2782094-1445015H,717.40,REDACTED - PAYMENT TO INDIVIDUAL
Children and Adult Services,Head of Adults,Transfer Payments,515201,Social Services Clients,14-Aug-2014,2782095-1447999H,628.04,REDACTED - PAYMENT TO INDIVIDUAL
Children and Adult Services,Head of Adults,Transfer Payments,515201,Social Services Clients,14-Aug-2014,2782096-1447804H,839.92,REDACTED - PAYMENT TO INDIVIDUAL
Children and Adult Services,Childrens Services,Transfer Payments,515201,Social Services Clients,14-Aug-2014,2782097-1449808H,"4,200.00",REDACTED - PAYMENT TO INDIVIDUAL
Children and Adult Services,Head of Adults,Transfer Payments,515201,Social Services Clients,14-Aug-2014,2782098-1446218H,976.12,REDACTED - PAYMENT TO INDIVIDUAL
Children and Adult Services,Head of Adults,Transfer Payments,515209,Social Services Clients,14-Aug-2014,2782100-1445235D,"1,663.40",REDACTED - PAYMENT TO INDIVIDUAL
Children and Adult Services,Head of Adults,Transfer Payments,515201,Social Services Clients,14-Aug-2014,2782101-1445049H,738.52,REDACTED - PAYMENT TO INDIVIDUAL
Children and Adult Services,Head of Adults,Transfer Payments,515201,Social Services Clients,14-Aug-2014,2782105-1446358H,512.64,REDACTED - PAYMENT TO INDIVIDUAL
Children and Adult Services,Head of Adults,Transfer Payments,515201,Social Services Clients,14-Aug-2014,2782107-1444089H,544.80,REDACTED - PAYMENT TO INDIVIDUAL
Children and Adult Services,Head of Adults,Transfer Payments,515201,Social Services Clients,14-Aug-2014,2782109-1448195H,862.60,REDACTED - PAYMENT TO INDIVIDUAL
Children and Adult Services,Head of Adults,Transfer Payments,515201,Social Services Clients,14-Aug-2014,2782110-1445737H,709.76,REDACTED - PAYMENT TO INDIVIDUAL
Children and Adult Services,Head of Adults,Transfer Payments,515209,Social Services Clients,14-Aug-2014,2782111-1445770D,"1,481.60",REDACTED - PAYMENT TO INDIVIDUAL
Children and Adult Services,Head of Adults,Transfer Payments,515201,Social Services Clients,14-Aug-2014,2782111-1445770H,681.00,REDACTED - PAYMENT TO INDIVIDUAL
Children and Adult Services,Head of Adults,Transfer Payments,515201,Social Services Clients,14-Aug-2014,2782115-1446949H,723.84,REDACTED - PAYMENT TO INDIVIDUAL
Children and Adult Services,Head of Adults,Transfer Payments,515201,Social Services Clients,14-Aug-2014,2782117-1447247H,746.48,REDACTED - PAYMENT TO INDIVIDUAL
Children and Adult Services,Head of Adults,Transfer Payments,515201,Social Services Clients,14-Aug-2014,2782118-1449467H,598.88,REDACTED - PAYMENT TO INDIVIDUAL
Children and Adult Services,Head of Adults,Transfer Payments,515201,Social Services Clients,14-Aug-2014,2782126-1448375H,727.96,REDACTED - PAYMENT TO INDIVIDUAL
Children and Adult Services,Head of Adults,Transfer Payments,515201,Social Services Clients,14-Aug-2014,2782127-1449246H,552.12,REDACTED - PAYMENT TO INDIVIDUAL
Children and Adult Services,Head of Adults,Transfer Payments,515201,Social Services Clients,14-Aug-2014,2782128-1447969H,998.80,REDACTED - PAYMENT TO INDIVIDUAL
Children and Adult Services,Head of Adults,Transfer Payments,515201,Social Services Clients,14-Aug-2014,2782129-1445377H,547.00,REDACTED - PAYMENT TO INDIVIDUAL
Children and Adult Services,Head of Adults,Transfer Payments,515201,Social Services Clients,14-Aug-2014,2782130-1450066H,516.48,REDACTED - PAYMENT TO INDIVIDUAL
Children and Adult Services,Head of Adults,Transfer Payments,515201,Social Services Clients,14-Aug-2014,2782132-1445442H,"2,380.00",REDACTED - PAYMENT TO INDIVIDUAL
Children and Adult Services,Head of Adults,Transfer Payments,515201,Social Services Clients,14-Aug-2014,2782135-1445820H,844.00,REDACTED - PAYMENT TO INDIVIDUAL
Children and Adult Services,Childrens Services,Transfer Payments,515201,Social Services Clients,14-Aug-2014,2782136-1446982H,540.00,REDACTED - PAYMENT TO INDIVIDUAL
Children and Adult Services,Head of Adults,Transfer Payments,515201,Social Services Clients,14-Aug-2014,2782139-1449144H,701.24,REDACTED - PAYMENT TO INDIVIDUAL
Children and Adult Services,Head of Adults,Transfer Payments,515201,Social Services Clients,14-Aug-2014,2782142-1448068H,"1,017.92",REDACTED - PAYMENT TO INDIVIDUAL
Children and Adult Services,Head of Adults,Transfer Payments,515201,Social Services Clients,14-Aug-2014,2782145-1448011H,590.80,REDACTED - PAYMENT TO INDIVIDUAL
Children and Adult Services,Head of Adults,Transfer Payments,515201,Social Services Clients,14-Aug-2014,2782148-1445833H,661.12,REDACTED - PAYMENT TO INDIVIDUAL
Children and Adult Services,Head of Adults,Transfer Payments,515201,Social Services Clients,14-Aug-2014,2782149-1447888H,"1,477.00",REDACTED - PAYMENT TO INDIVIDUAL
Children and Adult Services,Head of Adults,Transfer Payments,515201,Social Services Clients,14-Aug-2014,2782150-1449460H,"2,624.80",REDACTED - PAYMENT TO INDIVIDUAL
Children and Adult Services,Head of Adults,Transfer Payments,515201,Social Services Clients,14-Aug-2014,2782153-1446396H,862.60,REDACTED - PAYMENT TO INDIVIDUAL
Children and Adult Services,Head of Adults,Transfer Payments,515201,Social Services Clients,14-Aug-2014,2782154-1444635H,907.32,REDACTED - PAYMENT TO INDIVIDUAL
Children and Adult Services,Head of Adults,Transfer Payments,515201,Social Services Clients,14-Aug-2014,2782155-1447802H,"1,218.24",REDACTED - PAYMENT TO INDIVIDUAL
Children and Adult Services,Head of Adults,Transfer Payments,515201,Social Services Clients,14-Aug-2014,2782156-1444264H,"1,463.88",REDACTED - PAYMENT TO INDIVIDUAL
Children and Adult Services,Head of Adults,Transfer Payments,515201,Social Services Clients,14-Aug-2014,2782159-1445516H,590.80,REDACTED - PAYMENT TO INDIVIDUAL
Children and Adult Services,Head of Adults,Transfer Payments,515201,Social Services Clients,14-Aug-2014,2782159-1448822H,862.60,REDACTED - PAYMENT TO INDIVIDUAL
Children and Adult Services,Childrens Services,Transfer Payments,515201,Social Services Clients,14-Aug-2014,2782161-1447045H,960.00,REDACTED - PAYMENT TO INDIVIDUAL
Children and Adult Services,Head of Adults,Transfer Payments,515201,Social Services Clients,14-Aug-2014,2782162-1448611H,521.24,REDACTED - PAYMENT TO INDIVIDUAL
Children and Adult Services,Head of Adults,Transfer Payments,515201,Social Services Clients,14-Aug-2014,2782163-1445781H,703.72,REDACTED - PAYMENT TO INDIVIDUAL
Children and Adult Services,Head of Adults,Transfer Payments,515201,Social Services Clients,14-Aug-2014,2782164-1447302H,"1,271.20",REDACTED - PAYMENT TO INDIVIDUAL
Children and Adult Services,Head of Adults,Transfer Payments,515201,Social Services Clients,14-Aug-2014,2782166-1444823H,681.00,REDACTED - PAYMENT TO INDIVIDUAL
Children and Adult Services,Commissioning inc Supporting People,Transfer Payments,515210,Social Services Clients,14-Aug-2014,2782167-1447732H,776.28,REDACTED - PAYMENT TO INDIVIDUAL
Children and Adult Services,Head of Adults,Transfer Payments,515201,Social Services Clients,14-Aug-2014,2782168-1445868H,635.60,REDACTED - PAYMENT TO INDIVIDUAL
Children and Adult Services,Head of Adults,Transfer Payments,515201,Social Services Clients,14-Aug-2014,2782170-1447565H,"1,297.64",REDACTED - PAYMENT TO INDIVIDUAL
Children and Adult Services,Head of Adults,Transfer Payments,515201,Social Services Clients,14-Aug-2014,2782171-1446825H,633.36,REDACTED - PAYMENT TO INDIVIDUAL
Children and Adult Services,Head of Adults,Transfer Payments,515201,Social Services Clients,14-Aug-2014,2782172-1443962H,"1,452.80",REDACTED - PAYMENT TO INDIVIDUAL
Children and Adult Services,Head of Adults,Transfer Payments,515201,Social Services Clients,14-Aug-2014,2782177-1444005H,643.24,REDACTED - PAYMENT TO INDIVIDUAL
Children and Adult Services,Head of Adults,Transfer Payments,515201,Social Services Clients,14-Aug-2014,2782179-1446710H,675.20,REDACTED - PAYMENT TO INDIVIDUAL
Children and Adult Services,Head of Adults,Transfer Payments,515201,Social Services Clients,14-Aug-2014,2782182-1444010H,580.24,REDACTED - PAYMENT TO INDIVIDUAL
Children and Adult Services,Head of Adults,Transfer Payments,515201,Social Services Clients,14-Aug-2014,2782183-1443487H,"2,360.80",REDACTED - PAYMENT TO INDIVIDUAL
Children and Adult Services,Head of Adults,Transfer Payments,515201,Social Services Clients,14-Aug-2014,2782188-1448944H,908.00,REDACTED - PAYMENT TO INDIVIDUAL
Children and Adult Services,Head of Adults,Transfer Payments,515201,Social Services Clients,14-Aug-2014,2782189-1449253H,"1,248.63",REDACTED - PAYMENT TO INDIVIDUAL
Children and Adult Services,Head of Adults,Transfer Payments,515201,Social Services Clients,14-Aug-2014,2782190-1449344H,"1,223.80",REDACTED - PAYMENT TO INDIVIDUAL
Children and Adult Services,Head of Adults,Transfer Payments,515201,Social Services Clients,14-Aug-2014,2782191-1449588H,931.56,REDACTED - PAYMENT TO INDIVIDUAL
Children and Adult Services,Head of Adults,Transfer Payments,515209,Social Services Clients,14-Aug-2014,2782195-1446399D,907.44,REDACTED - PAYMENT TO INDIVIDUAL
Children and Adult Services,Head of Adults,Transfer Payments,515201,Social Services Clients,14-Aug-2014,2782195-1446399H,709.76,REDACTED - PAYMENT TO INDIVIDUAL
Children and Adult Services,Head of Adults,Transfer Payments,515201,Social Services Clients,14-Aug-2014,2782198-1448864H,621.04,REDACTED - PAYMENT TO INDIVIDUAL
Children and Adult Services,Childrens Services,Transfer Payments,515201,Social Services Clients,14-Aug-2014,2782201-1449080H,720.00,REDACTED - PAYMENT TO INDIVIDUAL
Children and Adult Services,Head of Adults,Transfer Payments,515201,Social Services Clients,14-Aug-2014,2782203-1448550H,601.36,REDACTED - PAYMENT TO INDIVIDUAL
Children and Adult Services,Head of Adults,Transfer Payments,515201,Social Services Clients,14-Aug-2014,2782205-1447261H,635.60,REDACTED - PAYMENT TO INDIVIDUAL
Children and Adult Services,Head of Adults,Transfer Payments,515201,Social Services Clients,14-Aug-2014,2782206-1447049H,964.84,REDACTED - PAYMENT TO INDIVIDUAL
Children and Adult Services,Head of Adults,Transfer Payments,515201,Social Services Clients,14-Aug-2014,2782207-1445693H,"1,308.20",REDACTED - PAYMENT TO INDIVIDUAL
Children and Adult Services,Head of Adults,Transfer Payments,515201,Social Services Clients,14-Aug-2014,2782209-1449323H,508.96,REDACTED - PAYMENT TO INDIVIDUAL
Children and Adult Services,Head of Adults,Third Party Payments,470101,Purchase of Care,14-Aug-2014,2782211-2178613,"1,864.56",ACOMB COURT.
Children and Adult Services,Head of Adults,Third Party Payments,473101,Purchase of Care,14-Aug-2014,2782212-1447337D,601.28,ACORN GRANGE NURSING HOME.
Children and Adult Services,Head of Adults,Third Party Payments,473101,Purchase of Care,14-Aug-2014,2782212-1448941D,614.24,ACORN GRANGE NURSING HOME.
Children and Adult Services,Head of Adults,Third Party Payments,470101,Purchase of Care,14-Aug-2014,2782212-2175826,"1,828.76",ACORN GRANGE NURSING HOME.
Children and Adult Services,Head of Adults,Third Party Payments,470101,Purchase of Care,14-Aug-2014,2782212-2175827,"1,828.76",ACORN GRANGE NURSING HOME.
Children and Adult Services,Head of Adults,Third Party Payments,471101,Purchase of Care,14-Aug-2014,2782212-2175828,"1,901.08",ACORN GRANGE NURSING HOME.
Children and Adult Services,Head of Adults,Third Party Payments,470101,Purchase of Care,14-Aug-2014,2782212-2175829,"1,828.76",ACORN GRANGE NURSING HOME.
Children and Adult Services,Head of Adults,Third Party Payments,471101,Purchase of Care,14-Aug-2014,2782212-2175830,"2,376.35",ACORN GRANGE NURSING HOME.
Children and Adult Services,Head of Adults,Third Party Payments,470101,Purchase of Care,14-Aug-2014,2782212-2175831,"1,828.76",ACORN GRANGE NURSING HOME.
Children and Adult Services,Head of Adults,Third Party Payments,471101,Purchase of Care,14-Aug-2014,2782212-2175832,"1,901.08",ACORN GRANGE NURSING HOME.
Children and Adult Services,Head of Adults,Third Party Payments,471101,Purchase of Care,14-Aug-2014,2782212-2175833,"1,901.08",ACORN GRANGE NURSING HOME.
Children and Adult Services,Head of Adults,Third Party Payments,470101,Purchase of Care,14-Aug-2014,2782212-2175834,"1,828.76",ACORN GRANGE NURSING HOME.
Children and Adult Services,Head of Adults,Third Party Payments,470101,Purchase of Care,14-Aug-2014,2782212-2175835,"1,828.76",ACORN GRANGE NURSING HOME.
Children and Adult Services,Head of Adults,Third Party Payments,471101,Purchase of Care,14-Aug-2014,2782212-2175836,"1,901.08",ACORN GRANGE NURSING HOME.
Children and Adult Services,Head of Adults,Third Party Payments,471101,Purchase of Care,14-Aug-2014,2782212-2175837,"1,901.08",ACORN GRANGE NURSING HOME.
Children and Adult Services,Head of Adults,Third Party Payments,471101,Purchase of Care,14-Aug-2014,2782212-2175838,"1,901.08",ACORN GRANGE NURSING HOME.
Children and Adult Services,Head of Adults,Third Party Payments,471101,Purchase of Care,14-Aug-2014,2782212-2175839,"1,901.08",ACORN GRANGE NURSING HOME.
Children and Adult Services,Head of Adults,Third Party Payments,471101,Purchase of Care,14-Aug-2014,2782212-2175840,"1,901.08",ACORN GRANGE NURSING HOME.
Children and Adult Services,Head of Adults,Third Party Payments,470101,Purchase of Care,14-Aug-2014,2782212-2175841,"1,828.76",ACORN GRANGE NURSING HOME.
Children and Adult Services,Head of Adults,Third Party Payments,470101,Purchase of Care,14-Aug-2014,2782212-2175842,"1,828.76",ACORN GRANGE NURSING HOME.
Children and Adult Services,Head of Adults,Third Party Payments,470101,Purchase of Care,14-Aug-2014,2782212-2175843,"1,828.76",ACORN GRANGE NURSING HOME.
Children and Adult Services,Head of Adults,Third Party Payments,470101,Purchase of Care,14-Aug-2014,2782212-2175844,"1,828.76",ACORN GRANGE NURSING HOME.
Children and Adult Services,Head of Adults,Third Party Payments,470101,Purchase of Care,14-Aug-2014,2782212-2175845,"1,828.76",ACORN GRANGE NURSING HOME.
Children and Adult Services,Head of Adults,Third Party Payments,470101,Purchase of Care,14-Aug-2014,2782212-2175846,"1,828.76",ACORN GRANGE NURSING HOME.
Children and Adult Services,Head of Adults,Third Party Payments,470101,Purchase of Care,14-Aug-2014,2782212-2175847,"1,828.76",ACORN GRANGE NURSING HOME.
Children and Adult Services,Head of Adults,Third Party Payments,471101,Purchase of Care,14-Aug-2014,2782212-2175848,"1,901.08",ACORN GRANGE NURSING HOME.
Children and Adult Services,Head of Adults,Third Party Payments,471101,Purchase of Care,14-Aug-2014,2782212-2175849,"1,425.81",ACORN GRANGE NURSING HOME.
Children and Adult Services,Head of Adults,Third Party Payments,471101,Purchase of Care,14-Aug-2014,2782212-2175850,"1,901.08",ACORN GRANGE NURSING HOME.
Children and Adult Services,Head of Adults,Third Party Payments,470101,Purchase of Care,14-Aug-2014,2782212-2175851,"1,828.76",ACORN GRANGE NURSING HOME.
Children and Adult Services,Head of Adults,Third Party Payments,470101,Purchase of Care,14-Aug-2014,2782212-2175852,"1,828.76",ACORN GRANGE NURSING HOME.
Children and Adult Services,Head of Adults,Third Party Payments,471101,Purchase of Care,14-Aug-2014,2782212-2175854,"1,901.08",ACORN GRANGE NURSING HOME.
Children and Adult Services,Head of Adults,Third Party Payments,471101,Purchase of Care,14-Aug-2014,2782212-2175856,"1,901.08",ACORN GRANGE NURSING HOME.
Children and Adult Services,Head of Adults,Third Party Payments,470101,Purchase of Care,14-Aug-2014,2782212-2175857,"1,828.76",ACORN GRANGE NURSING HOME.
Children and Adult Services,Head of Adults,Third Party Payments,471101,Purchase of Care,14-Aug-2014,2782212-2175858,"1,901.08",ACORN GRANGE NURSING HOME.
Children and Adult Services,Head of Adults,Third Party Payments,470101,Purchase of Care,14-Aug-2014,2782212-2175859,"1,828.76",ACORN GRANGE NURSING HOME.
Children and Adult Services,Head of Adults,Third Party Payments,471101,Purchase of Care,14-Aug-2014,2782212-2179137,777.14,ACORN GRANGE NURSING HOME.
Children and Adult Services,Head of Adults,Third Party Payments,470101,Purchase of Care,14-Aug-2014,2782212-2179139,"1,110.31",ACORN GRANGE NURSING HOME.
Children and Adult Services,Head of Adults,Third Party Payments,471101,Purchase of Care,14-Aug-2014,2782212-2179140,950.54,ACORN GRANGE NURSING HOME.
Children and Adult Services,Head of Adults,Transfer Payments,515201,Social Services Clients,14-Aug-2014,2782214-1447704H,"3,343.68",REDACTED - PAYMENT TO INDIVIDUAL
Children and Adult Services,Head of Adults,Transfer Payments,515209,Social Services Clients,14-Aug-2014,2782215-1446569D,580.00,REDACTED - PAYMENT TO INDIVIDUAL
Children and Adult Services,Head of Adults,Third Party Payments,470101,Purchase of Care,14-Aug-2014,2782219-2172310,"1,602.80",ADEY GARDENS CARE HOME.
Children and Adult Services,Head of Adults,Third Party Payments,470101,Purchase of Care,14-Aug-2014,2782219-2176987,"1,602.80",ADEY GARDENS CARE HOME.
Children and Adult Services,Head of Adults,Third Party Payments,471101,Purchase of Care,14-Aug-2014,2782220-2177032,"1,852.00",ADMIRAL COURT.
Children and Adult Services,Head of Adults,Third Party Payments,474101,Purchase of Care,14-Aug-2014,2782220-2177033,"1,852.00",ADMIRAL COURT.
Children and Adult Services,Head of Adults,Third Party Payments,474101,Purchase of Care,14-Aug-2014,2782220-2177034,"1,852.00",ADMIRAL COURT.
Children and Adult Services,Head of Adults,Transfer Payments,515201,Social Services Clients,14-Aug-2014,2782222-1444585H,576.00,REDACTED - PAYMENT TO INDIVIDUAL
Children and Adult Services,Head of Adults,Transfer Payments,515201,Social Services Clients,14-Aug-2014,2782225-1446655H,981.76,REDACTED - PAYMENT TO INDIVIDUAL
Children and Adult Services,Head of Adults,Transfer Payments,515201,Social Services Clients,14-Aug-2014,2782226-1444829H,"1,076.12",REDACTED - PAYMENT TO INDIVIDUAL
Children and Adult Services,Head of Adults,Transfer Payments,515201,Social Services Clients,14-Aug-2014,2782229-1448227H,"2,839.04",REDACTED - PAYMENT TO INDIVIDUAL
Children and Adult Services,Head of Adults,Transfer Payments,515201,Social Services Clients,14-Aug-2014,2782232-1448640H,844.00,REDACTED - PAYMENT TO INDIVIDUAL
Children and Adult Services,Head of Adults,Third Party Payments,474101,Purchase of Care,14-Aug-2014,2782233-2176816,"2,075.88",ALBANY CARE HOME.
Children and Adult Services,Head of Adults,Transfer Payments,515201,Social Services Clients,14-Aug-2014,2782237-1444173H,800.00,REDACTED - PAYMENT TO INDIVIDUAL
Children and Adult Services,Head of Adults,Transfer Payments,515201,Social Services Clients,14-Aug-2014,2782238-1445539H,"1,032.87",REDACTED - PAYMENT TO INDIVIDUAL
Children and Adult Services,Head of Adults,Transfer Payments,515201,Social Services Clients,14-Aug-2014,2782239-1443167H,504.68,REDACTED - PAYMENT TO INDIVIDUAL
Children and Adult Services,Childrens Services,Transfer Payments,515201,Social Services Clients,14-Aug-2014,2782240-1446155H,510.00,REDACTED - PAYMENT TO INDIVIDUAL
Children and Adult Services,Childrens Services,Transfer Payments,515201,Social Services Clients,14-Aug-2014,2782240-1446156H,996.00,REDACTED - PAYMENT TO INDIVIDUAL
Children and Adult Services,Head of Adults,Transfer Payments,515201,Social Services Clients,14-Aug-2014,2782241-1446550H,"1,109.00",REDACTED - PAYMENT TO INDIVIDUAL
Children and Adult Services,Head of Adults,Third Party Payments,470101,Purchase of Care,14-Aug-2014,2782242-2176396,"1,342.36",ALLIANCE CARE.
Children and Adult Services,Head of Adults,Debtors,930135,Debtor Residential Care - ISIS Rehabilitation,14-Aug-2014,2782242-2176397,"1,104.16",ALLIANCE CARE.
Children and Adult Services,Head of Adults,Third Party Payments,471101,Purchase of Care,14-Aug-2014,2782242-2176399,"2,003.56",ALLIANCE CARE.
Children and Adult Services,Head of Adults,Third Party Payments,474101,Purchase of Care,14-Aug-2014,2782242-2176400,"1,243.96",ALLIANCE CARE.
Children and Adult Services,Head of Adults,Debtors,930135,Debtor Residential Care - ISIS Rehabilitation,14-Aug-2014,2782242-2176402,"1,449.21",ALLIANCE CARE.
Children and Adult Services,Head of Adults,Third Party Payments,471101,Purchase of Care,14-Aug-2014,2782242-2176403,"1,507.76",ALLIANCE CARE.
Children and Adult Services,Head of Adults,Third Party Payments,471101,Purchase of Care,14-Aug-2014,2782242-2176404,"2,003.56",ALLIANCE CARE.
Children and Adult Services,Head of Adults,Third Party Payments,471101,Purchase of Care,14-Aug-2014,2782242-2176405,"2,003.56",ALLIANCE CARE.
Children and Adult Services,Head of Adults,Third Party Payments,471101,Purchase of Care,14-Aug-2014,2782242-2176407,"2,003.56",ALLIANCE CARE.
Children and Adult Services,Head of Adults,Third Party Payments,471101,Purchase of Care,14-Aug-2014,2782242-2176408,"2,003.56",ALLIANCE CARE.
Children and Adult Services,Head of Adults,Third Party Payments,470101,Purchase of Care,14-Aug-2014,2782242-2176409,"2,166.88",ALLIANCE CARE.
Children and Adult Services,Head of Adults,Third Party Payments,471101,Purchase of Care,14-Aug-2014,2782242-2176410,"2,003.56",ALLIANCE CARE.
Children and Adult Services,Head of Adults,Third Party Payments,474101,Purchase of Care,14-Aug-2014,2782242-2176411,"1,720.48",ALLIANCE CARE.
Children and Adult Services,Central Charges,Debtors,930024,Debtor-free nursing care,14-Aug-2014,2782242-2176412,522.77,ALLIANCE CARE.
Children and Adult Services,Head of Adults,Third Party Payments,471101,Purchase of Care,14-Aug-2014,2782242-2176414,"1,507.76",ALLIANCE CARE.
Children and Adult Services,Head of Adults,Debtors,930135,Debtor Residential Care - ISIS Rehabilitation,14-Aug-2014,2782242-2176415,"1,932.28",ALLIANCE CARE.
Children and Adult Services,Head of Adults,Debtors,930135,Debtor Residential Care - ISIS Rehabilitation,14-Aug-2014,2782242-2176418,"1,242.18",ALLIANCE CARE.
Children and Adult Services,Head of Adults,Third Party Payments,474101,Purchase of Care,14-Aug-2014,2782242-2176420,"1,011.80",ALLIANCE CARE.
Children and Adult Services,Head of Adults,Debtors,930135,Debtor Residential Care - ISIS Rehabilitation,14-Aug-2014,2782242-2176422,552.08,ALLIANCE CARE.
Children and Adult Services,Head of Adults,Third Party Payments,471101,Purchase of Care,14-Aug-2014,2782242-2176423,"1,380.26",ALLIANCE CARE.
Children and Adult Services,Head of Adults,Third Party Payments,470101,Purchase of Care,14-Aug-2014,2782242-2176424,855.72,ALLIANCE CARE.
Children and Adult Services,Head of Adults,Third Party Payments,471101,Purchase of Care,14-Aug-2014,2782242-2176425,"2,003.56",ALLIANCE CARE.
Children and Adult Services,Head of Adults,Third Party Payments,471101,Purchase of Care,14-Aug-2014,2782242-2176426,"2,003.56",ALLIANCE CARE.
Children and Adult Services,Head of Adults,Third Party Payments,470101,Purchase of Care,14-Aug-2014,2782242-2176427,"1,305.52",ALLIANCE CARE.
Children and Adult Services,Head of Adults,Third Party Payments,470101,Purchase of Care,14-Aug-2014,2782242-2176428,"1,932.28",ALLIANCE CARE.
Children and Adult Services,Head of Adults,Third Party Payments,471101,Purchase of Care,14-Aug-2014,2782242-2176429,"1,211.40",ALLIANCE CARE.
Children and Adult Services,Head of Adults,Third Party Payments,471101,Purchase of Care,14-Aug-2014,2782242-2176430,"1,507.76",ALLIANCE CARE.
Children and Adult Services,Head of Adults,Third Party Payments,470101,Purchase of Care,14-Aug-2014,2782242-2176431,"1,436.48",ALLIANCE CARE.
Children and Adult Services,Head of Adults,Third Party Payments,471101,Purchase of Care,14-Aug-2014,2782242-2176432,"1,446.60",ALLIANCE CARE.
Children and Adult Services,Head of Adults,Third Party Payments,471101,Purchase of Care,14-Aug-2014,2782242-2176433,"2,003.56",ALLIANCE CARE.
Children and Adult Services,Head of Adults,Third Party Payments,470101,Purchase of Care,14-Aug-2014,2782242-2176434,"1,932.28",ALLIANCE CARE.
Children and Adult Services,Head of Adults,Third Party Payments,471101,Purchase of Care,14-Aug-2014,2782242-2176435,"1,263.40",ALLIANCE CARE.
Children and Adult Services,Head of Adults,Third Party Payments,474101,Purchase of Care,14-Aug-2014,2782242-2176436,"1,376.00",ALLIANCE CARE.
Children and Adult Services,Head of Adults,Third Party Payments,471101,Purchase of Care,14-Aug-2014,2782242-2176438,"1,498.92",ALLIANCE CARE.
Children and Adult Services,Head of Adults,Third Party Payments,470101,Purchase of Care,14-Aug-2014,2782242-2176440,"1,400.52",ALLIANCE CARE.
Children and Adult Services,Head of Adults,Third Party Payments,474101,Purchase of Care,14-Aug-2014,2782242-2176441,"1,605.36",ALLIANCE CARE.
Children and Adult Services,Head of Adults,Third Party Payments,470101,Purchase of Care,14-Aug-2014,2782242-2176443,"1,436.48",ALLIANCE CARE.
Children and Adult Services,Head of Adults,Third Party Payments,470101,Purchase of Care,14-Aug-2014,2782242-2176444,"1,328.32",ALLIANCE CARE.
Children and Adult Services,Head of Adults,Third Party Payments,471101,Purchase of Care,14-Aug-2014,2782242-2176445,"1,328.00",ALLIANCE CARE.
Children and Adult Services,Head of Adults,Third Party Payments,470101,Purchase of Care,14-Aug-2014,2782242-2176446,"1,162.72",ALLIANCE CARE.
Children and Adult Services,Head of Adults,Third Party Payments,470101,Purchase of Care,14-Aug-2014,2782242-2176447,"1,932.28",ALLIANCE CARE.
Children and Adult Services,Head of Adults,Third Party Payments,470101,Purchase of Care,14-Aug-2014,2782242-2176448,"2,052.88",ALLIANCE CARE.
Children and Adult Services,Head of Adults,Third Party Payments,471101,Purchase of Care,14-Aug-2014,2782242-2176449,"1,029.28",ALLIANCE CARE.
Children and Adult Services,Head of Adults,Third Party Payments,470101,Purchase of Care,14-Aug-2014,2782242-2176450,"1,671.08",ALLIANCE CARE.
Children and Adult Services,Head of Adults,Third Party Payments,471101,Purchase of Care,14-Aug-2014,2782242-2176451,"2,003.56",ALLIANCE CARE.
Children and Adult Services,Head of Adults,Third Party Payments,470101,Purchase of Care,14-Aug-2014,2782242-2176452,"1,436.48",ALLIANCE CARE.
Children and Adult Services,Head of Adults,Third Party Payments,470101,Purchase of Care,14-Aug-2014,2782242-2179009,851.27,ALLIANCE CARE.
Children and Adult Services,Head of Adults,Debtors,930135,Debtor Residential Care - ISIS Rehabilitation,14-Aug-2014,2782242-2179015,690.10,ALLIANCE CARE.
Children and Adult Services,Head of Adults,Debtors,930135,Debtor Residential Care - ISIS Rehabilitation,14-Aug-2014,2782242-2179164,552.08,ALLIANCE CARE.
Children and Adult Services,Head of Adults,Third Party Payments,470101,Purchase of Care,14-Aug-2014,2782243-2175264,"1,806.96",ALLIANCE CARE.
Children and Adult Services,Head of Adults,Third Party Payments,470101,Purchase of Care,14-Aug-2014,2782243-2175267,"1,998.96",ALLIANCE CARE.
Children and Adult Services,Head of Adults,Third Party Payments,470101,Purchase of Care,14-Aug-2014,2782243-2175270,"1,998.96",ALLIANCE CARE.
Children and Adult Services,Head of Adults,Third Party Payments,474101,Purchase of Care,14-Aug-2014,2782243-2175271,"2,033.76",ALLIANCE CARE.
Children and Adult Services,Head of Adults,Third Party Payments,474101,Purchase of Care,14-Aug-2014,2782243-2175273,"2,033.76",ALLIANCE CARE.
Children and Adult Services,Head of Adults,Third Party Payments,470101,Purchase of Care,14-Aug-2014,2782243-2175277,"1,679.56",ALLIANCE CARE.
Children and Adult Services,Head of Adults,Third Party Payments,470101,Purchase of Care,14-Aug-2014,2782243-2175280,"1,153.64",ALLIANCE CARE.
Children and Adult Services,Head of Adults,Third Party Payments,470101,Purchase of Care,14-Aug-2014,2782243-2175281,899.04,ALLIANCE CARE.
Children and Adult Services,Head of Adults,Third Party Payments,474101,Purchase of Care,14-Aug-2014,2782243-2179193,"1,525.32",ALLIANCE CARE.
Children and Adult Services,Head of Adults,Transfer Payments,515201,Social Services Clients,14-Aug-2014,2782244-1446777H,983.68,REDACTED - PAYMENT TO INDIVIDUAL
Children and Adult Services,Head of Adults,Third Party Payments,470101,Purchase of Care,14-Aug-2014,2782247-2178604,"1,564.08",AMELIA HOUSE.
Children and Adult Services,Head of Adults,Transfer Payments,515201,Social Services Clients,14-Aug-2014,2782251-1447669H,634.00,REDACTED - PAYMENT TO INDIVIDUAL
Children and Adult Services,Head of Adults,Transfer Payments,515201,Social Services Clients,14-Aug-2014,2782256-1443930H,687.60,REDACTED - PAYMENT TO INDIVIDUAL
Children and Adult Services,Head of Adults,Transfer Payments,515201,Social Services Clients,14-Aug-2014,2782257-1444757H,759.60,REDACTED - PAYMENT TO INDIVIDUAL
Children and Adult Services,Head of Adults,Transfer Payments,515209,Social Services Clients,14-Aug-2014,2782259-1445746D,560.00,REDACTED - PAYMENT TO INDIVIDUAL
Children and Adult Services,Head of Adults,Transfer Payments,515209,Social Services Clients,14-Aug-2014,2782261-1445161D,528.96,REDACTED - PAYMENT TO INDIVIDUAL
Children and Adult Services,Head of Adults,Transfer Payments,515201,Social Services Clients,14-Aug-2014,2782263-1447088H,"1,168.04",REDACTED - PAYMENT TO INDIVIDUAL
Children and Adult Services,Head of Adults,Transfer Payments,515201,Social Services Clients,14-Aug-2014,2782265-1444684H,532.32,REDACTED - PAYMENT TO INDIVIDUAL
Children and Adult Services,Head of Adults,Transfer Payments,515201,Social Services Clients,14-Aug-2014,2782266-1446862H,880.12,REDACTED - PAYMENT TO INDIVIDUAL
Children and Adult Services,Head of Adults,Third Party Payments,474101,Purchase of Care,14-Aug-2014,2782267-2176534,"1,560.00",ANN CHARLTON LODGE.
Children and Adult Services,Head of Adults,Transfer Payments,515201,Social Services Clients,14-Aug-2014,2782270-1447191H,506.08,REDACTED - PAYMENT TO INDIVIDUAL
Children and Adult Services,Head of Adults,Transfer Payments,515201,Social Services Clients,14-Aug-2014,2782272-1449310H,656.00,REDACTED - PAYMENT TO INDIVIDUAL
Children and Adult Services,Head of Adults,Transfer Payments,515201,Social Services Clients,14-Aug-2014,2782274-1445540H,908.00,REDACTED - PAYMENT TO INDIVIDUAL
Children and Adult Services,Head of Adults,Transfer Payments,515201,Social Services Clients,14-Aug-2014,2782276-1443748H,"3,022.40",REDACTED - PAYMENT TO INDIVIDUAL
Children and Adult Services,Head of Adults,Transfer Payments,515201,Social Services Clients,14-Aug-2014,2782276-1445537H,771.80,REDACTED - PAYMENT TO INDIVIDUAL
Children and Adult Services,Head of Adults,Transfer Payments,515201,Social Services Clients,14-Aug-2014,2782277-1448681H,955.84,REDACTED - PAYMENT TO INDIVIDUAL
Children and Adult Services,Head of Adults,Third Party Payments,470101,Purchase of Care,14-Aug-2014,2782279-2178960,"1,419.43",ARK HOUSE REHAB LTD.
Children and Adult Services,Education,Construction Work,908105,Construction work,14-Aug-2014,2782280-416061,"8,600.94",ARQIVA LTD.
Children and Adult Services,Head of Adults,Transfer Payments,515201,Social Services Clients,14-Aug-2014,2782281-1446382H,675.20,REDACTED - PAYMENT TO INDIVIDUAL
Children and Adult Services,Head of Adults,Third Party Payments,470101,Purchase of Care,14-Aug-2014,2782282-2175431,"1,828.76",ASCOT CARE NORTHEAST LTD.
Children and Adult Services,Head of Adults,Third Party Payments,474101,Purchase of Care,14-Aug-2014,2782282-2175432,"1,140.84",ASCOT CARE NORTHEAST LTD.
Children and Adult Services,Head of Adults,Third Party Payments,474101,Purchase of Care,14-Aug-2014,2782282-2175435,"1,079.88",ASCOT CARE NORTHEAST LTD.
Children and Adult Services,Head of Adults,Third Party Payments,470101,Purchase of Care,14-Aug-2014,2782282-2175437,"1,276.52",ASCOT CARE NORTHEAST LTD.
Children and Adult Services,Head of Adults,Third Party Payments,470101,Purchase of Care,14-Aug-2014,2782282-2175438,"1,828.76",ASCOT CARE NORTHEAST LTD.
Children and Adult Services,Head of Adults,Third Party Payments,470101,Purchase of Care,14-Aug-2014,2782282-2175440,979.69,ASCOT CARE NORTHEAST LTD.
Children and Adult Services,Head of Adults,Third Party Payments,470101,Purchase of Care,14-Aug-2014,2782282-2175442,"1,828.76",ASCOT CARE NORTHEAST LTD.
Children and Adult Services,Head of Adults,Debtors,930135,Debtor Residential Care - ISIS Rehabilitation,14-Aug-2014,2782282-2175444,"1,449.21",ASCOT CARE NORTHEAST LTD.
Children and Adult Services,Head of Adults,Third Party Payments,471101,Purchase of Care,14-Aug-2014,2782282-2175445,"1,405.28",ASCOT CARE NORTHEAST LTD.
Children and Adult Services,Head of Adults,Third Party Payments,470101,Purchase of Care,14-Aug-2014,2782282-2175446,"1,828.76",ASCOT CARE NORTHEAST LTD.
Children and Adult Services,Head of Adults,Third Party Payments,470101,Purchase of Care,14-Aug-2014,2782282-2175447,714.92,ASCOT CARE NORTHEAST LTD.
Children and Adult Services,Head of Adults,Third Party Payments,474101,Purchase of Care,14-Aug-2014,2782282-2175448,"1,382.28",ASCOT CARE NORTHEAST LTD.
Children and Adult Services,Head of Adults,Third Party Payments,474101,Purchase of Care,14-Aug-2014,2782282-2175450,"1,124.80",ASCOT CARE NORTHEAST LTD.
Children and Adult Services,Head of Adults,Third Party Payments,474101,Purchase of Care,14-Aug-2014,2782282-2175452,"1,327.76",ASCOT CARE NORTHEAST LTD.
Children and Adult Services,Head of Adults,Third Party Payments,474101,Purchase of Care,14-Aug-2014,2782282-2175455,"1,252.00",ASCOT CARE NORTHEAST LTD.
Children and Adult Services,Head of Adults,Third Party Payments,471101,Purchase of Care,14-Aug-2014,2782282-2175457,"1,365.80",ASCOT CARE NORTHEAST LTD.
Children and Adult Services,Head of Adults,Third Party Payments,474101,Purchase of Care,14-Aug-2014,2782282-2175458,"1,313.84",ASCOT CARE NORTHEAST LTD.
Children and Adult Services,Head of Adults,Third Party Payments,470101,Purchase of Care,14-Aug-2014,2782282-2175460,"1,828.76",ASCOT CARE NORTHEAST LTD.
Children and Adult Services,Head of Adults,Third Party Payments,471101,Purchase of Care,14-Aug-2014,2782282-2179257,552.71,ASCOT CARE NORTHEAST LTD.
Children and Adult Services,Head of Adults,Third Party Payments,470101,Purchase of Care,14-Aug-2014,2782282-2179258,"3,069.70",ASCOT CARE NORTHEAST LTD.
Children and Adult Services,Head of Adults,Third Party Payments,470101,Purchase of Care,14-Aug-2014,2782282-2179260,653.12,ASCOT CARE NORTHEAST LTD.
Children and Adult Services,Head of Adults,Third Party Payments,470101,Purchase of Care,14-Aug-2014,2782283-2176148,"1,784.00",ASCOT CARE T/A THE GARDENS CARE HOME.
Children and Adult Services,Head of Adults,Third Party Payments,470101,Purchase of Care,14-Aug-2014,2782284-2178397,"2,352.00",ASHFIELD NURSING HOME LTD.
Children and Adult Services,Head of Adults,Third Party Payments,471101,Purchase of Care,14-Aug-2014,2782286-2178395,"1,818.56",ASTOR LODGE VIEW.
Children and Adult Services,Head of Adults,Transfer Payments,515201,Social Services Clients,14-Aug-2014,2782289-1444102H,516.96,REDACTED - PAYMENT TO INDIVIDUAL
Children and Adult Services,Head of Adults,Transfer Payments,515201,Social Services Clients,14-Aug-2014,2782290-1446111H,873.95,REDACTED - PAYMENT TO INDIVIDUAL
Children and Adult Services,Head of Adults,Transfer Payments,515201,Social Services Clients,14-Aug-2014,2782291-1445100H,"1,434.80",REDACTED - PAYMENT TO INDIVIDUAL
Children and Adult Services,Head of Adults,Transfer Payments,515201,Social Services Clients,14-Aug-2014,2782292-1444988H,777.20,REDACTED - PAYMENT TO INDIVIDUAL
Children and Adult Services,Childrens Services,Transfer Payments,515201,Social Services Clients,14-Aug-2014,2782293-1445960H,510.00,REDACTED - PAYMENT TO INDIVIDUAL
Children and Adult Services,Childrens Services,Transfer Payments,515201,Social Services Clients,14-Aug-2014,2782293-1446123H,510.00,REDACTED - PAYMENT TO INDIVIDUAL
Children and Adult Services,Head of Adults,Transfer Payments,515201,Social Services Clients,14-Aug-2014,2782294-1447014H,772.48,REDACTED - PAYMENT TO INDIVIDUAL
Children and Adult Services,Head of Adults,Third Party Payments,478101,Purchase of Care,14-Aug-2014,2782295-1443189H,"6,807.20",AUTISM CARE UK (4) LTD.
Children and Adult Services,Head of Adults,Third Party Payments,478101,Purchase of Care,14-Aug-2014,2782295-1443624H,"4,148.64",AUTISM CARE UK (4) LTD.
Children and Adult Services,Head of Adults,Third Party Payments,478101,Purchase of Care,14-Aug-2014,2782295-1444670H,"6,163.72",AUTISM CARE UK (4) LTD.
Children and Adult Services,Head of Adults,Third Party Payments,478101,Purchase of Care,14-Aug-2014,2782295-1444710H,"4,148.64",AUTISM CARE UK (4) LTD.
Children and Adult Services,Head of Adults,Third Party Payments,478101,Purchase of Care,14-Aug-2014,2782295-1444828H,"3,378.20",AUTISM CARE UK (4) LTD.
Children and Adult Services,Head of Adults,Third Party Payments,478101,Purchase of Care,14-Aug-2014,2782295-1444932H,"3,200.40",AUTISM CARE UK (4) LTD.
Children and Adult Services,Head of Adults,Third Party Payments,478101,Purchase of Care,14-Aug-2014,2782295-1444950H,"4,148.64",AUTISM CARE UK (4) LTD.
Children and Adult Services,Head of Adults,Third Party Payments,478101,Purchase of Care,14-Aug-2014,2782295-1444951H,"4,148.64",AUTISM CARE UK (4) LTD.
Children and Adult Services,Head of Adults,Third Party Payments,478101,Purchase of Care,14-Aug-2014,2782295-1445684H,"6,502.40",AUTISM CARE UK (4) LTD.
Children and Adult Services,Head of Adults,Third Party Payments,470101,Purchase of Care,14-Aug-2014,2782295-2177802,"4,480.00",AUTISM CARE UK (4) LTD.
Children and Adult Services,Head of Adults,Third Party Payments,470101,Purchase of Care,14-Aug-2014,2782295-2177804,568.96,AUTISM CARE UK (4) LTD.
Children and Adult Services,Head of Adults,Third Party Payments,470101,Purchase of Care,14-Aug-2014,2782295-2177805,"2,907.80",AUTISM CARE UK (4) LTD.
Children and Adult Services,Head of Adults,Third Party Payments,470101,Purchase of Care,14-Aug-2014,2782296-2178401,"9,625.52",AUTISM NORTH.
Children and Adult Services,Head of Adults,Third Party Payments,470101,Purchase of Care,14-Aug-2014,2782296-2178402,"9,803.68",AUTISM NORTH.
Children and Adult Services,Head of Adults,Third Party Payments,470101,Purchase of Care,14-Aug-2014,2782297-2177807,"6,478.68",AUTISM NORTH.
Children and Adult Services,Head of Adults,Transfer Payments,515201,Social Services Clients,14-Aug-2014,2782298-1445786H,"2,975.00",REDACTED - PAYMENT TO INDIVIDUAL
Children and Adult Services,Head of Adults,Third Party Payments,471101,Purchase of Care,14-Aug-2014,2782299-2178071,"1,901.08",AYCLIFFE CARE HOME.
Children and Adult Services,Head of Adults,Third Party Payments,471101,Purchase of Care,14-Aug-2014,2782299-2178074,"1,901.08",AYCLIFFE CARE HOME.
Children and Adult Services,Head of Adults,Third Party Payments,471101,Purchase of Care,14-Aug-2014,2782299-2178075,"1,901.08",AYCLIFFE CARE HOME.
Children and Adult Services,Head of Adults,Third Party Payments,471101,Purchase of Care,14-Aug-2014,2782299-2178076,"1,901.08",AYCLIFFE CARE HOME.
Children and Adult Services,Head of Adults,Third Party Payments,474101,Purchase of Care,14-Aug-2014,2782299-2178078,941.20,AYCLIFFE CARE HOME.
Children and Adult Services,Head of Adults,Third Party Payments,471101,Purchase of Care,14-Aug-2014,2782299-2178080,"1,901.08",AYCLIFFE CARE HOME.
Children and Adult Services,Head of Adults,Third Party Payments,470101,Purchase of Care,14-Aug-2014,2782299-2178082,"1,828.76",AYCLIFFE CARE HOME.
Children and Adult Services,Head of Adults,Third Party Payments,470101,Purchase of Care,14-Aug-2014,2782299-2178083,"1,828.76",AYCLIFFE CARE HOME.
Children and Adult Services,Head of Adults,Third Party Payments,470101,Purchase of Care,14-Aug-2014,2782299-2178084,"1,828.76",AYCLIFFE CARE HOME.
Children and Adult Services,Head of Adults,Third Party Payments,470101,Purchase of Care,14-Aug-2014,2782299-2178085,"1,828.76",AYCLIFFE CARE HOME.
Children and Adult Services,Head of Adults,Third Party Payments,471101,Purchase of Care,14-Aug-2014,2782299-2178086,"1,901.08",AYCLIFFE CARE HOME.
Children and Adult Services,Head of Adults,Third Party Payments,471101,Purchase of Care,14-Aug-2014,2782299-2178089,"1,901.08",AYCLIFFE CARE HOME.
Children and Adult Services,Head of Adults,Third Party Payments,470101,Purchase of Care,14-Aug-2014,2782299-2178090,"1,828.76",AYCLIFFE CARE HOME.
Children and Adult Services,Head of Adults,Third Party Payments,470101,Purchase of Care,14-Aug-2014,2782299-2178091,"1,828.76",AYCLIFFE CARE HOME.
Children and Adult Services,Head of Adults,Third Party Payments,471101,Purchase of Care,14-Aug-2014,2782299-2178092,"1,901.08",AYCLIFFE CARE HOME.
Children and Adult Services,Head of Adults,Third Party Payments,474101,Purchase of Care,14-Aug-2014,2782299-2178093,"1,920.08",AYCLIFFE CARE HOME.
Children and Adult Services,Head of Adults,Third Party Payments,471101,Purchase of Care,14-Aug-2014,2782299-2178095,"1,901.08",AYCLIFFE CARE HOME.
Children and Adult Services,Head of Adults,Third Party Payments,470101,Purchase of Care,14-Aug-2014,2782299-2178096,"1,828.76",AYCLIFFE CARE HOME.
Children and Adult Services,Head of Adults,Third Party Payments,474101,Purchase of Care,14-Aug-2014,2782299-2178097,"1,920.08",AYCLIFFE CARE HOME.
Children and Adult Services,Head of Adults,Third Party Payments,470101,Purchase of Care,14-Aug-2014,2782299-2178099,"1,828.76",AYCLIFFE CARE HOME.
Children and Adult Services,Head of Adults,Third Party Payments,474101,Purchase of Care,14-Aug-2014,2782299-2178100,922.76,AYCLIFFE CARE HOME.
Children and Adult Services,Head of Adults,Third Party Payments,470101,Purchase of Care,14-Aug-2014,2782299-2178102,"1,828.76",AYCLIFFE CARE HOME.
Children and Adult Services,Head of Adults,Third Party Payments,471101,Purchase of Care,14-Aug-2014,2782299-2178103,"1,901.08",AYCLIFFE CARE HOME.
Children and Adult Services,Head of Adults,Third Party Payments,470101,Purchase of Care,14-Aug-2014,2782299-2178104,"1,828.76",AYCLIFFE CARE HOME.
Children and Adult Services,Head of Adults,Third Party Payments,471101,Purchase of Care,14-Aug-2014,2782299-2178105,"1,901.08",AYCLIFFE CARE HOME.
Children and Adult Services,Head of Adults,Third Party Payments,470101,Purchase of Care,14-Aug-2014,2782299-2178106,"1,828.76",AYCLIFFE CARE HOME.
Children and Adult Services,Head of Adults,Third Party Payments,471101,Purchase of Care,14-Aug-2014,2782299-2178107,"1,901.08",AYCLIFFE CARE HOME.
Children and Adult Services,Head of Adults,Third Party Payments,471101,Purchase of Care,14-Aug-2014,2782299-2178108,"1,901.08",AYCLIFFE CARE HOME.
Children and Adult Services,Head of Adults,Third Party Payments,471101,Purchase of Care,14-Aug-2014,2782299-2178109,"1,901.08",AYCLIFFE CARE HOME.
Children and Adult Services,Head of Adults,Third Party Payments,470101,Purchase of Care,14-Aug-2014,2782299-2178110,"1,828.76",AYCLIFFE CARE HOME.
Children and Adult Services,Head of Adults,Third Party Payments,471101,Purchase of Care,14-Aug-2014,2782299-2179142,"1,765.28",AYCLIFFE CARE HOME.
Children and Adult Services,Head of Adults,Third Party Payments,470101,Purchase of Care,14-Aug-2014,2782299-2179143,"1,894.07",AYCLIFFE CARE HOME.
Children and Adult Services,Head of Adults,Third Party Payments,470101,Purchase of Care,14-Aug-2014,2782299-2179145,"1,371.57",AYCLIFFE CARE HOME.
Children and Adult Services,Head of Adults,Third Party Payments,470101,Purchase of Care,14-Aug-2014,2782299-2179149,"2,351.26",AYCLIFFE CARE HOME.
Children and Adult Services,Childrens Services,Transfer Payments,515201,Social Services Clients,14-Aug-2014,2782301-1447621H,"1,186.00",REDACTED - PAYMENT TO INDIVIDUAL
Children and Adult Services,Head of Adults,Transfer Payments,515201,Social Services Clients,14-Aug-2014,2782303-1444069H,572.81,REDACTED - PAYMENT TO INDIVIDUAL
Children and Adult Services,Head of Adults,Third Party Payments,471101,Purchase of Care,14-Aug-2014,2782304-2176980,"1,744.00",BARCHESTER HEALTHCARE HOMES LTD.
Children and Adult Services,Head of Adults,Third Party Payments,471101,Purchase of Care,14-Aug-2014,2782304-2176981,"1,744.00",BARCHESTER HEALTHCARE HOMES LTD.
Children and Adult Services,Head of Adults,Third Party Payments,470101,Purchase of Care,14-Aug-2014,2782304-2176982,"1,720.00",BARCHESTER HEALTHCARE HOMES LTD.
Children and Adult Services,Head of Adults,Third Party Payments,471101,Purchase of Care,14-Aug-2014,2782304-2176983,"1,744.00",BARCHESTER HEALTHCARE HOMES LTD.
Children and Adult Services,Head of Adults,Third Party Payments,471101,Purchase of Care,14-Aug-2014,2782304-2176984,"1,744.00",BARCHESTER HEALTHCARE HOMES LTD.
Children and Adult Services,Head of Adults,Third Party Payments,474101,Purchase of Care,14-Aug-2014,2782305-2178667,"1,984.00",BARCHESTER HEALTHCARE HOMES LTD.
Children and Adult Services,Head of Adults,Third Party Payments,471101,Purchase of Care,14-Aug-2014,2782306-2178660,"1,100.00",BARCHESTER HEALTHCARE HOMES LTD.
Children and Adult Services,Head of Adults,Third Party Payments,474101,Purchase of Care,14-Aug-2014,2782307-2175990,"1,920.08",BARCHESTER HEALTHCARE HOMES LTD.
Children and Adult Services,Head of Adults,Third Party Payments,474101,Purchase of Care,14-Aug-2014,2782307-2175993,960.04,BARCHESTER HEALTHCARE HOMES LTD.
Children and Adult Services,Head of Adults,Third Party Payments,474101,Purchase of Care,14-Aug-2014,2782307-2175995,"1,585.44",BARCHESTER HEALTHCARE HOMES LTD.
Children and Adult Services,Head of Adults,Third Party Payments,474101,Purchase of Care,14-Aug-2014,2782307-2175997,835.71,BARCHESTER HEALTHCARE HOMES LTD.
Children and Adult Services,Head of Adults,Third Party Payments,474101,Purchase of Care,14-Aug-2014,2782307-2175999,"1,920.08",BARCHESTER HEALTHCARE HOMES LTD.
Children and Adult Services,Head of Adults,Third Party Payments,474101,Purchase of Care,14-Aug-2014,2782307-2176002,"1,920.08",BARCHESTER HEALTHCARE HOMES LTD.
Children and Adult Services,Head of Adults,Third Party Payments,474101,Purchase of Care,14-Aug-2014,2782307-2176005,"2,094.08",BARCHESTER HEALTHCARE HOMES LTD.
Children and Adult Services,Head of Adults,Third Party Payments,474101,Purchase of Care,14-Aug-2014,2782307-2176007,"1,920.08",BARCHESTER HEALTHCARE HOMES LTD.
Children and Adult Services,Head of Adults,Third Party Payments,474101,Purchase of Care,14-Aug-2014,2782307-2176010,"2,094.08",BARCHESTER HEALTHCARE HOMES LTD.
Children and Adult Services,Head of Adults,Third Party Payments,474101,Purchase of Care,14-Aug-2014,2782307-2176013,"1,920.08",BARCHESTER HEALTHCARE HOMES LTD.
Children and Adult Services,Head of Adults,Third Party Payments,474101,Purchase of Care,14-Aug-2014,2782307-2176015,"1,920.08",BARCHESTER HEALTHCARE HOMES LTD.
Children and Adult Services,Head of Adults,Third Party Payments,474101,Purchase of Care,14-Aug-2014,2782307-2176017,"1,920.08",BARCHESTER HEALTHCARE HOMES LTD.
Children and Adult Services,Head of Adults,Third Party Payments,474101,Purchase of Care,14-Aug-2014,2782307-2176020,"1,920.08",BARCHESTER HEALTHCARE HOMES LTD.
Children and Adult Services,Head of Adults,Third Party Payments,474101,Purchase of Care,14-Aug-2014,2782307-2176023,"1,920.08",BARCHESTER HEALTHCARE HOMES LTD.
Children and Adult Services,Head of Adults,Third Party Payments,474101,Purchase of Care,14-Aug-2014,2782307-2176026,"1,920.08",BARCHESTER HEALTHCARE HOMES LTD.
Children and Adult Services,Head of Adults,Third Party Payments,474101,Purchase of Care,14-Aug-2014,2782307-2176028,"1,920.08",BARCHESTER HEALTHCARE HOMES LTD.
Children and Adult Services,Head of Adults,Third Party Payments,474101,Purchase of Care,14-Aug-2014,2782307-2176031,"1,920.08",BARCHESTER HEALTHCARE HOMES LTD.
Children and Adult Services,Head of Adults,Third Party Payments,474101,Purchase of Care,14-Aug-2014,2782307-2176034,"2,094.08",BARCHESTER HEALTHCARE HOMES LTD.
Children and Adult Services,Head of Adults,Third Party Payments,474101,Purchase of Care,14-Aug-2014,2782307-2176036,"1,920.08",BARCHESTER HEALTHCARE HOMES LTD.
Children and Adult Services,Head of Adults,Third Party Payments,474101,Purchase of Care,14-Aug-2014,2782307-2176039,"1,920.08",BARCHESTER HEALTHCARE HOMES LTD.
Children and Adult Services,Head of Adults,Third Party Payments,474101,Purchase of Care,14-Aug-2014,2782307-2176043,"1,920.08",BARCHESTER HEALTHCARE HOMES LTD.
Children and Adult Services,Head of Adults,Third Party Payments,474101,Purchase of Care,14-Aug-2014,2782307-2176047,"1,920.08",BARCHESTER HEALTHCARE HOMES LTD.
Children and Adult Services,Head of Adults,Third Party Payments,474101,Purchase of Care,14-Aug-2014,2782307-2176050,"2,094.08",BARCHESTER HEALTHCARE HOMES LTD.
Children and Adult Services,Head of Adults,Third Party Payments,471101,Purchase of Care,14-Aug-2014,2782308-2178608,"1,820.56",BARCHESTER HEALTHCARE HOMES LTD.
Children and Adult Services,Head of Adults,Third Party Payments,471101,Purchase of Care,14-Aug-2014,2782309-2178605,"1,642.20",BARCHESTER HEALTHCARE HOMES LTD.
Children and Adult Services,Head of Adults,Third Party Payments,474101,Purchase of Care,14-Aug-2014,2782310-2176866,"1,447.52",BARNES COURT NURSING HOME.
Children and Adult Services,Head of Adults,Third Party Payments,474101,Purchase of Care,14-Aug-2014,2782310-2176867,"1,839.12",BARNES COURT NURSING HOME.
Children and Adult Services,Head of Adults,Transfer Payments,515201,Social Services Clients,14-Aug-2014,2782311-1443885H,"2,616.00",REDACTED - PAYMENT TO INDIVIDUAL
Children and Adult Services,Head of Adults,Transfer Payments,515201,Social Services Clients,14-Aug-2014,2782312-1446742H,726.40,REDACTED - PAYMENT TO INDIVIDUAL
Children and Adult Services,Head of Adults,Third Party Payments,470101,Purchase of Care,14-Aug-2014,2782314-2176190,"1,828.76",BEACONSFIELD COURT.
Children and Adult Services,Head of Adults,Third Party Payments,470101,Purchase of Care,14-Aug-2014,2782314-2176191,"1,828.76",BEACONSFIELD COURT.
Children and Adult Services,Head of Adults,Third Party Payments,470101,Purchase of Care,14-Aug-2014,2782314-2176192,"1,794.56",BEACONSFIELD COURT.
Children and Adult Services,Head of Adults,Third Party Payments,470101,Purchase of Care,14-Aug-2014,2782314-2176194,"1,828.76",BEACONSFIELD COURT.
Children and Adult Services,Head of Adults,Debtors,930136,Debtor Nursing Care - ISIS Nursing,14-Aug-2014,2782314-2176196,"1,734.51",BEACONSFIELD COURT.
Children and Adult Services,Head of Adults,Third Party Payments,470101,Purchase of Care,14-Aug-2014,2782314-2176198,"1,828.76",BEACONSFIELD COURT.
Children and Adult Services,Head of Adults,Third Party Payments,470101,Purchase of Care,14-Aug-2014,2782314-2176199,"1,828.76",BEACONSFIELD COURT.
Children and Adult Services,Head of Adults,Third Party Payments,470101,Purchase of Care,14-Aug-2014,2782314-2176200,"1,828.76",BEACONSFIELD COURT.
Children and Adult Services,Head of Adults,Third Party Payments,470101,Purchase of Care,14-Aug-2014,2782314-2176201,"1,828.76",BEACONSFIELD COURT.
Children and Adult Services,Head of Adults,Third Party Payments,470101,Purchase of Care,14-Aug-2014,2782314-2176202,"1,828.76",BEACONSFIELD COURT.
Children and Adult Services,Head of Adults,Third Party Payments,470101,Purchase of Care,14-Aug-2014,2782314-2176203,"1,828.76",BEACONSFIELD COURT.
Children and Adult Services,Head of Adults,Third Party Payments,470101,Purchase of Care,14-Aug-2014,2782314-2176204,"1,828.76",BEACONSFIELD COURT.
Children and Adult Services,Head of Adults,Third Party Payments,470101,Purchase of Care,14-Aug-2014,2782314-2176207,"1,828.76",BEACONSFIELD COURT.
Children and Adult Services,Head of Adults,Third Party Payments,470101,Purchase of Care,14-Aug-2014,2782314-2176208,"1,828.76",BEACONSFIELD COURT.
Children and Adult Services,Head of Adults,Third Party Payments,470101,Purchase of Care,14-Aug-2014,2782314-2176209,"1,828.76",BEACONSFIELD COURT.
Children and Adult Services,Head of Adults,Third Party Payments,474101,Purchase of Care,14-Aug-2014,2782314-2178936,754.31,BEACONSFIELD COURT.
Children and Adult Services,Head of Adults,Third Party Payments,470101,Purchase of Care,14-Aug-2014,2782315-2177900,718.44,BEAMISH RESIDENTIAL HOME.
Children and Adult Services,Head of Adults,Third Party Payments,471101,Purchase of Care,14-Aug-2014,2782315-2177901,852.46,BEAMISH RESIDENTIAL HOME.
Children and Adult Services,Head of Adults,Third Party Payments,470101,Purchase of Care,14-Aug-2014,2782315-2177902,896.48,BEAMISH RESIDENTIAL HOME.
Children and Adult Services,Head of Adults,Third Party Payments,471101,Purchase of Care,14-Aug-2014,2782315-2177903,"1,016.08",BEAMISH RESIDENTIAL HOME.
Children and Adult Services,Head of Adults,Third Party Payments,470101,Purchase of Care,14-Aug-2014,2782315-2177904,"1,828.76",BEAMISH RESIDENTIAL HOME.
Children and Adult Services,Head of Adults,Third Party Payments,470101,Purchase of Care,14-Aug-2014,2782315-2177905,"1,105.76",BEAMISH RESIDENTIAL HOME.
Children and Adult Services,Head of Adults,Third Party Payments,470101,Purchase of Care,14-Aug-2014,2782315-2177906,"1,193.72",BEAMISH RESIDENTIAL HOME.
Children and Adult Services,Head of Adults,Third Party Payments,470101,Purchase of Care,14-Aug-2014,2782315-2177907,783.75,BEAMISH RESIDENTIAL HOME.
Children and Adult Services,Head of Adults,Third Party Payments,470101,Purchase of Care,14-Aug-2014,2782315-2177908,"1,072.90",BEAMISH RESIDENTIAL HOME.
Children and Adult Services,Head of Adults,Third Party Payments,470101,Purchase of Care,14-Aug-2014,2782315-2177909,"1,283.76",BEAMISH RESIDENTIAL HOME.
Children and Adult Services,Head of Adults,Third Party Payments,471101,Purchase of Care,14-Aug-2014,2782315-2177910,"1,828.76",BEAMISH RESIDENTIAL HOME.
Children and Adult Services,Head of Adults,Third Party Payments,470101,Purchase of Care,14-Aug-2014,2782315-2177911,"2,220.64",BEAMISH RESIDENTIAL HOME.
Children and Adult Services,Head of Adults,Third Party Payments,470101,Purchase of Care,14-Aug-2014,2782315-2177912,"1,332.96",BEAMISH RESIDENTIAL HOME.
Children and Adult Services,Head of Adults,Third Party Payments,470101,Purchase of Care,14-Aug-2014,2782315-2177913,"1,318.76",BEAMISH RESIDENTIAL HOME.
Children and Adult Services,Head of Adults,Third Party Payments,470101,Purchase of Care,14-Aug-2014,2782315-2177914,"1,828.76",BEAMISH RESIDENTIAL HOME.
Children and Adult Services,Head of Adults,Third Party Payments,470101,Purchase of Care,14-Aug-2014,2782315-2177915,"1,268.28",BEAMISH RESIDENTIAL HOME.
Children and Adult Services,Head of Adults,Third Party Payments,470101,Purchase of Care,14-Aug-2014,2782315-2177916,"1,289.28",BEAMISH RESIDENTIAL HOME.
Children and Adult Services,Head of Adults,Third Party Payments,470101,Purchase of Care,14-Aug-2014,2782315-2177917,"1,828.76",BEAMISH RESIDENTIAL HOME.
Children and Adult Services,Head of Adults,Third Party Payments,470101,Purchase of Care,14-Aug-2014,2782315-2179153,"1,502.19",BEAMISH RESIDENTIAL HOME.
Children and Adult Services,Head of Adults,Third Party Payments,470101,Purchase of Care,14-Aug-2014,2782317-2176080,"1,932.28",BEDDELL HOUSE.
Children and Adult Services,Head of Adults,Third Party Payments,470101,Purchase of Care,14-Aug-2014,2782317-2176081,"1,932.28",BEDDELL HOUSE.
Children and Adult Services,Head of Adults,Third Party Payments,470101,Purchase of Care,14-Aug-2014,2782317-2176082,"1,932.28",BEDDELL HOUSE.
Children and Adult Services,Head of Adults,Third Party Payments,470101,Purchase of Care,14-Aug-2014,2782317-2176083,"1,932.28",BEDDELL HOUSE.
Children and Adult Services,Head of Adults,Third Party Payments,470101,Purchase of Care,14-Aug-2014,2782317-2176084,"1,932.28",BEDDELL HOUSE.
Children and Adult Services,Head of Adults,Third Party Payments,470101,Purchase of Care,14-Aug-2014,2782317-2176085,966.16,BEDDELL HOUSE.
Children and Adult Services,Head of Adults,Third Party Payments,470101,Purchase of Care,14-Aug-2014,2782317-2176086,"1,932.28",BEDDELL HOUSE.
Children and Adult Services,Head of Adults,Third Party Payments,470101,Purchase of Care,14-Aug-2014,2782317-2176087,"1,932.28",BEDDELL HOUSE.
Children and Adult Services,Head of Adults,Third Party Payments,470101,Purchase of Care,14-Aug-2014,2782317-2176088,"1,545.82",BEDDELL HOUSE.
Children and Adult Services,Head of Adults,Third Party Payments,470101,Purchase of Care,14-Aug-2014,2782317-2176089,"1,932.28",BEDDELL HOUSE.
Children and Adult Services,Head of Adults,Third Party Payments,470101,Purchase of Care,14-Aug-2014,2782317-2176090,"1,932.28",BEDDELL HOUSE.
Children and Adult Services,Head of Adults,Third Party Payments,470101,Purchase of Care,14-Aug-2014,2782317-2176091,"1,932.28",BEDDELL HOUSE.
Children and Adult Services,Head of Adults,Third Party Payments,470101,Purchase of Care,14-Aug-2014,2782317-2176092,"1,932.28",BEDDELL HOUSE.
Children and Adult Services,Head of Adults,Third Party Payments,470101,Purchase of Care,14-Aug-2014,2782317-2176093,"1,932.28",BEDDELL HOUSE.
Children and Adult Services,Head of Adults,Third Party Payments,470101,Purchase of Care,14-Aug-2014,2782317-2178850,828.12,BEDDELL HOUSE.
Children and Adult Services,Head of Adults,Third Party Payments,470101,Purchase of Care,14-Aug-2014,2782318-2176916,"2,145.00",BEECHWOOD RESIDENTIAL CARE SERVICES.
Children and Adult Services,Head of Adults,Third Party Payments,470101,Purchase of Care,14-Aug-2014,2782318-2176917,"2,145.00",BEECHWOOD RESIDENTIAL CARE SERVICES.
Children and Adult Services,Head of Adults,Third Party Payments,470101,Purchase of Care,14-Aug-2014,2782318-2176918,"2,145.00",BEECHWOOD RESIDENTIAL CARE SERVICES.
Children and Adult Services,Head of Adults,Third Party Payments,470101,Purchase of Care,14-Aug-2014,2782319-2176885,"1,514.24",BENAMY HOUSE.
Children and Adult Services,Head of Adults,Third Party Payments,470101,Purchase of Care,14-Aug-2014,2782319-2176886,"1,833.64",BENAMY HOUSE.
Children and Adult Services,Head of Adults,Third Party Payments,470101,Purchase of Care,14-Aug-2014,2782319-2176887,"1,833.64",BENAMY HOUSE.
Children and Adult Services,Head of Adults,Third Party Payments,470101,Purchase of Care,14-Aug-2014,2782319-2176888,"1,514.24",BENAMY HOUSE.
Children and Adult Services,Head of Adults,Third Party Payments,470101,Purchase of Care,14-Aug-2014,2782319-2176889,"1,514.24",BENAMY HOUSE.
Children and Adult Services,Head of Adults,Third Party Payments,474101,Purchase of Care,14-Aug-2014,2782320-2175792,931.00,BENFIELD HALL.
Children and Adult Services,Head of Adults,Third Party Payments,474101,Purchase of Care,14-Aug-2014,2782320-2175794,931.00,BENFIELD HALL.
Children and Adult Services,Head of Adults,Third Party Payments,474101,Purchase of Care,14-Aug-2014,2782320-2175796,"1,150.56",BENFIELD HALL.
Children and Adult Services,Head of Adults,Third Party Payments,470101,Purchase of Care,14-Aug-2014,2782320-2175797,"2,460.00",BENFIELD HALL.
Children and Adult Services,Head of Adults,Third Party Payments,474101,Purchase of Care,14-Aug-2014,2782320-2175798,931.00,BENFIELD HALL.
Children and Adult Services,Head of Adults,Third Party Payments,474101,Purchase of Care,14-Aug-2014,2782320-2175800,"1,861.96",BENFIELD HALL.
Children and Adult Services,Head of Adults,Third Party Payments,474101,Purchase of Care,14-Aug-2014,2782320-2175802,931.00,BENFIELD HALL.
Children and Adult Services,Head of Adults,Third Party Payments,474101,Purchase of Care,14-Aug-2014,2782320-2175804,"1,861.96",BENFIELD HALL.
Children and Adult Services,Head of Adults,Third Party Payments,474101,Purchase of Care,14-Aug-2014,2782320-2175806,"1,366.16",BENFIELD HALL.
Children and Adult Services,Head of Adults,Third Party Payments,474101,Purchase of Care,14-Aug-2014,2782320-2179115,"1,729.00",BENFIELD HALL.
Children and Adult Services,Central Charges,Debtors,930024,Debtor-free nursing care,14-Aug-2014,2782320-2179116,823.75,BENFIELD HALL.
Children and Adult Services,Head of Adults,Transfer Payments,515201,Social Services Clients,14-Aug-2014,2782324-1447576H,800.01,REDACTED - PAYMENT TO INDIVIDUAL
Children and Adult Services,Head of Adults,Third Party Payments,478101,Purchase of Care,14-Aug-2014,2782328-2177188,"1,243.60",REDACTED - PAYMENT TO INDIVIDUAL
Children and Adult Services,Head of Adults,Third Party Payments,478101,Purchase of Care,14-Aug-2014,2782328-2177189,"1,243.60",REDACTED - PAYMENT TO INDIVIDUAL
Children and Adult Services,Head of Adults,Third Party Payments,471101,Purchase of Care,14-Aug-2014,2782332-2174700,"1,901.08",BISHOPSGATE LODGE.
Children and Adult Services,Head of Adults,Third Party Payments,471101,Purchase of Care,14-Aug-2014,2782332-2174702,"1,765.28",BISHOPSGATE LODGE.
Children and Adult Services,Head of Adults,Third Party Payments,474101,Purchase of Care,14-Aug-2014,2782332-2174703,"2,262.95",BISHOPSGATE LODGE.
Children and Adult Services,Central Charges,Debtors,930024,Debtor-free nursing care,14-Aug-2014,2782332-2174704,522.76,BISHOPSGATE LODGE.
Children and Adult Services,Head of Adults,Third Party Payments,470101,Purchase of Care,14-Aug-2014,2782332-2174705,"1,828.76",BISHOPSGATE LODGE.
Children and Adult Services,Head of Adults,Third Party Payments,470101,Purchase of Care,14-Aug-2014,2782332-2174706,"1,828.76",BISHOPSGATE LODGE.
Children and Adult Services,Head of Adults,Third Party Payments,470102,Purchase of Care,14-Aug-2014,2782332-2174707,621.09,BISHOPSGATE LODGE.
Children and Adult Services,Head of Adults,Third Party Payments,474101,Purchase of Care,14-Aug-2014,2782332-2174708,"1,920.08",BISHOPSGATE LODGE.
Children and Adult Services,Head of Adults,Third Party Payments,471101,Purchase of Care,14-Aug-2014,2782332-2174710,950.52,BISHOPSGATE LODGE.
Children and Adult Services,Central Charges,Debtors,930024,Debtor-free nursing care,14-Aug-2014,2782332-2174711,760.39,BISHOPSGATE LODGE.
Children and Adult Services,Head of Adults,Third Party Payments,471101,Purchase of Care,14-Aug-2014,2782332-2174712,"1,901.08",BISHOPSGATE LODGE.
Children and Adult Services,Head of Adults,Third Party Payments,470101,Purchase of Care,14-Aug-2014,2782332-2174713,"1,828.76",BISHOPSGATE LODGE.
Children and Adult Services,Head of Adults,Third Party Payments,474101,Purchase of Care,14-Aug-2014,2782332-2174714,"1,920.08",BISHOPSGATE LODGE.
Children and Adult Services,Head of Adults,Third Party Payments,470101,Purchase of Care,14-Aug-2014,2782332-2174716,"1,828.76",BISHOPSGATE LODGE.
Children and Adult Services,Head of Adults,Third Party Payments,474101,Purchase of Care,14-Aug-2014,2782332-2174717,"1,920.08",BISHOPSGATE LODGE.
Children and Adult Services,Head of Adults,Third Party Payments,470101,Purchase of Care,14-Aug-2014,2782332-2174719,"2,481.89",BISHOPSGATE LODGE.
Children and Adult Services,Head of Adults,Third Party Payments,474101,Purchase of Care,14-Aug-2014,2782332-2174720,"1,920.08",BISHOPSGATE LODGE.
Children and Adult Services,Head of Adults,Third Party Payments,471101,Purchase of Care,14-Aug-2014,2782332-2174722,"1,901.08",BISHOPSGATE LODGE.
Children and Adult Services,Head of Adults,Third Party Payments,470101,Purchase of Care,14-Aug-2014,2782332-2174723,"1,828.76",BISHOPSGATE LODGE.
Children and Adult Services,Head of Adults,Third Party Payments,470101,Purchase of Care,14-Aug-2014,2782332-2174724,"1,828.76",BISHOPSGATE LODGE.
Children and Adult Services,Head of Adults,Third Party Payments,474101,Purchase of Care,14-Aug-2014,2782332-2174725,"1,920.08",BISHOPSGATE LODGE.
Children and Adult Services,Head of Adults,Third Party Payments,474101,Purchase of Care,14-Aug-2014,2782332-2174727,"1,920.08",BISHOPSGATE LODGE.
Children and Adult Services,Head of Adults,Third Party Payments,474101,Purchase of Care,14-Aug-2014,2782332-2174729,"1,920.08",BISHOPSGATE LODGE.
Children and Adult Services,Head of Adults,Third Party Payments,474101,Purchase of Care,14-Aug-2014,2782332-2174731,"1,920.08",BISHOPSGATE LODGE.
Children and Adult Services,Head of Adults,Third Party Payments,470101,Purchase of Care,14-Aug-2014,2782332-2174733,"1,828.76",BISHOPSGATE LODGE.
Children and Adult Services,Head of Adults,Third Party Payments,471101,Purchase of Care,14-Aug-2014,2782332-2174734,"1,901.08",BISHOPSGATE LODGE.
Children and Adult Services,Head of Adults,Third Party Payments,471101,Purchase of Care,14-Aug-2014,2782332-2174735,"1,901.08",BISHOPSGATE LODGE.
Children and Adult Services,Head of Adults,Third Party Payments,470101,Purchase of Care,14-Aug-2014,2782332-2174736,"1,828.76",BISHOPSGATE LODGE.
Children and Adult Services,Head of Adults,Third Party Payments,470101,Purchase of Care,14-Aug-2014,2782332-2174737,"1,828.76",BISHOPSGATE LODGE.
Children and Adult Services,Head of Adults,Third Party Payments,470101,Purchase of Care,14-Aug-2014,2782332-2174738,"1,828.76",BISHOPSGATE LODGE.
Children and Adult Services,Head of Adults,Third Party Payments,470101,Purchase of Care,14-Aug-2014,2782332-2174739,"1,828.76",BISHOPSGATE LODGE.
Children and Adult Services,Head of Adults,Third Party Payments,470101,Purchase of Care,14-Aug-2014,2782332-2174740,"1,828.76",BISHOPSGATE LODGE.
Children and Adult Services,Head of Adults,Third Party Payments,474101,Purchase of Care,14-Aug-2014,2782332-2174741,"1,920.08",BISHOPSGATE LODGE.
Children and Adult Services,Head of Adults,Third Party Payments,474101,Purchase of Care,14-Aug-2014,2782332-2174743,"1,920.08",BISHOPSGATE LODGE.
Children and Adult Services,Head of Adults,Third Party Payments,474101,Purchase of Care,14-Aug-2014,2782332-2174745,"1,920.08",BISHOPSGATE LODGE.
Children and Adult Services,Head of Adults,Third Party Payments,470101,Purchase of Care,14-Aug-2014,2782332-2174747,"1,828.76",BISHOPSGATE LODGE.
Children and Adult Services,Head of Adults,Third Party Payments,472101,Purchase of Care,14-Aug-2014,2782334-1445510H,"1,590.00",BLUE RIBBON COMMUNITY CARE.
Children and Adult Services,Head of Adults,Third Party Payments,470101,Purchase of Care,14-Aug-2014,2782337-2178671,"2,600.00",BONHOMIE HOUSE.
Children and Adult Services,Head of Adults,Third Party Payments,474101,Purchase of Care,14-Aug-2014,2782338-2177607,"2,525.00",BOWES COURT CARE HOME.
Children and Adult Services,Head of Adults,Third Party Payments,474101,Purchase of Care,14-Aug-2014,2782338-2177609,"2,500.00",BOWES COURT CARE HOME.
Children and Adult Services,Head of Adults,Third Party Payments,470101,Purchase of Care,14-Aug-2014,2782338-2177611,"4,444.00",BOWES COURT CARE HOME.
Children and Adult Services,Head of Adults,Third Party Payments,470101,Purchase of Care,14-Aug-2014,2782338-2177612,"2,300.00",BOWES COURT CARE HOME.
Children and Adult Services,Head of Adults,Third Party Payments,470101,Purchase of Care,14-Aug-2014,2782338-2177613,"5,082.00",BOWES COURT CARE HOME.
Children and Adult Services,Head of Adults,Third Party Payments,474101,Purchase of Care,14-Aug-2014,2782338-2177616,"2,525.00",BOWES COURT CARE HOME.
Children and Adult Services,Head of Adults,Third Party Payments,474101,Purchase of Care,14-Aug-2014,2782338-2177618,"2,400.00",BOWES COURT CARE HOME.
Children and Adult Services,Head of Adults,Third Party Payments,474101,Purchase of Care,14-Aug-2014,2782338-2177619,"4,800.00",BOWES COURT CARE HOME.
Children and Adult Services,Head of Adults,Third Party Payments,470101,Purchase of Care,14-Aug-2014,2782338-2177621,"3,672.00",BOWES COURT CARE HOME.
Children and Adult Services,Head of Adults,Third Party Payments,474101,Purchase of Care,14-Aug-2014,2782338-2179154,"2,500.00",BOWES COURT CARE HOME.
Children and Adult Services,Head of Adults,Third Party Payments,470101,Purchase of Care,14-Aug-2014,2782341-2174518,"1,932.28",BRANCEPETH COURT.
Children and Adult Services,Head of Adults,Third Party Payments,470101,Purchase of Care,14-Aug-2014,2782341-2174523,"1,035.15",BRANCEPETH COURT.
Children and Adult Services,Head of Adults,Third Party Payments,470101,Purchase of Care,14-Aug-2014,2782341-2174525,"1,449.21",BRANCEPETH COURT.
Children and Adult Services,Head of Adults,Third Party Payments,470101,Purchase of Care,14-Aug-2014,2782341-2174526,"1,993.16",BRANCEPETH COURT.
Children and Adult Services,Head of Adults,Third Party Payments,470101,Purchase of Care,14-Aug-2014,2782341-2174527,"1,932.28",BRANCEPETH COURT.
Children and Adult Services,Head of Adults,Third Party Payments,474101,Purchase of Care,14-Aug-2014,2782341-2174528,"2,023.60",BRANCEPETH COURT.
Children and Adult Services,Head of Adults,Third Party Payments,470101,Purchase of Care,14-Aug-2014,2782341-2174530,"1,932.28",BRANCEPETH COURT.
Children and Adult Services,Head of Adults,Third Party Payments,474101,Purchase of Care,14-Aug-2014,2782341-2174531,"2,023.60",BRANCEPETH COURT.
Children and Adult Services,Head of Adults,Third Party Payments,474101,Purchase of Care,14-Aug-2014,2782341-2174534,939.52,BRANCEPETH COURT.
Children and Adult Services,Head of Adults,Third Party Payments,470101,Purchase of Care,14-Aug-2014,2782341-2174539,"1,932.28",BRANCEPETH COURT.
Children and Adult Services,Head of Adults,Third Party Payments,470101,Purchase of Care,14-Aug-2014,2782341-2174540,"1,932.28",BRANCEPETH COURT.
Children and Adult Services,Head of Adults,Third Party Payments,470101,Purchase of Care,14-Aug-2014,2782341-2174541,"1,932.28",BRANCEPETH COURT.
Children and Adult Services,Head of Adults,Third Party Payments,470101,Purchase of Care,14-Aug-2014,2782341-2174542,"1,932.28",BRANCEPETH COURT.
Children and Adult Services,Head of Adults,Third Party Payments,470101,Purchase of Care,14-Aug-2014,2782341-2174543,"1,932.28",BRANCEPETH COURT.
Children and Adult Services,Head of Adults,Third Party Payments,470101,Purchase of Care,14-Aug-2014,2782341-2174544,"1,932.28",BRANCEPETH COURT.
Children and Adult Services,Head of Adults,Third Party Payments,474101,Purchase of Care,14-Aug-2014,2782341-2174545,"2,023.60",BRANCEPETH COURT.
Children and Adult Services,Head of Adults,Third Party Payments,470101,Purchase of Care,14-Aug-2014,2782341-2174547,"1,932.28",BRANCEPETH COURT.
Children and Adult Services,Head of Adults,Third Party Payments,474101,Purchase of Care,14-Aug-2014,2782341-2174548,"2,107.60",BRANCEPETH COURT.
Children and Adult Services,Head of Adults,Third Party Payments,470101,Purchase of Care,14-Aug-2014,2782341-2174550,"1,993.16",BRANCEPETH COURT.
Children and Adult Services,Head of Adults,Third Party Payments,470101,Purchase of Care,14-Aug-2014,2782341-2174551,"1,932.28",BRANCEPETH COURT.
Children and Adult Services,Head of Adults,Third Party Payments,474101,Purchase of Care,14-Aug-2014,2782341-2174552,"2,023.60",BRANCEPETH COURT.
Children and Adult Services,Head of Adults,Third Party Payments,470101,Purchase of Care,14-Aug-2014,2782341-2174554,"1,993.16",BRANCEPETH COURT.
Children and Adult Services,Head of Adults,Third Party Payments,474101,Purchase of Care,14-Aug-2014,2782341-2174555,"2,023.60",BRANCEPETH COURT.
Children and Adult Services,Head of Adults,Third Party Payments,470101,Purchase of Care,14-Aug-2014,2782341-2174557,"1,932.28",BRANCEPETH COURT.
Children and Adult Services,Head of Adults,Third Party Payments,470101,Purchase of Care,14-Aug-2014,2782341-2174558,"1,993.16",BRANCEPETH COURT.
Children and Adult Services,Head of Adults,Third Party Payments,470101,Purchase of Care,14-Aug-2014,2782341-2174559,"1,993.16",BRANCEPETH COURT.
Children and Adult Services,Head of Adults,Third Party Payments,470101,Purchase of Care,14-Aug-2014,2782341-2174560,"1,993.16",BRANCEPETH COURT.
Children and Adult Services,Head of Adults,Third Party Payments,470101,Purchase of Care,14-Aug-2014,2782341-2174561,"1,993.16",BRANCEPETH COURT.
Children and Adult Services,Head of Adults,Third Party Payments,470101,Purchase of Care,14-Aug-2014,2782341-2174562,"1,993.16",BRANCEPETH COURT.
Children and Adult Services,Head of Adults,Third Party Payments,474101,Purchase of Care,14-Aug-2014,2782341-2174563,"2,032.28",BRANCEPETH COURT.
Children and Adult Services,Head of Adults,Third Party Payments,474101,Purchase of Care,14-Aug-2014,2782341-2178966,"1,098.80",BRANCEPETH COURT.
Children and Adult Services,Head of Adults,Third Party Payments,470101,Purchase of Care,14-Aug-2014,2782341-2178968,"1,449.21",BRANCEPETH COURT.
Children and Adult Services,Head of Adults,Third Party Payments,474101,Purchase of Care,14-Aug-2014,2782341-2178969,"1,011.80",BRANCEPETH COURT.
Children and Adult Services,Head of Adults,Third Party Payments,474101,Purchase of Care,14-Aug-2014,2782341-2178973,"1,517.70",BRANCEPETH COURT.
Children and Adult Services,Head of Adults,Third Party Payments,470101,Purchase of Care,14-Aug-2014,2782341-2178976,552.08,BRANCEPETH COURT.
Children and Adult Services,Head of Adults,Transfer Payments,515201,Social Services Clients,14-Aug-2014,2782344-1446894H,"2,156.52",REDACTED - PAYMENT TO INDIVIDUAL
Children and Adult Services,Head of Adults,Transfer Payments,515201,Social Services Clients,14-Aug-2014,2782345-1444053H,"1,190.96",REDACTED - PAYMENT TO INDIVIDUAL
Children and Adult Services,Head of Adults,Transfer Payments,515209,Social Services Clients,14-Aug-2014,2782346-1445238D,"1,969.60",REDACTED - PAYMENT TO INDIVIDUAL
Children and Adult Services,Head of Adults,Transfer Payments,515201,Social Services Clients,14-Aug-2014,2782347-1443264H,"7,120.44",REDACTED - PAYMENT TO INDIVIDUAL
Children and Adult Services,Head of Adults,Transfer Payments,515201,Social Services Clients,14-Aug-2014,2782348-1448608H,682.06,REDACTED - PAYMENT TO INDIVIDUAL
Children and Adult Services,Head of Adults,Transfer Payments,515201,Social Services Clients,14-Aug-2014,2782349-1444360H,621.04,REDACTED - PAYMENT TO INDIVIDUAL
Children and Adult Services,Head of Adults,Third Party Payments,471101,Purchase of Care,14-Aug-2014,2782350-2175184,"2,003.56",BROOMHOUSE CARE LTD.
Children and Adult Services,Head of Adults,Third Party Payments,470101,Purchase of Care,14-Aug-2014,2782350-2175185,"1,299.80",BROOMHOUSE CARE LTD.
